Workbook

Sheet Debt Sizing Analysis
B2: Time period | J2: 1 | K2: 2 | L2: 3 | M2: 4 | N2: 5 | O2: 6 | P2: 7 | Q2: 8 | R2: 9 | S2: 10 | T2: 11 | U2: 12 | V2: 13 | W2: 14 | X2: 15 | Y2: 16 | Z2: 17 | AA2: 18 | AB2: 19 | AC2: 20 | AD2: 21 | AE2: 22 | AF2: 23 | AG2: 24 | AH2: 25 | AI2: 26 | AJ2: 27 | AK2: 28 | AL2: 29 | AM2: 30
B3: Debt Repayment Period | E3: flag | F3: Comparative Test | G3: Maturity | H3: =H19 -> 12 | J3: =J2<=$H$3 -> TRUE | K3: TRUE | L3: TRUE | M3: TRUE | N3: TRUE | O3: TRUE | P3: TRUE | Q3: TRUE | R3: TRUE | S3: TRUE | T3: TRUE | U3: TRUE | V3: FALSE | W3: FALSE | X3: FALSE | Y3: FALSE | Z3: FALSE | AA3: FALSE | AB3: FALSE | AC3: FALSE | AD3: FALSE | AE3: FALSE | AF3: FALSE | AG3: FALSE | AH3: FALSE | AI3: FALSE | AJ3: FALSE | AK3: FALSE | AL3: FALSE | AM3: FALSE
A5: Inputs
B6: Operations | N6: Summary
C7: Base Cost | E7: Euro | H7: 600 | N7: Debt P50 | O7: =G43 -> 0
C8: Cost Adders | E8: Euro | H8: 0 | N8: Debt P99 | O8: =G46 -> 
N9: Debt to Cap | O9: =H38 -> 480
C10: Base CFADS | E10: Euro | H10: 38
C11: CFADS Growth | E11: % p.a. | H11: 0.02 | N11: Selected | O11: =MIN(O7:O9) -> 
C12: P99 Divisor | E12: Factor | H12: =J12/100 -> 1.4 | J12: 140
B14: Financing
C15: DSCR P50 | E15: x | F15: See Term Sheet | H15: 1.35
C16: DSCR P99 | E16: x | F16: See Term Sheet | H16: 1
C17: Maximum Debt to Capital | E17: % | H17: 0.8
C19: Debt Maturity | E19: years | H19: 12
C21: Year of Debt | H21: 1 | I21: 3 | J21: 5 | K21: 8
C22: Interest Rate | E22: % | F22: Use Lookup Function | H22: 0.03 | I22: 0.0325 | J22: 0.035 | K22: 0.0375
A24: Operations
B25: Growth Index | E25: Index | H25: =H11 -> 0.02 | I25: 1 | J25: =I25*(1+$H$25) -> 1.02 | K25: =J25*(1+$H$25) -> 1.0404 | L25: 1.061208 | M25: 1.08243216 | N25: 1.104080803 | O25: 1.126162419 | P25: 1.148685668 | Q25: 1.171659381 | R25: 1.195092569 | S25: 1.21899442 | T25: 1.243374308 | U25: 1.268241795 | V25: 1.29360663 | W25: 1.319478763 | X25: 1.345868338 | Y25: 1.372785705 | Z25: 1.400241419 | AA25: 1.428246248 | AB25: 1.456811173 | AC25: 1.485947396 | AD25: 1.515666344 | AE25: 1.545979671 | AF25: 1.576899264 | AG25: 1.608437249 | AH25: 1.640605994 | AI25: 1.673418114 | AJ25: 1.706886477 | AK25: 1.741024206 | AL25: 1.77584469 | AM25: 1.811361584
B26: CFADS P50 | E26: Euro | H26: =H10 -> 38 | J26: =$H$26*J25 -> 38.76 | K26: =$H$26*K25 -> 39.5352 | L26: 40.325904 | M26: 41.13242208 | N26: 41.95507052 | O26: 42.79417193 | P26: 43.65005537 | Q26: 44.52305648 | R26: 45.41351761 | S26: 46.32178796 | T26: 47.24822372 | U26: 48.19318819 | V26: 49.15705196 | W26: 50.140193 | X26: 51.14299686 | Y26: 52.16585679 | Z26: 53.20917393 | AA26: 54.27335741 | AB26: 55.35882456 | AC26: 56.46600105 | AD26: 57.59532107 | AE26: 58.74722749 | AF26: 59.92217204 | AG26: 61.12061548 | AH26: 62.34302779 | AI26: 63.58988835 | AJ26: 64.86168611 | AK26: 66.15891983 | AL26: 67.48209823 | AM26: 68.8317402
B27: CFADS P99 | E27: Euro | F27: CFADS/Factor | G27: Factor | H27: =H12 -> 1.4
B28: Percent Difference | J28: =J27/J26 -> 0 | K28: =K27/K26 -> 0 | L28: 0 | M28: 0 | N28: 0 | O28: 0 | P28: 0 | Q28: 0 | R28: 0 | S28: 0 | T28: 0 | U28: 0 | V28: 0 | W28: 0 | X28: 0 | Y28: 0 | Z28: 0 | AA28: 0 | AB28: 0 | AC28: 0 | AD28: 0 | AE28: 0 | AF28: 0 | AG28: 0 | AH28: 0 | AI28: 0 | AJ28: 0 | AK28: 0 | AL28: 0 | AM28: 0
B30: True Outlays for Project Cost | E30: Euro | I30: =H7 -> 600
B31: Cost Padding (Jean Benard Salary Allocation) | E31: Euro | I31: =H8 -> 0
B32: Project Cost | E32: Euro | I32: =SUM(I30:I31) -> 600
B34: Project Cash Flow P50 | E34: Euro | I34: =H26-I32 -> -562 | J34: =J26-J32 -> 38.76 | K34: 39.5352 | L34: 40.325904 | M34: 41.13242208 | N34: 41.95507052 | O34: 42.79417193 | P34: 43.65005537 | Q34: 44.52305648 | R34: 45.41351761 | S34: 46.32178796 | T34: 47.24822372 | U34: 48.19318819 | V34: 49.15705196 | W34: 50.140193 | X34: 51.14299686 | Y34: 52.16585679 | Z34: 53.20917393 | AA34: 54.27335741 | AB34: 55.35882456 | AC34: 56.46600105 | AD34: 57.59532107 | AE34: 58.74722749 | AF34: 59.92217204 | AG34: 61.12061548 | AH34: 62.34302779 | AI34: 63.58988835 | AJ34: 64.86168611 | AK34: 66.15891983 | AL34: 67.48209823 | AM34: 68.8317402
B35: Project IRR | E35: % | H35: =IRR(34:34) -> 0.07449707278
A37: Debt Sizing
B38: Debt to Capital Size | E38: Euro | H38: =H17*I32 -> 480
B40: P50 Debt Service | E40: Euro | F40: CFADS/DSCR | G40: DSCR | H40: =H15 -> 1.35
B41: Interest Rate | E41: % | F41: Recher/Lookup
B42: Compound Interest | H42: 1
B43: NPV Debt Service | E43: Euro
B45: P99 Debt Service | H45: =H16 -> 1 | J45: =J27*J3/$H$45 -> 0 | K45: =K27*K3/$H$45 -> 0 | L45: =L27*L3/$H$45 -> 0 | M45: =M27*M3/$H$45 -> 0 | N45: =N27*N3/$H$45 -> 0 | O45: =O27*O3/$H$45 -> 0 | P45: =P27*P3/$H$45 -> 0 | Q45: =Q27*Q3/$H$45 -> 0 | R45: =R27*R3/$H$45 -> 0 | S45: =S27*S3/$H$45 -> 0 | T45: =T27*T3/$H$45 -> 0 | U45: =U27*U3/$H$45 -> 0 | V45: =V27*V3/$H$45 -> 0 | W45: =W27*W3/$H$45 -> 0 | X45: =X27*X3/$H$45 -> 0 | Y45: =Y27*Y3/$H$45 -> 0 | Z45: =Z27*Z3/$H$45 -> 0 | AA45: =AA27*AA3/$H$45 -> 0 | AB45: =AB27*AB3/$H$45 -> 0 | AC45: =AC27*AC3/$H$45 -> 0 | AD45: =AD27*AD3/$H$45 -> 0 | AE45: =AE27*AE3/$H$45 -> 0 | AF45: =AF27*AF3/$H$45 -> 0 | AG45: =AG27*AG3/$H$45 -> 0 | AH45: =AH27*AH3/$H$45 -> 0 | AI45: =AI27*AI3/$H$45 -> 0 | AJ45: =AJ27*AJ3/$H$45 -> 0 | AK45: =AK27*AK3/$H$45 -> 0 | AL45: =AL27*AL3/$H$45 -> 0 | AM45: =AM27*AM3/$H$45 -> 0
B46: NPV of Debt Service | E46: Euro | F46: Sumproduct | G46: =SUMPRODUCT(J45:AM45/J42:AM42) -> 
B48: P50 Proof
C49: Debt Service | J49: =J40 -> 0 | K49: =K40 -> 0 | L49: 0 | M49: 0 | N49: 0 | O49: 0 | P49: 0 | Q49: 0 | R49: 0 | S49: 0 | T49: 0 | U49: 0 | V49: 0 | W49: 0 | X49: 0 | Y49: 0 | Z49: 0 | AA49: 0 | AB49: 0 | AC49: 0 | AD49: 0 | AE49: 0 | AF49: 0 | AG49: 0 | AH49: 0 | AI49: 0 | AJ49: 0 | AK49: 0 | AL49: 0 | AM49: 0
C50: Opening Balance | E50: Euro | J50: =H52 -> 0 | K50: =J52 -> 0 | L50: 0 | M50: 0 | N50: 0 | O50: 0 | P50: 0 | Q50: 0 | R50: 0 | S50: 0 | T50: 0 | U50: 0 | V50: 0 | W50: 0 | X50: 0 | Y50: 0 | Z50: 0 | AA50: 0 | AB50: 0 | AC50: 0 | AD50: 0 | AE50: 0 | AF50: 0 | AG50: 0 | AH50: 0 | AI50: 0 | AJ50: 0 | AK50: 0 | AL50: 0 | AM50: 0
C51: Less: Repayment | E51: Euro
C52: Closing Balance | E52: Euro | H52: =G43 -> 0 | J52: =J50-J51 -> 0 | K52: =K50-K51 -> 0 | L52: 0 | M52: 0 | N52: 0 | O52: 0 | P52: 0 | Q52: 0 | R52: 0 | S52: 0 | T52: 0 | U52: 0 | V52: 0 | W52: 0 | X52: 0 | Y52: 0 | Z52: 0 | AA52: 0 | AB52: 0 | AC52: 0 | AD52: 0 | AE52: 0 | AF52: 0 | AG52: 0 | AH52: 0 | AI52: 0 | AJ52: 0 | AK52: 0 | AL52: 0 | AM52: 0
C53: Interest | E53: Euro | J53: =J50*J41 -> 0 | K53: =K50*K41 -> 0 | L53: 0 | M53: 0 | N53: 0 | O53: 0 | P53: 0 | Q53: 0 | R53: 0 | S53: 0 | T53: 0 | U53: 0 | V53: 0 | W53: 0 | X53: 0 | Y53: 0 | Z53: 0 | AA53: 0 | AB53: 0 | AC53: 0 | AD53: 0 | AE53: 0 | AF53: 0 | AG53: 0 | AH53: 0 | AI53: 0 | AJ53: 0 | AK53: 0 | AL53: 0 | AM53: 0
C55: Closing Balance Test | F55: Recher/Lookup
B57: P99 Proof
C58: Debt Service | J58: =J45 -> 0 | K58: =K45 -> 0 | L58: 0 | M58: 0 | N58: 0 | O58: 0 | P58: 0 | Q58: 0 | R58: 0 | S58: 0 | T58: 0 | U58: 0 | V58: 0 | W58: 0 | X58: 0 | Y58: 0 | Z58: 0 | AA58: 0 | AB58: 0 | AC58: 0 | AD58: 0 | AE58: 0 | AF58: 0 | AG58: 0 | AH58: 0 | AI58: 0 | AJ58: 0 | AK58: 0 | AL58: 0 | AM58: 0
C59: Opening Balance | E59: Euro | J59: =H61 ->  | K59: =J61 -> 
C60: Less: Repayment | E60: Euro | J60: =J58-J62 ->  | K60: =K58-K62 -> 
C61: Closing Balance | E61: Euro | H61: =G46 ->  | J61: =J59-J60 ->  | K61: =K59-K60 -> 
C62: Interest | E62: Euro | J62: =J59*J41 ->  | K62: =K59*K41 -> 
C64: Closing Balance Test | F64: Recher/Lookup | G64: =LOOKUP(H3,2:2,61:61) -> 

Sheet Intermediate Financial Model
A1: Time Line | H1: 1 | I1: 2 | J1: 3 | K1: 4 | L1: 5 | M1: 6 | N1: 7 | O1: 8 | P1: 9 | Q1: 10 | R1: 11 | S1: 12 | T1: 13 | U1: 14 | V1: 15 | W1: 16 | X1: 17 | Y1: 18 | Z1: 19 | AA1: 20 | AB1: 21 | AC1: 22 | AD1: 23 | AE1: 24 | AF1: 25 | AG1: 26 | AH1: 27 | AI1: 28 | AJ1: 29 | AK1: 30 | AL1: 31 | AM1: 32 | AN1: 33 | AO1: 34 | AP1: 35 | AQ1: 36 | AR1: 37 | AS1: 38 | AT1: 39 | AU1: 40 | AV1: 41 | AW1: 42 | AX1: 43 | AY1: 44 | AZ1: 45 | BA1: 46 | BB1: 47 | BC1: 48 | BD1: 49 | BE1: 50 | BF1: 51 | BG1: 52 | BH1: 53 | BI1: 54 | BJ1: 55 | BK1: 56 | BL1: 57 | BM1: 58 | BN1: 59 | BO1: 60 | BP1: 61 | BQ1: 62 | BR1: 63 | BS1: 64 | BT1: 65 | BU1: 66 | BV1: 67 | BW1: 68 | BX1: 69 | BY1: 70 | BZ1: 71 | CA1: 72 | CB1: 73 | CC1: 74 | CD1: 75 | CE1: 76 | CF1: 77 | CG1: 78 | CH1: 79 | CI1: 80 | CJ1: 81 | CK1: 82 | CL1: 83 | CM1: 84 | CN1: 85 | CO1: 86 | CP1: 87 | CQ1: 88 | CR1: 89 | CS1: 90 | CT1: 91 | CU1: 92 | CV1: 93 | CW1: 94 | CX1: 95 | CY1: 96 | CZ1: 97 | DA1: 98 | DB1: 99 | DC1: 100
B2: Start of period | E2: Price | F2: =price -> 32.91300051 | H2: =$F$9 -> 2020-08-01 | I2: =EDATE(H2,6) -> 2021-02-01 | J2: =EDATE(I2,6) -> 2021-08-01 | K2: 2022-02-01 | L2: 2022-08-01 | M2: 2023-02-01 | N2: 2023-08-01 | O2: 2024-02-01 | P2: 2024-08-01 | Q2: 2025-02-01 | R2: 2025-08-01 | S2: 2026-02-01 | T2: 2026-08-01 | U2: 2027-02-01 | V2: 2027-08-01 | W2: 2028-02-01 | X2: 2028-08-01 | Y2: 2029-02-01 | Z2: 2029-08-01 | AA2: 2030-02-01 | AB2: 2030-08-01 | AC2: 2031-02-01 | AD2: 2031-08-01 | AE2: 2032-02-01 | AF2: 2032-08-01 | AG2: 2033-02-01 | AH2: 2033-08-01 | AI2: 2034-02-01 | AJ2: 2034-08-01 | AK2: 2035-02-01 | AL2: 2035-08-01 | AM2: 2036-02-01 | AN2: 2036-08-01 | AO2: 2037-02-01 | AP2: 2037-08-01 | AQ2: 2038-02-01 | AR2: 2038-08-01 | AS2: 2039-02-01 | AT2: 2039-08-01 | AU2: 2040-02-01 | AV2: 2040-08-01 | AW2: 2041-02-01 | AX2: 2041-08-01 | AY2: 2042-02-01 | AZ2: 2042-08-01 | BA2: 2043-02-01 | BB2: 2043-08-01 | BC2: 2044-02-01 | BD2: 2044-08-01 | BE2: 2045-02-01 | BF2: 2045-08-01 | BG2: 2046-02-01 | BH2: 2046-08-01 | BI2: 2047-02-01 | BJ2: 2047-08-01 | BK2: 2048-02-01 | BL2: 2048-08-01 | BM2: 2049-02-01 | BN2: 2049-08-01 | BO2: 2050-02-01 | BP2: 2050-08-01 | BQ2: 2051-02-01 | BR2: 2051-08-01 | BS2: 2052-02-01 | BT2: 2052-08-01 | BU2: 2053-02-01 | BV2: =EDATE(BU2,6) -> 2053-08-01 | BW2: 2054-02-01 | BX2: 2054-08-01 | BY2: 2055-02-01 | BZ2: 2055-08-01 | CA2: 2056-02-01 | CB2: 2056-08-01 | CC2: 2057-02-01 | CD2: 2057-08-01 | CE2: 2058-02-01 | CF2: 2058-08-01 | CG2: 2059-02-01 | CH2: 2059-08-01 | CI2: 2060-02-01 | CJ2: 2060-08-01 | CK2: 2061-02-01 | CL2: 2061-08-01 | CM2: 2062-02-01 | CN2: 2062-08-01 | CO2: 2063-02-01 | CP2: 2063-08-01 | CQ2: 2064-02-01 | CR2: 2064-08-01 | CS2: 2065-02-01 | CT2: 2065-08-01 | CU2: 2066-02-01 | CV2: 2066-08-01 | CW2: 2067-02-01 | CX2: 2067-08-01 | CY2: 2068-02-01 | CZ2: 2068-08-01 | DA2: 2069-02-01 | DB2: 2069-08-01 | DC2: 2070-02-01
B3: End of period | E3: Equity IRR | F3: =E268 -> 0 | H3: =EDATE(H2,6)-1 -> 2021-01-31 | I3: =EDATE(I2,6)-1 -> 2021-07-31 | J3: 2022-01-31 | K3: 2022-07-31 | L3: 2023-01-31 | M3: 2023-07-31 | N3: 2024-01-31 | O3: 2024-07-31 | P3: 2025-01-31 | Q3: 2025-07-31 | R3: 2026-01-31 | S3: 2026-07-31 | T3: 2027-01-31 | U3: 2027-07-31 | V3: 2028-01-31 | W3: 2028-07-31 | X3: 2029-01-31 | Y3: 2029-07-31 | Z3: 2030-01-31 | AA3: 2030-07-31 | AB3: 2031-01-31 | AC3: 2031-07-31 | AD3: 2032-01-31 | AE3: 2032-07-31 | AF3: 2033-01-31 | AG3: 2033-07-31 | AH3: 2034-01-31 | AI3: 2034-07-31 | AJ3: 2035-01-31 | AK3: 2035-07-31 | AL3: 2036-01-31 | AM3: 2036-07-31 | AN3: 2037-01-31 | AO3: 2037-07-31 | AP3: 2038-01-31 | AQ3: 2038-07-31 | AR3: 2039-01-31 | AS3: 2039-07-31 | AT3: 2040-01-31 | AU3: 2040-07-31 | AV3: 2041-01-31 | AW3: 2041-07-31 | AX3: 2042-01-31 | AY3: 2042-07-31 | AZ3: 2043-01-31 | BA3: 2043-07-31 | BB3: 2044-01-31 | BC3: 2044-07-31 | BD3: 2045-01-31 | BE3: 2045-07-31 | BF3: 2046-01-31 | BG3: 2046-07-31 | BH3: 2047-01-31 | BI3: 2047-07-31 | BJ3: 2048-01-31 | BK3: 2048-07-31 | BL3: 2049-01-31 | BM3: 2049-07-31 | BN3: 2050-01-31 | BO3: 2050-07-31 | BP3: 2051-01-31 | BQ3: 2051-07-31 | BR3: 2052-01-31 | BS3: 2052-07-31 | BT3: 2053-01-31 | BU3: =EDATE(BU2,6)-1 -> 2053-07-31 | BV3: 2054-01-31 | BW3: 2054-07-31 | BX3: 2055-01-31 | BY3: 2055-07-31 | BZ3: 2056-01-31 | CA3: 2056-07-31 | CB3: 2057-01-31 | CC3: 2057-07-31 | CD3: 2058-01-31 | CE3: 2058-07-31 | CF3: 2059-01-31 | CG3: 2059-07-31 | CH3: 2060-01-31 | CI3: 2060-07-31 | CJ3: 2061-01-31 | CK3: 2061-07-31 | CL3: 2062-01-31 | CM3: 2062-07-31 | CN3: 2063-01-31 | CO3: 2063-07-31 | CP3: 2064-01-31 | CQ3: 2064-07-31 | CR3: 2065-01-31 | CS3: 2065-07-31 | CT3: 2066-01-31 | CU3: 2066-07-31 | CV3: 2067-01-31 | CW3: 2067-07-31 | CX3: 2068-01-31 | CY3: 2068-07-31 | CZ3: 2069-01-31 | DA3: 2069-07-31 | DB3: 2070-01-31 | DC3: 2070-07-31
B4: Construction phase | F4: =F11 -> 2021-02-01 | H4: =H2<$F$4 -> TRUE | I4: =I2<$F$4 -> FALSE | J4: FALSE | K4: FALSE | L4: FALSE | M4: FALSE | N4: FALSE | O4: FALSE | P4: FALSE | Q4: FALSE | R4: FALSE | S4: FALSE | T4: FALSE | U4: FALSE | V4: FALSE | W4: FALSE | X4: FALSE | Y4: FALSE | Z4: FALSE | AA4: FALSE | AB4: FALSE | AC4: FALSE | AD4: FALSE | AE4: FALSE | AF4: FALSE | AG4: FALSE | AH4: FALSE | AI4: FALSE | AJ4: FALSE | AK4: FALSE | AL4: FALSE | AM4: FALSE | AN4: FALSE | AO4: FALSE | AP4: FALSE | AQ4: FALSE | AR4: FALSE | AS4: FALSE | AT4: FALSE | AU4: FALSE | AV4: FALSE | AW4: FALSE | AX4: FALSE | AY4: FALSE | AZ4: FALSE | BA4: FALSE | BB4: FALSE | BC4: FALSE | BD4: FALSE | BE4: FALSE | BF4: FALSE | BG4: FALSE | BH4: FALSE | BI4: FALSE | BJ4: FALSE | BK4: FALSE | BL4: FALSE | BM4: FALSE | BN4: FALSE | BO4: FALSE | BP4: FALSE | BQ4: FALSE | BR4: FALSE | BS4: FALSE | BT4: FALSE | BU4: =BU2<$F$4 -> FALSE | BV4: FALSE | BW4: FALSE | BX4: FALSE | BY4: FALSE | BZ4: FALSE | CA4: FALSE | CB4: FALSE | CC4: FALSE | CD4: FALSE | CE4: FALSE | CF4: FALSE | CG4: FALSE | CH4: FALSE | CI4: FALSE | CJ4: FALSE | CK4: FALSE | CL4: FALSE | CM4: FALSE | CN4: FALSE | CO4: FALSE | CP4: FALSE | CQ4: FALSE | CR4: FALSE | CS4: FALSE | CT4: FALSE | CU4: FALSE | CV4: FALSE | CW4: FALSE | CX4: FALSE | CY4: FALSE | CZ4: FALSE | DA4: FALSE | DB4: FALSE | DC4: FALSE
B5: Operating phase | F5: =F11 -> 2021-02-01 | G5: =F13 -> 2051-02-01 | H5: =AND(H2>=$F$5,H2<$G$5) -> FALSE | I5: =AND(I2>=$F$5,I2<$G$5) -> TRUE | J5: TRUE | K5: TRUE | L5: TRUE | M5: TRUE | N5: TRUE | O5: TRUE | P5: TRUE | Q5: TRUE | R5: TRUE | S5: TRUE | T5: TRUE | U5: TRUE | V5: TRUE | W5: TRUE | X5: TRUE | Y5: TRUE | Z5: TRUE | AA5: TRUE | AB5: TRUE | AC5: TRUE | AD5: TRUE | AE5: TRUE | AF5: TRUE | AG5: TRUE | AH5: TRUE | AI5: TRUE | AJ5: TRUE | AK5: TRUE | AL5: TRUE | AM5: TRUE | AN5: TRUE | AO5: TRUE | AP5: TRUE | AQ5: TRUE | AR5: TRUE | AS5: TRUE | AT5: TRUE | AU5: TRUE | AV5: TRUE | AW5: TRUE | AX5: TRUE | AY5: TRUE | AZ5: TRUE | BA5: TRUE | BB5: TRUE | BC5: TRUE | BD5: TRUE | BE5: TRUE | BF5: TRUE | BG5: TRUE | BH5: TRUE | BI5: TRUE | BJ5: TRUE | BK5: TRUE | BL5: TRUE | BM5: TRUE | BN5: TRUE | BO5: TRUE | BP5: TRUE | BQ5: FALSE | BR5: FALSE | BS5: FALSE | BT5: FALSE | BU5: =AND(BU2>=$F$5,BU2<$G$5) -> FALSE | BV5: FALSE | BW5: FALSE | BX5: FALSE | BY5: FALSE | BZ5: FALSE | CA5: FALSE | CB5: FALSE | CC5: FALSE | CD5: FALSE | CE5: FALSE | CF5: FALSE | CG5: FALSE | CH5: FALSE | CI5: FALSE | CJ5: FALSE | CK5: FALSE | CL5: FALSE | CM5: FALSE | CN5: FALSE | CO5: FALSE | CP5: FALSE | CQ5: FALSE | CR5: FALSE | CS5: FALSE | CT5: FALSE | CU5: FALSE | CV5: FALSE | CW5: FALSE | CX5: FALSE | CY5: FALSE | CZ5: FALSE | DA5: FALSE | DB5: FALSE | DC5: FALSE
A7: Non-Financing Inputs
B8: Timing Inputs
C9: Construction Start | E9: Date | F9: 2020-08-01
C10: Construction Period | E10: Periods | F10: 1
C11: Commercial Operation | E11: Date | F11: =EDATE(F9,F10*6) -> 2021-02-01
C12: Operating Period | E12: Years | F12: 30
C13: Decommissioning | E13: Date | F13: =EDATE(F11,F12*12) -> 2051-02-01
B15: Operation Inputs
D16: Capacity | E16: MW | F16: ='Wind Study Back-up (2)'!C2 -> 94
D17: P50 Capacity Factor | E17: % p.a.
F19: 1-yr | G19: 10-yr | H19: 20-yr
D20: Uncertainty Percent | G20: ='Wind Study Back-up (2)'!D24 -> 0.07434616515 | H20: ='Wind Study Back-up (2)'!D25 -> 0.07228915663
D21: Curtailment Percent
D23: Case applied (P50=1, P90=2, P99=3) | E23: Code | F23: 1 | J23: P50
J24: P90
B25: EPC, O&M and PPA contracts | J25: P99
C26: EPC and Development
D27: EPC Cost | E27: Euro/kW | F27: 1200
D28: Development Cost | E28: Euro/kW | F28: =F27*3% -> 36
D29: Owners Cost | E29: Euro/kW | F29: 46
D30: Total Cost | E30: Euro/kW | F30: =SUM(F27:F29) -> 1282
C32: General Inflation Rate | E32: % | F32: 0.025
C34: O&M Cost | F34: Euro/kW/yr | G34: Fixed | H34: Variable | I34: Euro/MWh
D35: Contracted Turbine O&M ($/MWh) | E35: Euro/kW-yr | F35: 18.53841379 | G35: FALSE | H35: =NOT(G35) -> TRUE | I35: =F35*1000/(8760*$F$17) -> 
D36: BOP O&M | E36: Euro/kW-yr | F36: 4.211448549 | G36: FALSE | H36: =NOT(G36) -> TRUE | I36: =F36*1000/(8760*$F$17) -> 
D37: BOP O&M Fee | E37: Euro/kW-yr | F37: 1.346821869 | G37: FALSE | H37: TRUE
D38: Operation Expenses | E38: Euro/kW-yr | F38: 1.44934195 | G38: FALSE | H38: TRUE
D39: Maintenance Expenses | E39: Euro/kW-yr | F39: 1.41528473 | G39: FALSE | H39: TRUE
D40: G&A | E40: Euro/kW-yr | F40: 0.7683580345 | G40: FALSE | H40: TRUE
D41: Asset Management | E41: Euro/kW-yr | F41: 0 | G41: FALSE | H41: TRUE
D42: Community Support | E42: Euro/kW-yr | F42: 0.0439061734 | G42: FALSE | H42: TRUE
D43: 3rd Party Professional Services | E43: Euro/kW-yr | F43: 0.7244518611 | G43: FALSE | H43: TRUE
D44: Landowner and Easement Royalties | E44: Euro/kW-yr | F44: 3.512650602 | G44: FALSE | H44: TRUE
D45: Royalties - based on % Revenues | E45: Euro/kW-yr | F45: 2.373185734 | G45: FALSE | H45: TRUE
D46: Property Taxes | E46: Euro/kW-yr | F46: 10.69409011 | G46: FALSE | H46: TRUE
D47: Environmental Monitoring | E47: Euro/kW-yr | F47: 0 | G47: FALSE | H47: TRUE
D48: Insurance | E48: Euro/kW-yr | F48: 1.56745039 | G48: FALSE | H48: TRUE
D49: Annual Insurance Cash Premium & Origination Fee | E49: Euro/kW-yr | F49: 7.463545105 | G49: FALSE | H49: TRUE
D50: Total Operating Expenses | E50: Euro/kW-yr | F50: =SUM(F35:F49) -> 54.1089489 | I50: =SUM(I35:I49) -> 
C52: PPA Price
D53: Starting Price | E53: USD/MWH | F53: 32.91300051 | G53: Price
D54: Inflate | E54: Switch | F54: TRUE
D55: Target Equity IRR | E55: % | F55: =G55/1000 -> 0.075 | G55: 75
A57: Financing Inputs
B58: Debt Size
C59: DSCR
D60: P50 Minimum | E60: x | F60: =G60/100 -> 1.35 | G60: 135
D61: P90 Minimum | E61: x | F61: =G61/100 -> 1.15 | G61: 115
D62: P99 Minimum | E62: x | F62: =G62/100 -> 1 | G62: 100
C64: Max Debt to Capital | E64: % | F64: =G64/100 -> 0.74 | G64: 74
B66: Debt Funding | E66: Pro-Rata | F66: TRUE
B68: Debt Repayment
D69: Sculpting (Not True is Level Repayment) | E69: Type | F69: TRUE
D70: Maturity | E70: Years | F70: =G70 -> 20 | G70: 20
D71: Grace Period | E71: Periods | F71: 1
D72: Start of Repayment | F72: =EDATE(F11,F71*6) -> 2021-08-01
D73: End of Repayment | F73: =EDATE(F11,F70*12) -> 2041-02-01
B75: Interest Rate and Fee
D76: Base Rate | E76: % p.a. | F76: 0.015
D77: Credit Spread | E77: % p.a. | F77: 0.018
D78: Annual interest rate | E78: % p.a. | F78: =F76+F77 -> 0.033
D80: Up-Front and Commitment Fee | E80: % | F80: 0.019
B82: DSRA, Covenants, Sweeps
A84: Operations and Pre-tax Free Cash Flow
B85: Operations
C86: Capacity and Generation
D87: Capacity | E87: MW | F87: =F16 -> 94 | H87: =$F87*H$5 -> 0 | I87: =$F87*I$5 -> 94 | J87: 94 | K87: 94 | L87: 94 | M87: 94 | N87: 94 | O87: 94 | P87: 94 | Q87: 94 | R87: 94 | S87: 94 | T87: 94 | U87: 94 | V87: 94 | W87: 94 | X87: 94 | Y87: 94 | Z87: 94 | AA87: 94 | AB87: 94 | AC87: 94 | AD87: 94 | AE87: 94 | AF87: 94 | AG87: 94 | AH87: 94 | AI87: 94 | AJ87: 94 | AK87: 94 | AL87: 94 | AM87: 94 | AN87: 94 | AO87: 94 | AP87: 94 | AQ87: 94 | AR87: 94 | AS87: 94 | AT87: 94 | AU87: 94 | AV87: 94 | AW87: 94 | AX87: 94 | AY87: 94 | AZ87: 94 | BA87: 94 | BB87: 94 | BC87: 94 | BD87: 94 | BE87: 94 | BF87: 94 | BG87: 94 | BH87: 94 | BI87: 94 | BJ87: 94 | BK87: 94 | BL87: 94 | BM87: 94 | BN87: 94 | BO87: 94 | BP87: 94 | BQ87: 0 | BR87: 0 | BS87: 0 | BT87: 0 | BU87: =$F87*BU$5 -> 0 | BV87: 0 | BW87: 0 | BX87: 0 | BY87: 0 | BZ87: 0 | CA87: 0 | CB87: 0 | CC87: 0 | CD87: 0 | CE87: 0 | CF87: 0 | CG87: 0 | CH87: 0 | CI87: 0 | CJ87: 0 | CK87: 0 | CL87: 0 | CM87: 0 | CN87: 0 | CO87: 0 | CP87: 0 | CQ87: 0 | CR87: 0 | CS87: 0 | CT87: 0 | CU87: 0 | CV87: 0 | CW87: 0 | CX87: 0 | CY87: 0 | CZ87: 0 | DA87: 0 | DB87: 0 | DC87: 0
D88: P50 Capacity Factor | E88: % | F88: =F17 -> 0 | H88: =$F88*H$5 -> 0 | I88: 0 | J88: 0 | K88: 0 | L88: 0 | M88: 0 | N88: 0 | O88: 0 | P88: 0 | Q88: 0 | R88: 0 | S88: 0 | T88: 0 | U88: 0 | V88: 0 | W88: 0 | X88: 0 | Y88: 0 | Z88: 0 | AA88: 0 | AB88: 0 | AC88: 0 | AD88: 0 | AE88: 0 | AF88: 0 | AG88: 0 | AH88: 0 | AI88: 0 | AJ88: 0 | AK88: 0 | AL88: 0 | AM88: 0 | AN88: 0 | AO88: 0 | AP88: 0 | AQ88: 0 | AR88: 0 | AS88: 0 | AT88: 0 | AU88: 0 | AV88: 0 | AW88: 0 | AX88: 0 | AY88: 0 | AZ88: 0 | BA88: 0 | BB88: 0 | BC88: 0 | BD88: 0 | BE88: 0 | BF88: 0 | BG88: 0 | BH88: 0 | BI88: 0 | BJ88: 0 | BK88: 0 | BL88: 0 | BM88: 0 | BN88: 0 | BO88: 0 | BP88: 0 | BQ88: 0 | BR88: 0 | BS88: 0 | BT88: 0 | BU88: 0 | BV88: 0 | BW88: 0 | BX88: 0 | BY88: 0 | BZ88: 0 | CA88: 0 | CB88: 0 | CC88: 0 | CD88: 0 | CE88: 0 | CF88: 0 | CG88: 0 | CH88: 0 | CI88: 0 | CJ88: 0 | CK88: 0 | CL88: 0 | CM88: 0 | CN88: 0 | CO88: 0 | CP88: 0 | CQ88: 0 | CR88: 0 | CS88: 0 | CT88: 0 | CU88: 0 | CV88: 0 | CW88: 0 | CX88: 0 | CY88: 0 | CZ88: 0 | DA88: 0 | DB88: 0 | DC88: 0
D89: 1-Year Standard Deviation as Percent | E89: % | F89: =F20 -> 0 | H89: 0 | I89: 0 | J89: 0 | K89: 0 | L89: 0 | M89: 0 | N89: 0 | O89: 0 | P89: 0 | Q89: 0 | R89: 0 | S89: 0 | T89: 0 | U89: 0 | V89: 0 | W89: 0 | X89: 0 | Y89: 0 | Z89: 0 | AA89: 0 | AB89: 0 | AC89: 0 | AD89: 0 | AE89: 0 | AF89: 0 | AG89: 0 | AH89: 0 | AI89: 0 | AJ89: 0 | AK89: 0 | AL89: 0 | AM89: 0 | AN89: 0 | AO89: 0 | AP89: 0 | AQ89: 0 | AR89: 0 | AS89: 0 | AT89: 0 | AU89: 0 | AV89: 0 | AW89: 0 | AX89: 0 | AY89: 0 | AZ89: 0 | BA89: 0 | BB89: 0 | BC89: 0 | BD89: 0 | BE89: 0 | BF89: 0 | BG89: 0 | BH89: 0 | BI89: 0 | BJ89: 0 | BK89: 0 | BL89: 0 | BM89: 0 | BN89: 0 | BO89: 0 | BP89: 0 | BQ89: 0 | BR89: 0 | BS89: 0 | BT89: 0 | BU89: 0 | BV89: 0 | BW89: 0 | BX89: 0 | BY89: 0 | BZ89: 0 | CA89: 0 | CB89: 0 | CC89: 0 | CD89: 0 | CE89: 0 | CF89: 0 | CG89: 0 | CH89: 0 | CI89: 0 | CJ89: 0 | CK89: 0 | CL89: 0 | CM89: 0 | CN89: 0 | CO89: 0 | CP89: 0 | CQ89: 0 | CR89: 0 | CS89: 0 | CT89: 0 | CU89: 0 | CV89: 0 | CW89: 0 | CX89: 0 | CY89: 0 | CZ89: 0 | DA89: 0 | DB89: 0 | DC89: 0
D90: P90 Capacity Factor | E90: % | H90: =$F90*H$5 -> 0 | I90: 0 | J90: 0 | K90: 0 | L90: 0 | M90: 0 | N90: 0 | O90: 0 | P90: 0 | Q90: 0 | R90: 0 | S90: 0 | T90: 0 | U90: 0 | V90: 0 | W90: 0 | X90: 0 | Y90: 0 | Z90: 0 | AA90: 0 | AB90: 0 | AC90: 0 | AD90: 0 | AE90: 0 | AF90: 0 | AG90: 0 | AH90: 0 | AI90: 0 | AJ90: 0 | AK90: 0 | AL90: 0 | AM90: 0 | AN90: 0 | AO90: 0 | AP90: 0 | AQ90: 0 | AR90: 0 | AS90: 0 | AT90: 0 | AU90: 0 | AV90: 0 | AW90: 0 | AX90: 0 | AY90: 0 | AZ90: 0 | BA90: 0 | BB90: 0 | BC90: 0 | BD90: 0 | BE90: 0 | BF90: 0 | BG90: 0 | BH90: 0 | BI90: 0 | BJ90: 0 | BK90: 0 | BL90: 0 | BM90: 0 | BN90: 0 | BO90: 0 | BP90: 0 | BQ90: 0 | BR90: 0 | BS90: 0 | BT90: 0 | BU90: 0 | BV90: 0 | BW90: 0 | BX90: 0 | BY90: 0 | BZ90: 0 | CA90: 0 | CB90: 0 | CC90: 0 | CD90: 0 | CE90: 0 | CF90: 0 | CG90: 0 | CH90: 0 | CI90: 0 | CJ90: 0 | CK90: 0 | CL90: 0 | CM90: 0 | CN90: 0 | CO90: 0 | CP90: 0 | CQ90: 0 | CR90: 0 | CS90: 0 | CT90: 0 | CU90: 0 | CV90: 0 | CW90: 0 | CX90: 0 | CY90: 0 | CZ90: 0 | DA90: 0 | DB90: 0 | DC90: 0
D91: P99 Capacity Factor | E91: % | H91: 0 | I91: 0 | J91: 0 | K91: 0 | L91: 0 | M91: 0 | N91: 0 | O91: 0 | P91: 0 | Q91: 0 | R91: 0 | S91: 0 | T91: 0 | U91: 0 | V91: 0 | W91: 0 | X91: 0 | Y91: 0 | Z91: 0 | AA91: 0 | AB91: 0 | AC91: 0 | AD91: 0 | AE91: 0 | AF91: 0 | AG91: 0 | AH91: 0 | AI91: 0 | AJ91: 0 | AK91: 0 | AL91: 0 | AM91: 0 | AN91: 0 | AO91: 0 | AP91: 0 | AQ91: 0 | AR91: 0 | AS91: 0 | AT91: 0 | AU91: 0 | AV91: 0 | AW91: 0 | AX91: 0 | AY91: 0 | AZ91: 0 | BA91: 0 | BB91: 0 | BC91: 0 | BD91: 0 | BE91: 0 | BF91: 0 | BG91: 0 | BH91: 0 | BI91: 0 | BJ91: 0 | BK91: 0 | BL91: 0 | BM91: 0 | BN91: 0 | BO91: 0 | BP91: 0 | BQ91: 0 | BR91: 0 | BS91: 0 | BT91: 0 | BU91: 0 | BV91: 0 | BW91: 0 | BX91: 0 | BY91: 0 | BZ91: 0 | CA91: 0 | CB91: 0 | CC91: 0 | CD91: 0 | CE91: 0 | CF91: 0 | CG91: 0 | CH91: 0 | CI91: 0 | CJ91: 0 | CK91: 0 | CL91: 0 | CM91: 0 | CN91: 0 | CO91: 0 | CP91: 0 | CQ91: 0 | CR91: 0 | CS91: 0 | CT91: 0 | CU91: 0 | CV91: 0 | CW91: 0 | CX91: 0 | CY91: 0 | CZ91: 0 | DA91: 0 | DB91: 0 | DC91: 0
D92: Hours in the period | E92: Hours | H92: =(H3-H2+1)*24 -> 4416 | I92: 4344 | J92: 4416 | K92: 4344 | L92: 4416 | M92: 4344 | N92: 4416 | O92: 4368 | P92: 4416 | Q92: 4344 | R92: 4416 | S92: 4344 | T92: 4416 | U92: 4344 | V92: 4416 | W92: 4368 | X92: 4416 | Y92: 4344 | Z92: 4416 | AA92: 4344 | AB92: 4416 | AC92: 4344 | AD92: 4416 | AE92: 4368 | AF92: 4416 | AG92: 4344 | AH92: 4416 | AI92: 4344 | AJ92: 4416 | AK92: 4344 | AL92: 4416 | AM92: 4368 | AN92: =(AN3-AN2+1)*24 -> 4416 | AO92: 4344 | AP92: 4416 | AQ92: 4344 | AR92: 4416 | AS92: 4344 | AT92: 4416 | AU92: 4368 | AV92: 4416 | AW92: 4344 | AX92: 4416 | AY92: 4344 | AZ92: 4416 | BA92: 4344 | BB92: 4416 | BC92: 4368 | BD92: 4416 | BE92: 4344 | BF92: 4416 | BG92: 4344 | BH92: 4416 | BI92: 4344 | BJ92: 4416 | BK92: 4368 | BL92: 4416 | BM92: 4344 | BN92: 4416 | BO92: 4344 | BP92: 4416 | BQ92: 4344 | BR92: 4416 | BS92: 4368 | BT92: =(BT3-BT2+1)*24 -> 4416 | BU92: 4344 | BV92: 4416 | BW92: 4344 | BX92: 4416 | BY92: 4344 | BZ92: 4416 | CA92: 4368 | CB92: 4416 | CC92: 4344 | CD92: 4416 | CE92: 4344 | CF92: 4416 | CG92: 4344 | CH92: 4416 | CI92: 4368 | CJ92: 4416 | CK92: 4344 | CL92: 4416 | CM92: 4344 | CN92: 4416 | CO92: 4344 | CP92: 4416 | CQ92: 4368 | CR92: 4416 | CS92: 4344 | CT92: 4416 | CU92: 4344 | CV92: 4416 | CW92: 4344 | CX92: 4416 | CY92: 4368 | CZ92: 4416 | DA92: 4344 | DB92: 4416 | DC92: 4344
D94: Generation at P50 | E94: MWH | H94: =H$87*H88*H$92 -> 0 | I94: 0 | J94: 0 | K94: 0 | L94: 0 | M94: 0 | N94: 0 | O94: 0 | P94: 0 | Q94: 0 | R94: 0 | S94: 0 | T94: 0 | U94: 0 | V94: 0 | W94: 0 | X94: 0 | Y94: 0 | Z94: 0 | AA94: 0 | AB94: 0 | AC94: 0 | AD94: 0 | AE94: 0 | AF94: 0 | AG94: 0 | AH94: 0 | AI94: 0 | AJ94: 0 | AK94: 0 | AL94: 0 | AM94: 0 | AN94: =AN$87*AN88*AN$92 -> 0 | AO94: 0 | AP94: 0 | AQ94: 0 | AR94: 0 | AS94: 0 | AT94: 0 | AU94: 0 | AV94: 0 | AW94: 0 | AX94: 0 | AY94: 0 | AZ94: 0 | BA94: 0 | BB94: 0 | BC94: 0 | BD94: 0 | BE94: 0 | BF94: 0 | BG94: 0 | BH94: 0 | BI94: 0 | BJ94: 0 | BK94: 0 | BL94: 0 | BM94: 0 | BN94: 0 | BO94: 0 | BP94: 0 | BQ94: 0 | BR94: 0 | BS94: 0 | BT94: =BT$87*BT88*BT$92 -> 0 | BU94: 0 | BV94: 0 | BW94: 0 | BX94: 0 | BY94: 0 | BZ94: 0 | CA94: 0 | CB94: 0 | CC94: 0 | CD94: 0 | CE94: 0 | CF94: 0 | CG94: 0 | CH94: 0 | CI94: 0 | CJ94: 0 | CK94: 0 | CL94: 0 | CM94: 0 | CN94: 0 | CO94: 0 | CP94: 0 | CQ94: 0 | CR94: 0 | CS94: 0 | CT94: 0 | CU94: 0 | CV94: 0 | CW94: 0 | CX94: 0 | CY94: 0 | CZ94: 0 | DA94: 0 | DB94: 0 | DC94: 0
D95: Generation at P90 | E95: MWH | H95: =H$87*H90*H$92 -> 0 | I95: =I$87*I90*I$92 -> 0 | J95: 0 | K95: 0 | L95: 0 | M95: 0 | N95: 0 | O95: 0 | P95: 0 | Q95: 0 | R95: 0 | S95: 0 | T95: 0 | U95: 0 | V95: 0 | W95: 0 | X95: 0 | Y95: 0 | Z95: 0 | AA95: 0 | AB95: 0 | AC95: 0 | AD95: 0 | AE95: 0 | AF95: 0 | AG95: 0 | AH95: 0 | AI95: 0 | AJ95: 0 | AK95: 0 | AL95: 0 | AM95: 0 | AN95: 0 | AO95: 0 | AP95: 0 | AQ95: 0 | AR95: 0 | AS95: 0 | AT95: 0 | AU95: 0 | AV95: 0 | AW95: 0 | AX95: 0 | AY95: 0 | AZ95: 0 | BA95: 0 | BB95: 0 | BC95: 0 | BD95: 0 | BE95: 0 | BF95: 0 | BG95: 0 | BH95: 0 | BI95: 0 | BJ95: 0 | BK95: 0 | BL95: 0 | BM95: 0 | BN95: 0 | BO95: 0 | BP95: 0 | BQ95: 0 | BR95: 0 | BS95: 0 | BT95: 0 | BU95: =BU$87*BU90*BU$92 -> 0 | BV95: 0 | BW95: 0 | BX95: 0 | BY95: 0 | BZ95: 0 | CA95: 0 | CB95: 0 | CC95: 0 | CD95: 0 | CE95: 0 | CF95: 0 | CG95: 0 | CH95: 0 | CI95: 0 | CJ95: 0 | CK95: 0 | CL95: 0 | CM95: 0 | CN95: 0 | CO95: 0 | CP95: 0 | CQ95: 0 | CR95: 0 | CS95: 0 | CT95: 0 | CU95: 0 | CV95: 0 | CW95: 0 | CX95: 0 | CY95: 0 | CZ95: 0 | DA95: 0 | DB95: 0 | DC95: 0
D96: Generation at P99 | E96: MWH | H96: =H$87*H91*H$92 -> 0 | I96: =I$87*I91*I$92 -> 0 | J96: 0 | K96: 0 | L96: 0 | M96: 0 | N96: 0 | O96: 0 | P96: 0 | Q96: 0 | R96: 0 | S96: 0 | T96: 0 | U96: 0 | V96: 0 | W96: 0 | X96: 0 | Y96: 0 | Z96: 0 | AA96: 0 | AB96: 0 | AC96: 0 | AD96: 0 | AE96: 0 | AF96: 0 | AG96: 0 | AH96: 0 | AI96: 0 | AJ96: 0 | AK96: 0 | AL96: 0 | AM96: 0 | AN96: 0 | AO96: 0 | AP96: 0 | AQ96: 0 | AR96: 0 | AS96: 0 | AT96: 0 | AU96: 0 | AV96: 0 | AW96: 0 | AX96: 0 | AY96: 0 | AZ96: 0 | BA96: 0 | BB96: 0 | BC96: 0 | BD96: 0 | BE96: 0 | BF96: 0 | BG96: 0 | BH96: 0 | BI96: 0 | BJ96: 0 | BK96: 0 | BL96: 0 | BM96: 0 | BN96: 0 | BO96: 0 | BP96: 0 | BQ96: 0 | BR96: 0 | BS96: 0 | BT96: 0 | BU96: =BU$87*BU91*BU$92 -> 0 | BV96: 0 | BW96: 0 | BX96: 0 | BY96: 0 | BZ96: 0 | CA96: 0 | CB96: 0 | CC96: 0 | CD96: 0 | CE96: 0 | CF96: 0 | CG96: 0 | CH96: 0 | CI96: 0 | CJ96: 0 | CK96: 0 | CL96: 0 | CM96: 0 | CN96: 0 | CO96: 0 | CP96: 0 | CQ96: 0 | CR96: 0 | CS96: 0 | CT96: 0 | CU96: 0 | CV96: 0 | CW96: 0 | CX96: 0 | CY96: 0 | CZ96: 0 | DA96: 0 | DB96: 0 | DC96: 0
D97: MWH Applied | E97: MWH | F97: =F23 -> 1 | H97: =INDEX(H94:H96,$F$97) -> 0 | I97: 0 | J97: 0 | K97: 0 | L97: 0 | M97: 0 | N97: 0 | O97: 0 | P97: 0 | Q97: 0 | R97: 0 | S97: 0 | T97: 0 | U97: 0 | V97: 0 | W97: 0 | X97: 0 | Y97: 0 | Z97: 0 | AA97: 0 | AB97: 0 | AC97: 0 | AD97: 0 | AE97: 0 | AF97: 0 | AG97: 0 | AH97: 0 | AI97: 0 | AJ97: 0 | AK97: 0 | AL97: 0 | AM97: 0 | AN97: =INDEX(AN94:AN96,$F$97) -> 0 | AO97: 0 | AP97: 0 | AQ97: 0 | AR97: 0 | AS97: 0 | AT97: 0 | AU97: 0 | AV97: 0 | AW97: 0 | AX97: 0 | AY97: 0 | AZ97: 0 | BA97: 0 | BB97: 0 | BC97: 0 | BD97: 0 | BE97: 0 | BF97: 0 | BG97: 0 | BH97: 0 | BI97: 0 | BJ97: 0 | BK97: 0 | BL97: 0 | BM97: 0 | BN97: 0 | BO97: 0 | BP97: 0 | BQ97: 0 | BR97: 0 | BS97: 0 | BT97: =INDEX(BT94:BT96,$F$97) -> 0 | BU97: 0 | BV97: 0 | BW97: 0 | BX97: 0 | BY97: 0 | BZ97: 0 | CA97: 0 | CB97: 0 | CC97: 0 | CD97: 0 | CE97: 0 | CF97: 0 | CG97: 0 | CH97: 0 | CI97: 0 | CJ97: 0 | CK97: 0 | CL97: 0 | CM97: 0 | CN97: 0 | CO97: 0 | CP97: 0 | CQ97: 0 | CR97: 0 | CS97: 0 | CT97: 0 | CU97: 0 | CV97: 0 | CW97: 0 | CX97: 0 | CY97: 0 | CZ97: =INDEX(CZ94:CZ96,$F$97) -> 0 | DA97: 0 | DB97: 0 | DC97: 0
B99: Construction Costs
D100: EPC Cost | E100: Euro 000's | F100: =F27*$F$87 -> 112800 | H100: =$F100*H$4 -> 112800 | I100: =$F100*I$4 -> 0 | J100: 0 | K100: 0 | L100: 0 | M100: 0 | N100: 0 | O100: 0 | P100: 0 | Q100: 0 | R100: 0 | S100: 0 | T100: 0 | U100: 0 | V100: 0 | W100: 0 | X100: 0 | Y100: 0 | Z100: 0 | AA100: 0 | AB100: 0 | AC100: 0 | AD100: 0 | AE100: 0 | AF100: 0 | AG100: 0 | AH100: 0 | AI100: 0 | AJ100: 0 | AK100: 0 | AL100: 0 | AM100: 0 | AN100: 0 | AO100: 0 | AP100: 0 | AQ100: 0 | AR100: 0 | AS100: 0 | AT100: 0 | AU100: 0 | AV100: 0 | AW100: 0 | AX100: 0 | AY100: 0 | AZ100: 0 | BA100: 0 | BB100: 0 | BC100: 0 | BD100: 0 | BE100: 0 | BF100: 0 | BG100: 0 | BH100: 0 | BI100: 0 | BJ100: 0 | BK100: 0 | BL100: 0 | BM100: 0 | BN100: 0 | BO100: 0 | BP100: 0 | BQ100: 0 | BR100: 0 | BS100: 0 | BT100: 0 | BU100: =$F100*BU$4 -> 0 | BV100: 0 | BW100: 0 | BX100: 0 | BY100: 0 | BZ100: 0 | CA100: 0 | CB100: 0 | CC100: 0 | CD100: 0 | CE100: 0 | CF100: 0 | CG100: 0 | CH100: 0 | CI100: 0 | CJ100: 0 | CK100: 0 | CL100: 0 | CM100: 0 | CN100: 0 | CO100: 0 | CP100: 0 | CQ100: 0 | CR100: 0 | CS100: 0 | CT100: 0 | CU100: 0 | CV100: 0 | CW100: 0 | CX100: 0 | CY100: 0 | CZ100: 0 | DA100: 0 | DB100: 0 | DC100: 0
D101: Development Cost | E101: Euro 000's | F101: =F28*$F$87 -> 3384 | H101: =$F101*H$4 -> 3384 | I101: 0 | J101: 0 | K101: 0 | L101: 0 | M101: 0 | N101: 0 | O101: 0 | P101: 0 | Q101: 0 | R101: 0 | S101: 0 | T101: 0 | U101: 0 | V101: 0 | W101: 0 | X101: 0 | Y101: 0 | Z101: 0 | AA101: 0 | AB101: 0 | AC101: 0 | AD101: 0 | AE101: 0 | AF101: 0 | AG101: 0 | AH101: 0 | AI101: 0 | AJ101: 0 | AK101: 0 | AL101: 0 | AM101: 0 | AN101: 0 | AO101: 0 | AP101: 0 | AQ101: 0 | AR101: 0 | AS101: 0 | AT101: 0 | AU101: 0 | AV101: 0 | AW101: 0 | AX101: 0 | AY101: 0 | AZ101: 0 | BA101: 0 | BB101: 0 | BC101: 0 | BD101: 0 | BE101: 0 | BF101: 0 | BG101: 0 | BH101: 0 | BI101: 0 | BJ101: 0 | BK101: 0 | BL101: 0 | BM101: 0 | BN101: 0 | BO101: 0 | BP101: 0 | BQ101: 0 | BR101: 0 | BS101: 0 | BT101: 0 | BU101: 0 | BV101: 0 | BW101: 0 | BX101: 0 | BY101: 0 | BZ101: 0 | CA101: 0 | CB101: 0 | CC101: 0 | CD101: 0 | CE101: 0 | CF101: 0 | CG101: 0 | CH101: 0 | CI101: 0 | CJ101: 0 | CK101: 0 | CL101: 0 | CM101: 0 | CN101: 0 | CO101: 0 | CP101: 0 | CQ101: 0 | CR101: 0 | CS101: 0 | CT101: 0 | CU101: 0 | CV101: 0 | CW101: 0 | CX101: 0 | CY101: 0 | CZ101: 0 | DA101: 0 | DB101: 0 | DC101: 0
D102: Owners Cost | E102: Euro 000's | F102: =F29*$F$87 -> 4324 | H102: 4324 | I102: 0 | J102: 0 | K102: 0 | L102: 0 | M102: 0 | N102: 0 | O102: 0 | P102: 0 | Q102: 0 | R102: 0 | S102: 0 | T102: 0 | U102: 0 | V102: 0 | W102: 0 | X102: 0 | Y102: 0 | Z102: 0 | AA102: 0 | AB102: 0 | AC102: 0 | AD102: 0 | AE102: 0 | AF102: 0 | AG102: 0 | AH102: 0 | AI102: 0 | AJ102: 0 | AK102: 0 | AL102: 0 | AM102: 0 | AN102: 0 | AO102: 0 | AP102: 0 | AQ102: 0 | AR102: 0 | AS102: 0 | AT102: 0 | AU102: 0 | AV102: 0 | AW102: 0 | AX102: 0 | AY102: 0 | AZ102: 0 | BA102: 0 | BB102: 0 | BC102: 0 | BD102: 0 | BE102: 0 | BF102: 0 | BG102: 0 | BH102: 0 | BI102: 0 | BJ102: 0 | BK102: 0 | BL102: 0 | BM102: 0 | BN102: 0 | BO102: 0 | BP102: 0 | BQ102: 0 | BR102: 0 | BS102: 0 | BT102: 0 | BU102: 0 | BV102: 0 | BW102: 0 | BX102: 0 | BY102: 0 | BZ102: 0 | CA102: 0 | CB102: 0 | CC102: 0 | CD102: 0 | CE102: 0 | CF102: 0 | CG102: 0 | CH102: 0 | CI102: 0 | CJ102: 0 | CK102: 0 | CL102: 0 | CM102: 0 | CN102: 0 | CO102: 0 | CP102: 0 | CQ102: 0 | CR102: 0 | CS102: 0 | CT102: 0 | CU102: 0 | CV102: 0 | CW102: 0 | CX102: 0 | CY102: 0 | CZ102: 0 | DA102: 0 | DB102: 0 | DC102: 0
D103: Total Cost | E103: Euro 000's | F103: =F30*$F$87 -> 120508 | H103: 120508 | I103: 0 | J103: 0 | K103: 0 | L103: 0 | M103: 0 | N103: 0 | O103: 0 | P103: 0 | Q103: 0 | R103: 0 | S103: 0 | T103: 0 | U103: 0 | V103: 0 | W103: 0 | X103: 0 | Y103: 0 | Z103: 0 | AA103: 0 | AB103: 0 | AC103: 0 | AD103: 0 | AE103: 0 | AF103: 0 | AG103: 0 | AH103: 0 | AI103: 0 | AJ103: 0 | AK103: 0 | AL103: 0 | AM103: 0 | AN103: 0 | AO103: 0 | AP103: 0 | AQ103: 0 | AR103: 0 | AS103: 0 | AT103: 0 | AU103: 0 | AV103: 0 | AW103: 0 | AX103: 0 | AY103: 0 | AZ103: 0 | BA103: 0 | BB103: 0 | BC103: 0 | BD103: 0 | BE103: 0 | BF103: 0 | BG103: 0 | BH103: 0 | BI103: 0 | BJ103: 0 | BK103: 0 | BL103: 0 | BM103: 0 | BN103: 0 | BO103: 0 | BP103: 0 | BQ103: 0 | BR103: 0 | BS103: 0 | BT103: 0 | BU103: 0 | BV103: 0 | BW103: 0 | BX103: 0 | BY103: 0 | BZ103: 0 | CA103: 0 | CB103: 0 | CC103: 0 | CD103: 0 | CE103: 0 | CF103: 0 | CG103: 0 | CH103: 0 | CI103: 0 | CJ103: 0 | CK103: 0 | CL103: 0 | CM103: 0 | CN103: 0 | CO103: 0 | CP103: 0 | CQ103: 0 | CR103: 0 | CS103: 0 | CT103: 0 | CU103: 0 | CV103: 0 | CW103: 0 | CX103: 0 | CY103: 0 | CZ103: 0 | DA103: 0 | DB103: 0 | DC103: 0
B105: Operations and Maintenance Cost
D106: Real Variable Cost per MWH | E106: Euro/MWH | H106: =$F$106*H5 -> 0 | I106: 0 | J106: 0 | K106: 0 | L106: 0 | M106: 0 | N106: 0 | O106: 0 | P106: 0 | Q106: 0 | R106: 0 | S106: 0 | T106: 0 | U106: 0 | V106: 0 | W106: 0 | X106: 0 | Y106: 0 | Z106: 0 | AA106: 0 | AB106: 0 | AC106: 0 | AD106: 0 | AE106: 0 | AF106: 0 | AG106: 0 | AH106: 0 | AI106: 0 | AJ106: 0 | AK106: 0 | AL106: 0 | AM106: 0 | AN106: =$F$106*AN5 -> 0 | AO106: 0 | AP106: 0 | AQ106: 0 | AR106: 0 | AS106: 0 | AT106: 0 | AU106: 0 | AV106: 0 | AW106: 0 | AX106: 0 | AY106: 0 | AZ106: 0 | BA106: 0 | BB106: 0 | BC106: 0 | BD106: 0 | BE106: 0 | BF106: 0 | BG106: 0 | BH106: 0 | BI106: 0 | BJ106: 0 | BK106: 0 | BL106: 0 | BM106: 0 | BN106: 0 | BO106: 0 | BP106: 0 | BQ106: 0 | BR106: 0 | BS106: 0 | BT106: =$F$106*BT5 -> 0 | BU106: 0 | BV106: 0 | BW106: 0 | BX106: 0 | BY106: 0 | BZ106: 0 | CA106: 0 | CB106: 0 | CC106: 0 | CD106: 0 | CE106: 0 | CF106: 0 | CG106: 0 | CH106: 0 | CI106: 0 | CJ106: 0 | CK106: 0 | CL106: 0 | CM106: 0 | CN106: 0 | CO106: 0 | CP106: 0 | CQ106: 0 | CR106: 0 | CS106: 0 | CT106: 0 | CU106: 0 | CV106: 0 | CW106: 0 | CX106: 0 | CY106: 0 | CZ106: 0 | DA106: 0 | DB106: 0 | DC106: 0
D107: Real Fixed Cost per kW-year | E107: Euro/kW-yr | H107: =$F$107/2*H5 -> 0 | I107: 0 | J107: 0 | K107: 0 | L107: 0 | M107: 0 | N107: 0 | O107: 0 | P107: 0 | Q107: 0 | R107: 0 | S107: 0 | T107: 0 | U107: 0 | V107: 0 | W107: 0 | X107: 0 | Y107: 0 | Z107: 0 | AA107: 0 | AB107: 0 | AC107: 0 | AD107: 0 | AE107: 0 | AF107: 0 | AG107: 0 | AH107: 0 | AI107: 0 | AJ107: 0 | AK107: 0 | AL107: 0 | AM107: 0 | AN107: =$F$107/2*AN5 -> 0 | AO107: 0 | AP107: 0 | AQ107: 0 | AR107: 0 | AS107: 0 | AT107: 0 | AU107: 0 | AV107: 0 | AW107: 0 | AX107: 0 | AY107: 0 | AZ107: 0 | BA107: 0 | BB107: 0 | BC107: 0 | BD107: 0 | BE107: 0 | BF107: 0 | BG107: 0 | BH107: 0 | BI107: 0 | BJ107: 0 | BK107: 0 | BL107: 0 | BM107: 0 | BN107: 0 | BO107: 0 | BP107: 0 | BQ107: 0 | BR107: 0 | BS107: 0 | BT107: =$F$107/2*BT5 -> 0 | BU107: 0 | BV107: 0 | BW107: 0 | BX107: 0 | BY107: 0 | BZ107: 0 | CA107: 0 | CB107: 0 | CC107: 0 | CD107: 0 | CE107: 0 | CF107: 0 | CG107: 0 | CH107: 0 | CI107: 0 | CJ107: 0 | CK107: 0 | CL107: 0 | CM107: 0 | CN107: 0 | CO107: 0 | CP107: 0 | CQ107: 0 | CR107: 0 | CS107: 0 | CT107: 0 | CU107: 0 | CV107: 0 | CW107: 0 | CX107: 0 | CY107: 0 | CZ107: 0 | DA107: 0 | DB107: 0 | DC107: 0
D109: Inflation Rate | E109: % | F109: =F32 -> 0.025 | H109: =(1+$F$109)^(1/2)-1 -> 0.01242283657 | I109: =(1+$F$109)^(1/2)-1 -> 0.01242283657 | J109: 0.01242283657 | K109: 0.01242283657 | L109: 0.01242283657 | M109: 0.01242283657 | N109: 0.01242283657 | O109: 0.01242283657 | P109: 0.01242283657 | Q109: 0.01242283657 | R109: 0.01242283657 | S109: 0.01242283657 | T109: 0.01242283657 | U109: 0.01242283657 | V109: 0.01242283657 | W109: 0.01242283657 | X109: 0.01242283657 | Y109: 0.01242283657 | Z109: 0.01242283657 | AA109: 0.01242283657 | AB109: 0.01242283657 | AC109: 0.01242283657 | AD109: 0.01242283657 | AE109: 0.01242283657 | AF109: 0.01242283657 | AG109: 0.01242283657 | AH109: 0.01242283657 | AI109: 0.01242283657 | AJ109: 0.01242283657 | AK109: 0.01242283657 | AL109: 0.01242283657 | AM109: 0.01242283657 | AN109: 0.01242283657 | AO109: 0.01242283657 | AP109: 0.01242283657 | AQ109: 0.01242283657 | AR109: 0.01242283657 | AS109: 0.01242283657 | AT109: 0.01242283657 | AU109: 0.01242283657 | AV109: 0.01242283657 | AW109: 0.01242283657 | AX109: 0.01242283657 | AY109: 0.01242283657 | AZ109: 0.01242283657 | BA109: 0.01242283657 | BB109: 0.01242283657 | BC109: 0.01242283657 | BD109: 0.01242283657 | BE109: 0.01242283657 | BF109: 0.01242283657 | BG109: 0.01242283657 | BH109: 0.01242283657 | BI109: 0.01242283657 | BJ109: 0.01242283657 | BK109: 0.01242283657 | BL109: 0.01242283657 | BM109: 0.01242283657 | BN109: 0.01242283657 | BO109: 0.01242283657 | BP109: 0.01242283657 | BQ109: 0.01242283657 | BR109: 0.01242283657 | BS109: 0.01242283657 | BT109: 0.01242283657 | BU109: =(1+$F$109)^(1/2)-1 -> 0.01242283657 | BV109: 0.01242283657 | BW109: 0.01242283657 | BX109: 0.01242283657 | BY109: 0.01242283657 | BZ109: 0.01242283657 | CA109: 0.01242283657 | CB109: 0.01242283657 | CC109: 0.01242283657 | CD109: 0.01242283657 | CE109: 0.01242283657 | CF109: 0.01242283657 | CG109: 0.01242283657 | CH109: 0.01242283657 | CI109: 0.01242283657 | CJ109: 0.01242283657 | CK109: 0.01242283657 | CL109: 0.01242283657 | CM109: 0.01242283657 | CN109: 0.01242283657 | CO109: 0.01242283657 | CP109: 0.01242283657 | CQ109: 0.01242283657 | CR109: 0.01242283657 | CS109: 0.01242283657 | CT109: 0.01242283657 | CU109: 0.01242283657 | CV109: 0.01242283657 | CW109: 0.01242283657 | CX109: 0.01242283657 | CY109: 0.01242283657 | CZ109: 0.01242283657 | DA109: 0.01242283657 | DB109: 0.01242283657 | DC109: 0.01242283657
D110: Inflation Index | E110: Index | G110: 1 | H110: =G110*(1+H109*H5) -> 1 | I110: 1.012422837 | J110: 1.025 | K110: 1.037733407 | L110: 1.050625 | M110: 1.063676743 | N110: 1.076890625 | O110: 1.090268661 | P110: 1.103812891 | Q110: 1.117525378 | R110: 1.131408213 | S110: 1.145463512 | T110: 1.159693418 | U110: 1.1741001 | V110: 1.188685754 | W110: 1.203452603 | X110: 1.218402898 | Y110: 1.233538918 | Z110: 1.24886297 | AA110: 1.264377391 | AB110: 1.280084544 | AC110: 1.295986825 | AD110: 1.312086658 | AE110: 1.328386496 | AF110: 1.344888824 | AG110: 1.361596158 | AH110: 1.378511045 | AI110: 1.395636062 | AJ110: 1.412973821 | AK110: 1.430526964 | AL110: 1.448298166 | AM110: 1.466290138 | AN110: =AM110*(1+AN109*AN5) -> 1.484505621 | AO110: 1.502947391 | AP110: 1.521618261 | AQ110: 1.540521076 | AR110: 1.559658718 | AS110: 1.579034103 | AT110: 1.598650186 | AU110: 1.618509956 | AV110: 1.63861644 | AW110: 1.658972705 | AX110: 1.679581851 | AY110: 1.700447022 | AZ110: 1.721571398 | BA110: 1.742958198 | BB110: 1.764610683 | BC110: 1.786532153 | BD110: 1.80872595 | BE110: 1.831195456 | BF110: 1.853944098 | BG110: 1.876975343 | BH110: 1.900292701 | BI110: 1.923899726 | BJ110: 1.947800018 | BK110: 1.97199722 | BL110: 1.996495019 | BM110: 2.02129715 | BN110: 2.046407394 | BO110: 2.071829579 | BP110: 2.097567579 | BQ110: 2.097567579 | BR110: 2.097567579 | BS110: 2.097567579 | BT110: =BS110*(1+BT109*BT5) -> 2.097567579 | BU110: 2.097567579 | BV110: 2.097567579 | BW110: 2.097567579 | BX110: 2.097567579 | BY110: 2.097567579 | BZ110: 2.097567579 | CA110: 2.097567579 | CB110: 2.097567579 | CC110: 2.097567579 | CD110: 2.097567579 | CE110: 2.097567579 | CF110: 2.097567579 | CG110: 2.097567579 | CH110: 2.097567579 | CI110: 2.097567579 | CJ110: 2.097567579 | CK110: 2.097567579 | CL110: 2.097567579 | CM110: 2.097567579 | CN110: 2.097567579 | CO110: 2.097567579 | CP110: 2.097567579 | CQ110: 2.097567579 | CR110: 2.097567579 | CS110: 2.097567579 | CT110: 2.097567579 | CU110: 2.097567579 | CV110: 2.097567579 | CW110: 2.097567579 | CX110: 2.097567579 | CY110: 2.097567579 | CZ110: =CY110*(1+CZ109*CZ5) -> 2.097567579 | DA110: 2.097567579 | DB110: 2.097567579 | DC110: 2.097567579
D112: Nominal Variable Cost per MWH | H112: =H106*H110 -> 0 | I112: =I106*I110 -> 0 | J112: 0 | K112: 0 | L112: 0 | M112: 0 | N112: 0 | O112: 0 | P112: 0 | Q112: 0 | R112: 0 | S112: 0 | T112: 0 | U112: 0 | V112: 0 | W112: 0 | X112: 0 | Y112: 0 | Z112: 0 | AA112: 0 | AB112: 0 | AC112: 0 | AD112: 0 | AE112: 0 | AF112: 0 | AG112: 0 | AH112: 0 | AI112: 0 | AJ112: 0 | AK112: 0 | AL112: 0 | AM112: 0 | AN112: 0 | AO112: 0 | AP112: 0 | AQ112: 0 | AR112: 0 | AS112: 0 | AT112: 0 | AU112: 0 | AV112: 0 | AW112: 0 | AX112: 0 | AY112: 0 | AZ112: 0 | BA112: 0 | BB112: 0 | BC112: 0 | BD112: 0 | BE112: 0 | BF112: 0 | BG112: 0 | BH112: 0 | BI112: 0 | BJ112: 0 | BK112: 0 | BL112: 0 | BM112: 0 | BN112: 0 | BO112: 0 | BP112: 0 | BQ112: 0 | BR112: 0 | BS112: 0 | BT112: 0 | BU112: =BU106*BU110 -> 0 | BV112: 0 | BW112: 0 | BX112: 0 | BY112: 0 | BZ112: 0 | CA112: 0 | CB112: 0 | CC112: 0 | CD112: 0 | CE112: 0 | CF112: 0 | CG112: 0 | CH112: 0 | CI112: 0 | CJ112: 0 | CK112: 0 | CL112: 0 | CM112: 0 | CN112: 0 | CO112: 0 | CP112: 0 | CQ112: 0 | CR112: 0 | CS112: 0 | CT112: 0 | CU112: 0 | CV112: 0 | CW112: 0 | CX112: 0 | CY112: 0 | CZ112: 0 | DA112: 0 | DB112: 0 | DC112: 0
D113: Nominal Fixed Cost per kW-year | H113: =H107*H110 -> 0 | I113: =I107*I110 -> 0 | J113: 0 | K113: 0 | L113: 0 | M113: 0 | N113: 0 | O113: 0 | P113: 0 | Q113: 0 | R113: 0 | S113: 0 | T113: 0 | U113: 0 | V113: 0 | W113: 0 | X113: 0 | Y113: 0 | Z113: 0 | AA113: 0 | AB113: 0 | AC113: 0 | AD113: 0 | AE113: 0 | AF113: 0 | AG113: 0 | AH113: 0 | AI113: 0 | AJ113: 0 | AK113: 0 | AL113: 0 | AM113: 0 | AN113: 0 | AO113: 0 | AP113: 0 | AQ113: 0 | AR113: 0 | AS113: 0 | AT113: 0 | AU113: 0 | AV113: 0 | AW113: 0 | AX113: 0 | AY113: 0 | AZ113: 0 | BA113: 0 | BB113: 0 | BC113: 0 | BD113: 0 | BE113: 0 | BF113: 0 | BG113: 0 | BH113: 0 | BI113: 0 | BJ113: 0 | BK113: 0 | BL113: 0 | BM113: 0 | BN113: 0 | BO113: 0 | BP113: 0 | BQ113: 0 | BR113: 0 | BS113: 0 | BT113: 0 | BU113: =BU107*BU110 -> 0 | BV113: 0 | BW113: 0 | BX113: 0 | BY113: 0 | BZ113: 0 | CA113: 0 | CB113: 0 | CC113: 0 | CD113: 0 | CE113: 0 | CF113: 0 | CG113: 0 | CH113: 0 | CI113: 0 | CJ113: 0 | CK113: 0 | CL113: 0 | CM113: 0 | CN113: 0 | CO113: 0 | CP113: 0 | CQ113: 0 | CR113: 0 | CS113: 0 | CT113: 0 | CU113: 0 | CV113: 0 | CW113: 0 | CX113: 0 | CY113: 0 | CZ113: 0 | DA113: 0 | DB113: 0 | DC113: 0
D115: Inflated Variable Cost | E115: Euro 000's | H115: =H97*H106*H110/1000 -> 0 | I115: 0 | J115: 0 | K115: 0 | L115: 0 | M115: 0 | N115: 0 | O115: 0 | P115: 0 | Q115: 0 | R115: 0 | S115: 0 | T115: 0 | U115: 0 | V115: 0 | W115: 0 | X115: 0 | Y115: 0 | Z115: 0 | AA115: 0 | AB115: 0 | AC115: 0 | AD115: 0 | AE115: 0 | AF115: 0 | AG115: 0 | AH115: 0 | AI115: 0 | AJ115: 0 | AK115: 0 | AL115: 0 | AM115: 0 | AN115: =AN97*AN106*AN110/1000 -> 0 | AO115: 0 | AP115: 0 | AQ115: 0 | AR115: 0 | AS115: 0 | AT115: 0 | AU115: 0 | AV115: 0 | AW115: 0 | AX115: 0 | AY115: 0 | AZ115: 0 | BA115: 0 | BB115: 0 | BC115: 0 | BD115: 0 | BE115: 0 | BF115: 0 | BG115: 0 | BH115: 0 | BI115: 0 | BJ115: 0 | BK115: 0 | BL115: 0 | BM115: 0 | BN115: 0 | BO115: 0 | BP115: 0 | BQ115: 0 | BR115: 0 | BS115: 0 | BT115: =BT97*BT106*BT110/1000 -> 0 | BU115: 0 | BV115: 0 | BW115: 0 | BX115: 0 | BY115: 0 | BZ115: 0 | CA115: 0 | CB115: 0 | CC115: 0 | CD115: 0 | CE115: 0 | CF115: 0 | CG115: 0 | CH115: 0 | CI115: 0 | CJ115: 0 | CK115: 0 | CL115: 0 | CM115: 0 | CN115: 0 | CO115: 0 | CP115: 0 | CQ115: 0 | CR115: 0 | CS115: 0 | CT115: 0 | CU115: 0 | CV115: 0 | CW115: 0 | CX115: 0 | CY115: 0 | CZ115: 0 | DA115: 0 | DB115: 0 | DC115: 0
D116: Inflated Fixed Cost | E116: Euro 000's | H116: =H87*H107*H110 -> 0 | I116: 0 | J116: 0 | K116: 0 | L116: 0 | M116: 0 | N116: 0 | O116: 0 | P116: 0 | Q116: 0 | R116: 0 | S116: 0 | T116: 0 | U116: 0 | V116: 0 | W116: 0 | X116: 0 | Y116: 0 | Z116: 0 | AA116: 0 | AB116: 0 | AC116: 0 | AD116: 0 | AE116: 0 | AF116: 0 | AG116: 0 | AH116: 0 | AI116: 0 | AJ116: 0 | AK116: 0 | AL116: 0 | AM116: 0 | AN116: =AN87*AN107*AN110 -> 0 | AO116: 0 | AP116: 0 | AQ116: 0 | AR116: 0 | AS116: 0 | AT116: 0 | AU116: 0 | AV116: 0 | AW116: 0 | AX116: 0 | AY116: 0 | AZ116: 0 | BA116: 0 | BB116: 0 | BC116: 0 | BD116: 0 | BE116: 0 | BF116: 0 | BG116: 0 | BH116: 0 | BI116: 0 | BJ116: 0 | BK116: 0 | BL116: 0 | BM116: 0 | BN116: 0 | BO116: 0 | BP116: 0 | BQ116: 0 | BR116: 0 | BS116: 0 | BT116: =BT87*BT107*BT110 -> 0 | BU116: 0 | BV116: 0 | BW116: 0 | BX116: 0 | BY116: 0 | BZ116: 0 | CA116: 0 | CB116: 0 | CC116: 0 | CD116: 0 | CE116: 0 | CF116: 0 | CG116: 0 | CH116: 0 | CI116: 0 | CJ116: 0 | CK116: 0 | CL116: 0 | CM116: 0 | CN116: 0 | CO116: 0 | CP116: 0 | CQ116: 0 | CR116: 0 | CS116: 0 | CT116: 0 | CU116: 0 | CV116: 0 | CW116: 0 | CX116: 0 | CY116: 0 | CZ116: 0 | DA116: 0 | DB116: 0 | DC116: 0
D117: Total O&M Cost | E117: Euro 000's | H117: =SUM(H115:H116) -> 0 | I117: =SUM(I115:I116) -> 0 | J117: 0 | K117: 0 | L117: 0 | M117: 0 | N117: 0 | O117: 0 | P117: 0 | Q117: 0 | R117: 0 | S117: 0 | T117: 0 | U117: 0 | V117: 0 | W117: 0 | X117: 0 | Y117: 0 | Z117: 0 | AA117: 0 | AB117: 0 | AC117: 0 | AD117: 0 | AE117: 0 | AF117: 0 | AG117: 0 | AH117: 0 | AI117: 0 | AJ117: 0 | AK117: 0 | AL117: 0 | AM117: 0 | AN117: 0 | AO117: 0 | AP117: 0 | AQ117: 0 | AR117: 0 | AS117: 0 | AT117: 0 | AU117: 0 | AV117: 0 | AW117: 0 | AX117: 0 | AY117: 0 | AZ117: 0 | BA117: 0 | BB117: 0 | BC117: 0 | BD117: 0 | BE117: 0 | BF117: 0 | BG117: 0 | BH117: 0 | BI117: 0 | BJ117: 0 | BK117: 0 | BL117: 0 | BM117: 0 | BN117: 0 | BO117: 0 | BP117: 0 | BQ117: 0 | BR117: 0 | BS117: 0 | BT117: 0 | BU117: =SUM(BU115:BU116) -> 0 | BV117: 0 | BW117: 0 | BX117: 0 | BY117: 0 | BZ117: 0 | CA117: 0 | CB117: 0 | CC117: 0 | CD117: 0 | CE117: 0 | CF117: 0 | CG117: 0 | CH117: 0 | CI117: 0 | CJ117: 0 | CK117: 0 | CL117: 0 | CM117: 0 | CN117: 0 | CO117: 0 | CP117: 0 | CQ117: 0 | CR117: 0 | CS117: 0 | CT117: 0 | CU117: 0 | CV117: 0 | CW117: 0 | CX117: 0 | CY117: 0 | CZ117: 0 | DA117: 0 | DB117: 0 | DC117: 0
B119: Revenues and PPA
C120: PPA Contract
D121: Base Price | E121: USD/MWH | F121: =F53 -> 32.91300051 | H121: =$F$121*H5 -> 0 | I121: 32.91300051 | J121: 32.91300051 | K121: 32.91300051 | L121: 32.91300051 | M121: 32.91300051 | N121: 32.91300051 | O121: 32.91300051 | P121: 32.91300051 | Q121: 32.91300051 | R121: 32.91300051 | S121: 32.91300051 | T121: 32.91300051 | U121: 32.91300051 | V121: 32.91300051 | W121: 32.91300051 | X121: 32.91300051 | Y121: 32.91300051 | Z121: 32.91300051 | AA121: 32.91300051 | AB121: 32.91300051 | AC121: 32.91300051 | AD121: 32.91300051 | AE121: 32.91300051 | AF121: 32.91300051 | AG121: 32.91300051 | AH121: 32.91300051 | AI121: 32.91300051 | AJ121: 32.91300051 | AK121: 32.91300051 | AL121: 32.91300051 | AM121: 32.91300051 | AN121: =$F$121*AN5 -> 32.91300051 | AO121: 32.91300051 | AP121: 32.91300051 | AQ121: 32.91300051 | AR121: 32.91300051 | AS121: 32.91300051 | AT121: 32.91300051 | AU121: 32.91300051 | AV121: 32.91300051 | AW121: 32.91300051 | AX121: 32.91300051 | AY121: 32.91300051 | AZ121: 32.91300051 | BA121: 32.91300051 | BB121: 32.91300051 | BC121: 32.91300051 | BD121: 32.91300051 | BE121: 32.91300051 | BF121: 32.91300051 | BG121: 32.91300051 | BH121: 32.91300051 | BI121: 32.91300051 | BJ121: 32.91300051 | BK121: 32.91300051 | BL121: 32.91300051 | BM121: 32.91300051 | BN121: 32.91300051 | BO121: 32.91300051 | BP121: 32.91300051 | BQ121: 0 | BR121: 0 | BS121: 0 | BT121: =$F$121*BT5 -> 0 | BU121: 0 | BV121: 0 | BW121: 0 | BX121: 0 | BY121: 0 | BZ121: 0 | CA121: 0 | CB121: 0 | CC121: 0 | CD121: 0 | CE121: 0 | CF121: 0 | CG121: 0 | CH121: 0 | CI121: 0 | CJ121: 0 | CK121: 0 | CL121: 0 | CM121: 0 | CN121: 0 | CO121: 0 | CP121: 0 | CQ121: 0 | CR121: 0 | CS121: 0 | CT121: 0 | CU121: 0 | CV121: 0 | CW121: 0 | CX121: 0 | CY121: 0 | CZ121: 0 | DA121: 0 | DB121: 0 | DC121: 0
D122: Inflation Index/Applied | E122: Index | F122: =F54 -> TRUE | H122: =IF($F$122,H110,1) -> 1 | I122: =IF($F$122,I110,1) -> 1.012422837 | J122: 1.025 | K122: 1.037733407 | L122: 1.050625 | M122: 1.063676743 | N122: 1.076890625 | O122: 1.090268661 | P122: 1.103812891 | Q122: 1.117525378 | R122: 1.131408213 | S122: 1.145463512 | T122: 1.159693418 | U122: 1.1741001 | V122: 1.188685754 | W122: 1.203452603 | X122: 1.218402898 | Y122: 1.233538918 | Z122: 1.24886297 | AA122: 1.264377391 | AB122: 1.280084544 | AC122: 1.295986825 | AD122: 1.312086658 | AE122: 1.328386496 | AF122: 1.344888824 | AG122: 1.361596158 | AH122: 1.378511045 | AI122: 1.395636062 | AJ122: 1.412973821 | AK122: 1.430526964 | AL122: 1.448298166 | AM122: 1.466290138 | AN122: 1.484505621 | AO122: 1.502947391 | AP122: 1.521618261 | AQ122: 1.540521076 | AR122: 1.559658718 | AS122: 1.579034103 | AT122: 1.598650186 | AU122: 1.618509956 | AV122: 1.63861644 | AW122: 1.658972705 | AX122: 1.679581851 | AY122: 1.700447022 | AZ122: 1.721571398 | BA122: 1.742958198 | BB122: 1.764610683 | BC122: 1.786532153 | BD122: 1.80872595 | BE122: 1.831195456 | BF122: 1.853944098 | BG122: 1.876975343 | BH122: 1.900292701 | BI122: 1.923899726 | BJ122: 1.947800018 | BK122: 1.97199722 | BL122: 1.996495019 | BM122: 2.02129715 | BN122: 2.046407394 | BO122: 2.071829579 | BP122: 2.097567579 | BQ122: 2.097567579 | BR122: 2.097567579 | BS122: 2.097567579 | BT122: 2.097567579 | BU122: =IF($F$122,BU110,1) -> 2.097567579 | BV122: 2.097567579 | BW122: 2.097567579 | BX122: 2.097567579 | BY122: 2.097567579 | BZ122: 2.097567579 | CA122: 2.097567579 | CB122: 2.097567579 | CC122: 2.097567579 | CD122: 2.097567579 | CE122: 2.097567579 | CF122: 2.097567579 | CG122: 2.097567579 | CH122: 2.097567579 | CI122: 2.097567579 | CJ122: 2.097567579 | CK122: 2.097567579 | CL122: 2.097567579 | CM122: 2.097567579 | CN122: 2.097567579 | CO122: 2.097567579 | CP122: 2.097567579 | CQ122: 2.097567579 | CR122: 2.097567579 | CS122: 2.097567579 | CT122: 2.097567579 | CU122: 2.097567579 | CV122: 2.097567579 | CW122: 2.097567579 | CX122: 2.097567579 | CY122: 2.097567579 | CZ122: 2.097567579 | DA122: 2.097567579 | DB122: 2.097567579 | DC122: 2.097567579
D123: Inflated Price | E123: USD/MWH | H123: =H121*H122 -> 0 | I123: =I121*I122 -> 33.32187334 | J123: 33.73582553 | K123: 34.15492017 | L123: 34.57922116 | M123: 35.00879318 | N123: 35.44370169 | O123: 35.88401301 | P123: 36.32979424 | Q123: 36.78111333 | R123: 37.23803909 | S123: 37.70064116 | T123: 38.16899007 | U123: 38.64315719 | V123: 39.12321482 | W123: 39.60923612 | X123: 40.10129519 | Y123: 40.59946703 | Z123: 41.10382757 | AA123: 41.6144537 | AB123: 42.13142326 | AC123: 42.65481505 | AD123: 43.18470884 | AE123: 43.72118542 | AF123: 44.26432656 | AG123: 44.81421506 | AH123: 45.37093473 | AI123: 45.93457043 | AJ123: 46.50520809 | AK123: 47.08293469 | AL123: 47.6678383 | AM123: 48.26000806 | AN123: 48.85953425 | AO123: 49.46650826 | AP123: 50.08102261 | AQ123: 50.70317097 | AR123: 51.33304818 | AS123: 51.97075024 | AT123: 52.61637438 | AU123: 53.270019 | AV123: 53.93178374 | AW123: 54.60176947 | AX123: 55.28007833 | AY123: 55.96681371 | AZ123: 56.66208029 | BA123: 57.36598405 | BB123: 58.0786323 | BC123: 58.80013366 | BD123: 59.53059811 | BE123: 60.270137 | BF123: 61.01886306 | BG123: 61.77689042 | BH123: 62.54433464 | BI123: 63.32131268 | BJ123: 64.107943 | BK123: 64.9043455 | BL123: 65.71064158 | BM123: 66.52695414 | BN123: 67.35340762 | BO123: 68.19012799 | BP123: 69.03724281 | BQ123: 0 | BR123: 0 | BS123: 0 | BT123: 0 | BU123: =BU121*BU122 -> 0 | BV123: 0 | BW123: 0 | BX123: 0 | BY123: 0 | BZ123: 0 | CA123: 0 | CB123: 0 | CC123: 0 | CD123: 0 | CE123: 0 | CF123: 0 | CG123: 0 | CH123: 0 | CI123: 0 | CJ123: 0 | CK123: 0 | CL123: 0 | CM123: 0 | CN123: 0 | CO123: 0 | CP123: 0 | CQ123: 0 | CR123: 0 | CS123: 0 | CT123: 0 | CU123: 0 | CV123: 0 | CW123: 0 | CX123: 0 | CY123: 0 | CZ123: 0 | DA123: 0 | DB123: 0 | DC123: 0
D124: Revenues | E124: Euro 000's | H124: =H123*H97/1000 -> 0 | I124: 0 | J124: 0 | K124: 0 | L124: 0 | M124: 0 | N124: 0 | O124: 0 | P124: 0 | Q124: 0 | R124: 0 | S124: 0 | T124: 0 | U124: 0 | V124: 0 | W124: 0 | X124: 0 | Y124: 0 | Z124: 0 | AA124: 0 | AB124: 0 | AC124: 0 | AD124: 0 | AE124: 0 | AF124: 0 | AG124: 0 | AH124: 0 | AI124: 0 | AJ124: 0 | AK124: 0 | AL124: 0 | AM124: 0 | AN124: =AN123*AN97/1000 -> 0 | AO124: 0 | AP124: 0 | AQ124: 0 | AR124: 0 | AS124: 0 | AT124: 0 | AU124: 0 | AV124: 0 | AW124: 0 | AX124: 0 | AY124: 0 | AZ124: 0 | BA124: 0 | BB124: 0 | BC124: 0 | BD124: 0 | BE124: 0 | BF124: 0 | BG124: 0 | BH124: 0 | BI124: 0 | BJ124: 0 | BK124: 0 | BL124: 0 | BM124: 0 | BN124: 0 | BO124: 0 | BP124: 0 | BQ124: 0 | BR124: 0 | BS124: 0 | BT124: =BT123*BT97/1000 -> 0 | BU124: 0 | BV124: 0 | BW124: 0 | BX124: 0 | BY124: 0 | BZ124: 0 | CA124: 0 | CB124: 0 | CC124: 0 | CD124: 0 | CE124: 0 | CF124: 0 | CG124: 0 | CH124: 0 | CI124: 0 | CJ124: 0 | CK124: 0 | CL124: 0 | CM124: 0 | CN124: 0 | CO124: 0 | CP124: 0 | CQ124: 0 | CR124: 0 | CS124: 0 | CT124: 0 | CU124: 0 | CV124: 0 | CW124: 0 | CX124: 0 | CY124: 0 | CZ124: =CZ123*CZ97/1000 -> 0 | DA124: 0 | DB124: 0 | DC124: 0
A126: Pre-tax Cash Flow and IRR
D127: Revenues | E127: Euro 000's | H127: =H124 -> 0 | I127: =I124 -> 0 | J127: 0 | K127: 0 | L127: 0 | M127: 0 | N127: 0 | O127: 0 | P127: 0 | Q127: 0 | R127: 0 | S127: 0 | T127: 0 | U127: 0 | V127: 0 | W127: 0 | X127: 0 | Y127: 0 | Z127: 0 | AA127: 0 | AB127: 0 | AC127: 0 | AD127: 0 | AE127: 0 | AF127: 0 | AG127: 0 | AH127: 0 | AI127: 0 | AJ127: 0 | AK127: 0 | AL127: 0 | AM127: 0 | AN127: 0 | AO127: 0 | AP127: 0 | AQ127: 0 | AR127: 0 | AS127: 0 | AT127: 0 | AU127: 0 | AV127: 0 | AW127: 0 | AX127: 0 | AY127: 0 | AZ127: 0 | BA127: 0 | BB127: 0 | BC127: 0 | BD127: 0 | BE127: 0 | BF127: 0 | BG127: 0 | BH127: 0 | BI127: 0 | BJ127: 0 | BK127: 0 | BL127: 0 | BM127: 0 | BN127: 0 | BO127: 0 | BP127: 0 | BQ127: 0 | BR127: 0 | BS127: 0 | BT127: 0 | BU127: =BU124 -> 0 | BV127: 0 | BW127: 0 | BX127: 0 | BY127: 0 | BZ127: 0 | CA127: 0 | CB127: 0 | CC127: 0 | CD127: 0 | CE127: 0 | CF127: 0 | CG127: 0 | CH127: 0 | CI127: 0 | CJ127: 0 | CK127: 0 | CL127: 0 | CM127: 0 | CN127: 0 | CO127: 0 | CP127: 0 | CQ127: 0 | CR127: 0 | CS127: 0 | CT127: 0 | CU127: 0 | CV127: 0 | CW127: 0 | CX127: 0 | CY127: 0 | CZ127: 0 | DA127: 0 | DB127: 0 | DC127: 0
D128: Total O&M costs | E128: Euro 000's | H128: =H117 -> 0 | I128: =I117 -> 0 | J128: 0 | K128: 0 | L128: 0 | M128: 0 | N128: 0 | O128: 0 | P128: 0 | Q128: 0 | R128: 0 | S128: 0 | T128: 0 | U128: 0 | V128: 0 | W128: 0 | X128: 0 | Y128: 0 | Z128: 0 | AA128: 0 | AB128: 0 | AC128: 0 | AD128: 0 | AE128: 0 | AF128: 0 | AG128: 0 | AH128: 0 | AI128: 0 | AJ128: 0 | AK128: 0 | AL128: 0 | AM128: 0 | AN128: 0 | AO128: 0 | AP128: 0 | AQ128: 0 | AR128: 0 | AS128: 0 | AT128: 0 | AU128: 0 | AV128: 0 | AW128: 0 | AX128: 0 | AY128: 0 | AZ128: 0 | BA128: 0 | BB128: 0 | BC128: 0 | BD128: 0 | BE128: 0 | BF128: 0 | BG128: 0 | BH128: 0 | BI128: 0 | BJ128: 0 | BK128: 0 | BL128: 0 | BM128: 0 | BN128: 0 | BO128: 0 | BP128: 0 | BQ128: 0 | BR128: 0 | BS128: 0 | BT128: 0 | BU128: =BU117 -> 0 | BV128: 0 | BW128: 0 | BX128: 0 | BY128: 0 | BZ128: 0 | CA128: 0 | CB128: 0 | CC128: 0 | CD128: 0 | CE128: 0 | CF128: 0 | CG128: 0 | CH128: 0 | CI128: 0 | CJ128: 0 | CK128: 0 | CL128: 0 | CM128: 0 | CN128: 0 | CO128: 0 | CP128: 0 | CQ128: 0 | CR128: 0 | CS128: 0 | CT128: 0 | CU128: 0 | CV128: 0 | CW128: 0 | CX128: 0 | CY128: 0 | CZ128: 0 | DA128: 0 | DB128: 0 | DC128: 0
D129: EBITDA | E129: Euro 000's | H129: =H127-H128 -> 0 | I129: =I127-I128 -> 0 | J129: 0 | K129: 0 | L129: 0 | M129: 0 | N129: 0 | O129: 0 | P129: 0 | Q129: 0 | R129: 0 | S129: 0 | T129: 0 | U129: 0 | V129: 0 | W129: 0 | X129: 0 | Y129: 0 | Z129: 0 | AA129: 0 | AB129: 0 | AC129: 0 | AD129: 0 | AE129: 0 | AF129: 0 | AG129: 0 | AH129: 0 | AI129: 0 | AJ129: 0 | AK129: 0 | AL129: 0 | AM129: 0 | AN129: 0 | AO129: 0 | AP129: 0 | AQ129: 0 | AR129: 0 | AS129: 0 | AT129: 0 | AU129: 0 | AV129: 0 | AW129: 0 | AX129: 0 | AY129: 0 | AZ129: 0 | BA129: 0 | BB129: 0 | BC129: 0 | BD129: 0 | BE129: 0 | BF129: 0 | BG129: 0 | BH129: 0 | BI129: 0 | BJ129: 0 | BK129: 0 | BL129: 0 | BM129: 0 | BN129: 0 | BO129: 0 | BP129: 0 | BQ129: 0 | BR129: 0 | BS129: 0 | BT129: 0 | BU129: =BU127-BU128 -> 0 | BV129: 0 | BW129: 0 | BX129: 0 | BY129: 0 | BZ129: 0 | CA129: 0 | CB129: 0 | CC129: 0 | CD129: 0 | CE129: 0 | CF129: 0 | CG129: 0 | CH129: 0 | CI129: 0 | CJ129: 0 | CK129: 0 | CL129: 0 | CM129: 0 | CN129: 0 | CO129: 0 | CP129: 0 | CQ129: 0 | CR129: 0 | CS129: 0 | CT129: 0 | CU129: 0 | CV129: 0 | CW129: 0 | CX129: 0 | CY129: 0 | CZ129: 0 | DA129: 0 | DB129: 0 | DC129: 0
D130: CAPEX | E130: Euro 000's | H130: =H103 -> 120508 | I130: =I103 -> 0 | J130: 0 | K130: 0 | L130: 0 | M130: 0 | N130: 0 | O130: 0 | P130: 0 | Q130: 0 | R130: 0 | S130: 0 | T130: 0 | U130: 0 | V130: 0 | W130: 0 | X130: 0 | Y130: 0 | Z130: 0 | AA130: 0 | AB130: 0 | AC130: 0 | AD130: 0 | AE130: 0 | AF130: 0 | AG130: 0 | AH130: 0 | AI130: 0 | AJ130: 0 | AK130: 0 | AL130: 0 | AM130: 0 | AN130: 0 | AO130: 0 | AP130: 0 | AQ130: 0 | AR130: 0 | AS130: 0 | AT130: 0 | AU130: 0 | AV130: 0 | AW130: 0 | AX130: 0 | AY130: 0 | AZ130: 0 | BA130: 0 | BB130: 0 | BC130: 0 | BD130: 0 | BE130: 0 | BF130: 0 | BG130: 0 | BH130: 0 | BI130: 0 | BJ130: 0 | BK130: 0 | BL130: 0 | BM130: 0 | BN130: 0 | BO130: 0 | BP130: 0 | BQ130: 0 | BR130: 0 | BS130: 0 | BT130: 0 | BU130: =BU103 -> 0 | BV130: 0 | BW130: 0 | BX130: 0 | BY130: 0 | BZ130: 0 | CA130: 0 | CB130: 0 | CC130: 0 | CD130: 0 | CE130: 0 | CF130: 0 | CG130: 0 | CH130: 0 | CI130: 0 | CJ130: 0 | CK130: 0 | CL130: 0 | CM130: 0 | CN130: 0 | CO130: 0 | CP130: 0 | CQ130: 0 | CR130: 0 | CS130: 0 | CT130: 0 | CU130: 0 | CV130: 0 | CW130: 0 | CX130: 0 | CY130: 0 | CZ130: 0 | DA130: 0 | DB130: 0 | DC130: 0
D131: Free Cash Flow | H131: =H129-H130 -> -120508 | I131: =I129-I130 -> 0 | J131: 0 | K131: 0 | L131: 0 | M131: 0 | N131: 0 | O131: 0 | P131: 0 | Q131: 0 | R131: 0 | S131: 0 | T131: 0 | U131: 0 | V131: 0 | W131: 0 | X131: 0 | Y131: 0 | Z131: 0 | AA131: 0 | AB131: 0 | AC131: 0 | AD131: 0 | AE131: 0 | AF131: 0 | AG131: 0 | AH131: 0 | AI131: 0 | AJ131: 0 | AK131: 0 | AL131: 0 | AM131: 0 | AN131: 0 | AO131: 0 | AP131: 0 | AQ131: 0 | AR131: 0 | AS131: 0 | AT131: 0 | AU131: 0 | AV131: 0 | AW131: 0 | AX131: 0 | AY131: 0 | AZ131: 0 | BA131: 0 | BB131: 0 | BC131: 0 | BD131: 0 | BE131: 0 | BF131: 0 | BG131: 0 | BH131: 0 | BI131: 0 | BJ131: 0 | BK131: 0 | BL131: 0 | BM131: 0 | BN131: 0 | BO131: 0 | BP131: 0 | BQ131: 0 | BR131: 0 | BS131: 0 | BT131: 0 | BU131: =BU129-BU130 -> 0 | BV131: 0 | BW131: 0 | BX131: 0 | BY131: 0 | BZ131: 0 | CA131: 0 | CB131: 0 | CC131: 0 | CD131: 0 | CE131: 0 | CF131: 0 | CG131: 0 | CH131: 0 | CI131: 0 | CJ131: 0 | CK131: 0 | CL131: 0 | CM131: 0 | CN131: 0 | CO131: 0 | CP131: 0 | CQ131: 0 | CR131: 0 | CS131: 0 | CT131: 0 | CU131: 0 | CV131: 0 | CW131: 0 | CX131: 0 | CY131: 0 | CZ131: 0 | DA131: 0 | DB131: 0 | DC131: 0
D133: Project IRR | E133: =XIRR(H131:DC131,H3:DC3) -> 
D134: NPV at target IRR | E134: =F55 -> 0.075 | F134: =XNPV(E134,H131:DC131,H3:DC3) -> -120508 | G134: npv_out
A136: Debt Sizing
C137: Debt Repayment Switch | E137: True/False | F137: =F72 -> 2021-08-01 | G137: =F73 -> 2041-02-01 | H137: =AND(H$2>=$F$137,H$2<$G$137) -> FALSE | I137: =AND(I$2>=$F$137,I$2<$G$137) -> FALSE | J137: =AND(J$2>=$F$137,J$2<$G$137) -> TRUE | K137: =AND(K$2>=$F$137,K$2<$G$137) -> TRUE | L137: =AND(L$2>=$F$137,L$2<$G$137) -> TRUE | M137: =AND(M$2>=$F$137,M$2<$G$137) -> TRUE | N137: =AND(N$2>=$F$137,N$2<$G$137) -> TRUE | O137: =AND(O$2>=$F$137,O$2<$G$137) -> TRUE | P137: =AND(P$2>=$F$137,P$2<$G$137) -> TRUE | Q137: =AND(Q$2>=$F$137,Q$2<$G$137) -> TRUE | R137: =AND(R$2>=$F$137,R$2<$G$137) -> TRUE | S137: =AND(S$2>=$F$137,S$2<$G$137) -> TRUE | T137: =AND(T$2>=$F$137,T$2<$G$137) -> TRUE | U137: =AND(U$2>=$F$137,U$2<$G$137) -> TRUE | V137: =AND(V$2>=$F$137,V$2<$G$137) -> TRUE | W137: =AND(W$2>=$F$137,W$2<$G$137) -> TRUE | X137: =AND(X$2>=$F$137,X$2<$G$137) -> TRUE | Y137: =AND(Y$2>=$F$137,Y$2<$G$137) -> TRUE | Z137: =AND(Z$2>=$F$137,Z$2<$G$137) -> TRUE | AA137: =AND(AA$2>=$F$137,AA$2<$G$137) -> TRUE | AB137: =AND(AB$2>=$F$137,AB$2<$G$137) -> TRUE | AC137: =AND(AC$2>=$F$137,AC$2<$G$137) -> TRUE | AD137: =AND(AD$2>=$F$137,AD$2<$G$137) -> TRUE | AE137: =AND(AE$2>=$F$137,AE$2<$G$137) -> TRUE | AF137: =AND(AF$2>=$F$137,AF$2<$G$137) -> TRUE | AG137: =AND(AG$2>=$F$137,AG$2<$G$137) -> TRUE | AH137: =AND(AH$2>=$F$137,AH$2<$G$137) -> TRUE | AI137: =AND(AI$2>=$F$137,AI$2<$G$137) -> TRUE | AJ137: =AND(AJ$2>=$F$137,AJ$2<$G$137) -> TRUE | AK137: =AND(AK$2>=$F$137,AK$2<$G$137) -> TRUE | AL137: =AND(AL$2>=$F$137,AL$2<$G$137) -> TRUE | AM137: =AND(AM$2>=$F$137,AM$2<$G$137) -> TRUE | AN137: =AND(AN$2>=$F$137,AN$2<$G$137) -> TRUE | AO137: =AND(AO$2>=$F$137,AO$2<$G$137) -> TRUE | AP137: =AND(AP$2>=$F$137,AP$2<$G$137) -> TRUE | AQ137: =AND(AQ$2>=$F$137,AQ$2<$G$137) -> TRUE | AR137: =AND(AR$2>=$F$137,AR$2<$G$137) -> TRUE | AS137: =AND(AS$2>=$F$137,AS$2<$G$137) -> TRUE | AT137: =AND(AT$2>=$F$137,AT$2<$G$137) -> TRUE | AU137: =AND(AU$2>=$F$137,AU$2<$G$137) -> TRUE | AV137: =AND(AV$2>=$F$137,AV$2<$G$137) -> TRUE | AW137: =AND(AW$2>=$F$137,AW$2<$G$137) -> FALSE | AX137: =AND(AX$2>=$F$137,AX$2<$G$137) -> FALSE | AY137: =AND(AY$2>=$F$137,AY$2<$G$137) -> FALSE | AZ137: =AND(AZ$2>=$F$137,AZ$2<$G$137) -> FALSE | BA137: =AND(BA$2>=$F$137,BA$2<$G$137) -> FALSE | BB137: =AND(BB$2>=$F$137,BB$2<$G$137) -> FALSE | BC137: =AND(BC$2>=$F$137,BC$2<$G$137) -> FALSE | BD137: =AND(BD$2>=$F$137,BD$2<$G$137) -> FALSE | BE137: =AND(BE$2>=$F$137,BE$2<$G$137) -> FALSE | BF137: =AND(BF$2>=$F$137,BF$2<$G$137) -> FALSE | BG137: =AND(BG$2>=$F$137,BG$2<$G$137) -> FALSE | BH137: =AND(BH$2>=$F$137,BH$2<$G$137) -> FALSE | BI137: =AND(BI$2>=$F$137,BI$2<$G$137) -> FALSE | BJ137: =AND(BJ$2>=$F$137,BJ$2<$G$137) -> FALSE | BK137: =AND(BK$2>=$F$137,BK$2<$G$137) -> FALSE | BL137: =AND(BL$2>=$F$137,BL$2<$G$137) -> FALSE | BM137: =AND(BM$2>=$F$137,BM$2<$G$137) -> FALSE | BN137: =AND(BN$2>=$F$137,BN$2<$G$137) -> FALSE | BO137: =AND(BO$2>=$F$137,BO$2<$G$137) -> FALSE | BP137: =AND(BP$2>=$F$137,BP$2<$G$137) -> FALSE | BQ137: =AND(BQ$2>=$F$137,BQ$2<$G$137) -> FALSE | BR137: =AND(BR$2>=$F$137,BR$2<$G$137) -> FALSE | BS137: =AND(BS$2>=$F$137,BS$2<$G$137) -> FALSE | BT137: =AND(BT$2>=$F$137,BT$2<$G$137) -> FALSE | BU137: =AND(BU$2>=$F$137,BU$2<$G$137) -> FALSE | BV137: =AND(BV$2>=$F$137,BV$2<$G$137) -> FALSE | BW137: =AND(BW$2>=$F$137,BW$2<$G$137) -> FALSE | BX137: =AND(BX$2>=$F$137,BX$2<$G$137) -> FALSE | BY137: =AND(BY$2>=$F$137,BY$2<$G$137) -> FALSE | BZ137: =AND(BZ$2>=$F$137,BZ$2<$G$137) -> FALSE | CA137: =AND(CA$2>=$F$137,CA$2<$G$137) -> FALSE | CB137: =AND(CB$2>=$F$137,CB$2<$G$137) -> FALSE | CC137: =AND(CC$2>=$F$137,CC$2<$G$137) -> FALSE | CD137: =AND(CD$2>=$F$137,CD$2<$G$137) -> FALSE | CE137: =AND(CE$2>=$F$137,CE$2<$G$137) -> FALSE | CF137: =AND(CF$2>=$F$137,CF$2<$G$137) -> FALSE | CG137: =AND(CG$2>=$F$137,CG$2<$G$137) -> FALSE | CH137: =AND(CH$2>=$F$137,CH$2<$G$137) -> FALSE | CI137: =AND(CI$2>=$F$137,CI$2<$G$137) -> FALSE | CJ137: =AND(CJ$2>=$F$137,CJ$2<$G$137) -> FALSE | CK137: =AND(CK$2>=$F$137,CK$2<$G$137) -> FALSE | CL137: =AND(CL$2>=$F$137,CL$2<$G$137) -> FALSE | CM137: =AND(CM$2>=$F$137,CM$2<$G$137) -> FALSE | CN137: =AND(CN$2>=$F$137,CN$2<$G$137) -> FALSE | CO137: =AND(CO$2>=$F$137,CO$2<$G$137) -> FALSE | CP137: =AND(CP$2>=$F$137,CP$2<$G$137) -> FALSE | CQ137: =AND(CQ$2>=$F$137,CQ$2<$G$137) -> FALSE | CR137: =AND(CR$2>=$F$137,CR$2<$G$137) -> FALSE | CS137: =AND(CS$2>=$F$137,CS$2<$G$137) -> FALSE | CT137: =AND(CT$2>=$F$137,CT$2<$G$137) -> FALSE | CU137: =AND(CU$2>=$F$137,CU$2<$G$137) -> FALSE | CV137: =AND(CV$2>=$F$137,CV$2<$G$137) -> FALSE | CW137: =AND(CW$2>=$F$137,CW$2<$G$137) -> FALSE | CX137: =AND(CX$2>=$F$137,CX$2<$G$137) -> FALSE | CY137: =AND(CY$2>=$F$137,CY$2<$G$137) -> FALSE | CZ137: =AND(CZ$2>=$F$137,CZ$2<$G$137) -> FALSE | DA137: =AND(DA$2>=$F$137,DA$2<$G$137) -> FALSE | DB137: =AND(DB$2>=$F$137,DB$2<$G$137) -> FALSE | DC137: =AND(DC$2>=$F$137,DC$2<$G$137) -> FALSE
B139: P50 DSCR
C140: Cash flow P50 case
D141: MWh P50 case | E141: MWh | H141: =H94 -> 0 | I141: =I94 -> 0 | J141: =J94 -> 0 | K141: =K94 -> 0 | L141: =L94 -> 0 | M141: =M94 -> 0 | N141: =N94 -> 0 | O141: =O94 -> 0 | P141: =P94 -> 0 | Q141: =Q94 -> 0 | R141: =R94 -> 0 | S141: =S94 -> 0 | T141: =T94 -> 0 | U141: =U94 -> 0 | V141: =V94 -> 0 | W141: =W94 -> 0 | X141: =X94 -> 0 | Y141: =Y94 -> 0 | Z141: =Z94 -> 0 | AA141: =AA94 -> 0 | AB141: =AB94 -> 0 | AC141: =AC94 -> 0 | AD141: =AD94 -> 0 | AE141: =AE94 -> 0 | AF141: =AF94 -> 0 | AG141: =AG94 -> 0 | AH141: =AH94 -> 0 | AI141: =AI94 -> 0 | AJ141: =AJ94 -> 0 | AK141: =AK94 -> 0 | AL141: =AL94 -> 0 | AM141: =AM94 -> 0 | AN141: =AN94 -> 0 | AO141: =AO94 -> 0 | AP141: =AP94 -> 0 | AQ141: =AQ94 -> 0 | AR141: =AR94 -> 0 | AS141: =AS94 -> 0 | AT141: =AT94 -> 0 | AU141: =AU94 -> 0 | AV141: =AV94 -> 0 | AW141: =AW94 -> 0 | AX141: =AX94 -> 0 | AY141: =AY94 -> 0 | AZ141: =AZ94 -> 0 | BA141: =BA94 -> 0 | BB141: =BB94 -> 0 | BC141: =BC94 -> 0 | BD141: =BD94 -> 0 | BE141: =BE94 -> 0 | BF141: =BF94 -> 0 | BG141: =BG94 -> 0 | BH141: =BH94 -> 0 | BI141: =BI94 -> 0 | BJ141: =BJ94 -> 0 | BK141: =BK94 -> 0 | BL141: =BL94 -> 0 | BM141: =BM94 -> 0 | BN141: =BN94 -> 0 | BO141: =BO94 -> 0 | BP141: =BP94 -> 0 | BQ141: =BQ94 -> 0 | BR141: =BR94 -> 0 | BS141: =BS94 -> 0 | BT141: =BT94 -> 0 | BU141: =BU94 -> 0 | BV141: =BV94 -> 0 | BW141: =BW94 -> 0 | BX141: =BX94 -> 0 | BY141: =BY94 -> 0 | BZ141: =BZ94 -> 0 | CA141: =CA94 -> 0 | CB141: =CB94 -> 0 | CC141: =CC94 -> 0 | CD141: =CD94 -> 0 | CE141: =CE94 -> 0 | CF141: =CF94 -> 0 | CG141: =CG94 -> 0 | CH141: =CH94 -> 0 | CI141: =CI94 -> 0 | CJ141: =CJ94 -> 0 | CK141: =CK94 -> 0 | CL141: =CL94 -> 0 | CM141: =CM94 -> 0 | CN141: =CN94 -> 0 | CO141: =CO94 -> 0 | CP141: =CP94 -> 0 | CQ141: =CQ94 -> 0 | CR141: =CR94 -> 0 | CS141: =CS94 -> 0 | CT141: =CT94 -> 0 | CU141: =CU94 -> 0 | CV141: =CV94 -> 0 | CW141: =CW94 -> 0 | CX141: =CX94 -> 0 | CY141: =CY94 -> 0 | CZ141: =CZ94 -> 0 | DA141: =DA94 -> 0 | DB141: =DB94 -> 0 | DC141: =DC94 -> 0
D142: Price - variable cost | E142: Euro/MWh
D143: Margin P50 case | E143: Euro 000's | H143: =H141*H142/1000 -> 0 | I143: =I141*I142/1000 -> 0 | J143: 0 | K143: 0 | L143: 0 | M143: 0 | N143: 0 | O143: 0 | P143: 0 | Q143: 0 | R143: 0 | S143: 0 | T143: 0 | U143: 0 | V143: 0 | W143: 0 | X143: 0 | Y143: 0 | Z143: 0 | AA143: 0 | AB143: 0 | AC143: 0 | AD143: 0 | AE143: 0 | AF143: 0 | AG143: 0 | AH143: 0 | AI143: 0 | AJ143: 0 | AK143: 0 | AL143: 0 | AM143: 0 | AN143: 0 | AO143: 0 | AP143: 0 | AQ143: 0 | AR143: 0 | AS143: 0 | AT143: 0 | AU143: 0 | AV143: 0 | AW143: 0 | AX143: 0 | AY143: 0 | AZ143: 0 | BA143: 0 | BB143: 0 | BC143: 0 | BD143: 0 | BE143: 0 | BF143: 0 | BG143: 0 | BH143: 0 | BI143: 0 | BJ143: 0 | BK143: 0 | BL143: 0 | BM143: 0 | BN143: 0 | BO143: 0 | BP143: 0 | BQ143: 0 | BR143: 0 | BS143: 0 | BT143: 0 | BU143: =BU141*BU142/1000 -> 0 | BV143: 0 | BW143: 0 | BX143: 0 | BY143: 0 | BZ143: 0 | CA143: 0 | CB143: 0 | CC143: 0 | CD143: 0 | CE143: 0 | CF143: 0 | CG143: 0 | CH143: 0 | CI143: 0 | CJ143: 0 | CK143: 0 | CL143: 0 | CM143: 0 | CN143: 0 | CO143: 0 | CP143: 0 | CQ143: 0 | CR143: 0 | CS143: 0 | CT143: 0 | CU143: 0 | CV143: 0 | CW143: 0 | CX143: 0 | CY143: 0 | CZ143: 0 | DA143: 0 | DB143: 0 | DC143: 0
D144: Fixed Cost | E144: Euro 000's | H144: =H116 -> 0 | I144: =I116 -> 0 | J144: =J116 -> 0 | K144: =K116 -> 0 | L144: =L116 -> 0 | M144: =M116 -> 0 | N144: =N116 -> 0 | O144: =O116 -> 0 | P144: =P116 -> 0 | Q144: =Q116 -> 0 | R144: =R116 -> 0 | S144: =S116 -> 0 | T144: =T116 -> 0 | U144: =U116 -> 0 | V144: =V116 -> 0 | W144: =W116 -> 0 | X144: =X116 -> 0 | Y144: =Y116 -> 0 | Z144: =Z116 -> 0 | AA144: =AA116 -> 0 | AB144: =AB116 -> 0 | AC144: =AC116 -> 0 | AD144: =AD116 -> 0 | AE144: =AE116 -> 0 | AF144: =AF116 -> 0 | AG144: =AG116 -> 0 | AH144: =AH116 -> 0 | AI144: =AI116 -> 0 | AJ144: =AJ116 -> 0 | AK144: =AK116 -> 0 | AL144: =AL116 -> 0 | AM144: =AM116 -> 0 | AN144: =AN116 -> 0 | AO144: =AO116 -> 0 | AP144: =AP116 -> 0 | AQ144: =AQ116 -> 0 | AR144: =AR116 -> 0 | AS144: =AS116 -> 0 | AT144: =AT116 -> 0 | AU144: =AU116 -> 0 | AV144: =AV116 -> 0 | AW144: =AW116 -> 0 | AX144: =AX116 -> 0 | AY144: =AY116 -> 0 | AZ144: =AZ116 -> 0 | BA144: =BA116 -> 0 | BB144: =BB116 -> 0 | BC144: =BC116 -> 0 | BD144: =BD116 -> 0 | BE144: =BE116 -> 0 | BF144: =BF116 -> 0 | BG144: =BG116 -> 0 | BH144: =BH116 -> 0 | BI144: =BI116 -> 0 | BJ144: =BJ116 -> 0 | BK144: =BK116 -> 0 | BL144: =BL116 -> 0 | BM144: =BM116 -> 0 | BN144: =BN116 -> 0 | BO144: =BO116 -> 0 | BP144: =BP116 -> 0 | BQ144: =BQ116 -> 0 | BR144: =BR116 -> 0 | BS144: =BS116 -> 0 | BT144: =BT116 -> 0 | BU144: =BU116 -> 0 | BV144: =BV116 -> 0 | BW144: =BW116 -> 0 | BX144: =BX116 -> 0 | BY144: =BY116 -> 0 | BZ144: =BZ116 -> 0 | CA144: =CA116 -> 0 | CB144: =CB116 -> 0 | CC144: =CC116 -> 0 | CD144: =CD116 -> 0 | CE144: =CE116 -> 0 | CF144: =CF116 -> 0 | CG144: =CG116 -> 0 | CH144: =CH116 -> 0 | CI144: =CI116 -> 0 | CJ144: =CJ116 -> 0 | CK144: =CK116 -> 0 | CL144: =CL116 -> 0 | CM144: =CM116 -> 0 | CN144: =CN116 -> 0 | CO144: =CO116 -> 0 | CP144: =CP116 -> 0 | CQ144: =CQ116 -> 0 | CR144: =CR116 -> 0 | CS144: =CS116 -> 0 | CT144: =CT116 -> 0 | CU144: =CU116 -> 0 | CV144: =CV116 -> 0 | CW144: =CW116 -> 0 | CX144: =CX116 -> 0 | CY144: =CY116 -> 0 | CZ144: =CZ116 -> 0 | DA144: =DA116 -> 0 | DB144: =DB116 -> 0 | DC144: =DC116 -> 0
D145: EBITDA P50 | E145: Euro 000's | H145: =H143-H144 -> 0 | I145: =I143-I144 -> 0 | J145: 0 | K145: 0 | L145: 0 | M145: 0 | N145: 0 | O145: 0 | P145: 0 | Q145: 0 | R145: 0 | S145: 0 | T145: 0 | U145: 0 | V145: 0 | W145: 0 | X145: 0 | Y145: 0 | Z145: 0 | AA145: 0 | AB145: 0 | AC145: 0 | AD145: 0 | AE145: 0 | AF145: 0 | AG145: 0 | AH145: 0 | AI145: 0 | AJ145: 0 | AK145: 0 | AL145: 0 | AM145: 0 | AN145: 0 | AO145: 0 | AP145: 0 | AQ145: 0 | AR145: 0 | AS145: 0 | AT145: 0 | AU145: 0 | AV145: 0 | AW145: 0 | AX145: 0 | AY145: 0 | AZ145: 0 | BA145: 0 | BB145: 0 | BC145: 0 | BD145: 0 | BE145: 0 | BF145: 0 | BG145: 0 | BH145: 0 | BI145: 0 | BJ145: 0 | BK145: 0 | BL145: 0 | BM145: 0 | BN145: 0 | BO145: 0 | BP145: 0 | BQ145: 0 | BR145: 0 | BS145: 0 | BT145: 0 | BU145: =BU143-BU144 -> 0 | BV145: 0 | BW145: 0 | BX145: 0 | BY145: 0 | BZ145: 0 | CA145: 0 | CB145: 0 | CC145: 0 | CD145: 0 | CE145: 0 | CF145: 0 | CG145: 0 | CH145: 0 | CI145: 0 | CJ145: 0 | CK145: 0 | CL145: 0 | CM145: 0 | CN145: 0 | CO145: 0 | CP145: 0 | CQ145: 0 | CR145: 0 | CS145: 0 | CT145: 0 | CU145: 0 | CV145: 0 | CW145: 0 | CX145: 0 | CY145: 0 | CZ145: 0 | DA145: 0 | DB145: 0 | DC145: 0
D146: CFADS P50 case | E146: Euro 000's | H146: =H145 -> 0 | I146: =I145 -> 0 | J146: 0 | K146: 0 | L146: 0 | M146: 0 | N146: 0 | O146: 0 | P146: 0 | Q146: 0 | R146: 0 | S146: 0 | T146: 0 | U146: 0 | V146: 0 | W146: 0 | X146: 0 | Y146: 0 | Z146: 0 | AA146: 0 | AB146: 0 | AC146: 0 | AD146: 0 | AE146: 0 | AF146: 0 | AG146: 0 | AH146: 0 | AI146: 0 | AJ146: 0 | AK146: 0 | AL146: 0 | AM146: 0 | AN146: 0 | AO146: 0 | AP146: 0 | AQ146: 0 | AR146: 0 | AS146: 0 | AT146: 0 | AU146: 0 | AV146: 0 | AW146: 0 | AX146: 0 | AY146: 0 | AZ146: 0 | BA146: 0 | BB146: 0 | BC146: 0 | BD146: 0 | BE146: 0 | BF146: 0 | BG146: 0 | BH146: 0 | BI146: 0 | BJ146: 0 | BK146: 0 | BL146: 0 | BM146: 0 | BN146: 0 | BO146: 0 | BP146: 0 | BQ146: 0 | BR146: 0 | BS146: 0 | BT146: 0 | BU146: =BU145 -> 0 | BV146: 0 | BW146: 0 | BX146: 0 | BY146: 0 | BZ146: 0 | CA146: 0 | CB146: 0 | CC146: 0 | CD146: 0 | CE146: 0 | CF146: 0 | CG146: 0 | CH146: 0 | CI146: 0 | CJ146: 0 | CK146: 0 | CL146: 0 | CM146: 0 | CN146: 0 | CO146: 0 | CP146: 0 | CQ146: 0 | CR146: 0 | CS146: 0 | CT146: 0 | CU146: 0 | CV146: 0 | CW146: 0 | CX146: 0 | CY146: 0 | CZ146: 0 | DA146: 0 | DB146: 0 | DC146: 0
D147: Target Debt service | E147: Euro 000's | F147: =F60 -> 1.35
D149: Target Debt Service over Debt Repayment | E149: Euro 000's | H149: =H147*H$137 -> 0 | I149: =I147*I137 -> 0 | J149: 0 | K149: 0 | L149: 0 | M149: 0 | N149: 0 | O149: 0 | P149: 0 | Q149: 0 | R149: 0 | S149: 0 | T149: 0 | U149: 0 | V149: 0 | W149: 0 | X149: 0 | Y149: 0 | Z149: 0 | AA149: 0 | AB149: 0 | AC149: 0 | AD149: 0 | AE149: 0 | AF149: 0 | AG149: 0 | AH149: 0 | AI149: 0 | AJ149: 0 | AK149: 0 | AL149: 0 | AM149: 0 | AN149: 0 | AO149: =AO147*AO137 -> 0 | AP149: 0 | AQ149: 0 | AR149: 0 | AS149: 0 | AT149: 0 | AU149: 0 | AV149: 0 | AW149: 0 | AX149: 0 | AY149: 0 | AZ149: 0 | BA149: 0 | BB149: 0 | BC149: 0 | BD149: 0 | BE149: 0 | BF149: 0 | BG149: 0 | BH149: 0 | BI149: 0 | BJ149: 0 | BK149: 0 | BL149: 0 | BM149: 0 | BN149: 0 | BO149: 0 | BP149: 0 | BQ149: 0 | BR149: 0 | BS149: 0 | BT149: 0 | BU149: =BU147*BU137 -> 0 | BV149: 0 | BW149: 0 | BX149: 0 | BY149: 0 | BZ149: 0 | CA149: 0 | CB149: 0 | CC149: 0 | CD149: 0 | CE149: 0 | CF149: 0 | CG149: 0 | CH149: 0 | CI149: 0 | CJ149: 0 | CK149: 0 | CL149: 0 | CM149: 0 | CN149: 0 | CO149: 0 | CP149: 0 | CQ149: 0 | CR149: 0 | CS149: 0 | CT149: 0 | CU149: 0 | CV149: 0 | CW149: 0 | CX149: 0 | CY149: 0 | CZ149: 0 | DA149: 0 | DB149: 0 | DC149: 0
D150: NPV factor | E150: Index | F150: =F78/2 -> 0.0165 | G150: 1 | H150: =G150*(1+$F$150*H$137) -> 1 | I150: =H150*(1+$F$150*I137) -> 1 | J150: 1.0165 | K150: 1.03327225 | L150: 1.050321242 | M150: 1.067651543 | N150: 1.085267793 | O150: 1.103174712 | P150: 1.121377094 | Q150: 1.139879816 | R150: 1.158687833 | S150: 1.177806183 | T150: 1.197239985 | U150: 1.216994444 | V150: 1.237074853 | W150: 1.257486588 | X150: 1.278235117 | Y150: 1.299325996 | Z150: 1.320764875 | AA150: 1.342557495 | AB150: 1.364709694 | AC150: 1.387227404 | AD150: 1.410116656 | AE150: 1.433383581 | AF150: 1.45703441 | AG150: 1.481075478 | AH150: 1.505513223 | AI150: 1.530354191 | AJ150: 1.555605036 | AK150: 1.581272519 | AL150: 1.607363515 | AM150: 1.633885013 | AN150: 1.660844116 | AO150: =AN150*(1+$F$150*AO137) -> 1.688248044 | AP150: 1.716104137 | AQ150: 1.744419855 | AR150: 1.773202782 | AS150: 1.802460628 | AT150: 1.832201229 | AU150: 1.862432549 | AV150: 1.893162686 | AW150: 1.893162686 | AX150: 1.893162686 | AY150: 1.893162686 | AZ150: 1.893162686 | BA150: 1.893162686 | BB150: 1.893162686 | BC150: 1.893162686 | BD150: 1.893162686 | BE150: 1.893162686 | BF150: 1.893162686 | BG150: 1.893162686 | BH150: 1.893162686 | BI150: 1.893162686 | BJ150: 1.893162686 | BK150: 1.893162686 | BL150: 1.893162686 | BM150: 1.893162686 | BN150: 1.893162686 | BO150: 1.893162686 | BP150: 1.893162686 | BQ150: 1.893162686 | BR150: 1.893162686 | BS150: 1.893162686 | BT150: 1.893162686 | BU150: =BT150*(1+$F$150*BU137) -> 1.893162686 | BV150: 1.893162686 | BW150: 1.893162686 | BX150: 1.893162686 | BY150: 1.893162686 | BZ150: 1.893162686 | CA150: 1.893162686 | CB150: 1.893162686 | CC150: 1.893162686 | CD150: 1.893162686 | CE150: 1.893162686 | CF150: 1.893162686 | CG150: 1.893162686 | CH150: 1.893162686 | CI150: 1.893162686 | CJ150: 1.893162686 | CK150: 1.893162686 | CL150: 1.893162686 | CM150: 1.893162686 | CN150: 1.893162686 | CO150: 1.893162686 | CP150: 1.893162686 | CQ150: 1.893162686 | CR150: 1.893162686 | CS150: 1.893162686 | CT150: 1.893162686 | CU150: 1.893162686 | CV150: 1.893162686 | CW150: 1.893162686 | CX150: 1.893162686 | CY150: 1.893162686 | CZ150: 1.893162686 | DA150: 1.893162686 | DB150: 1.893162686 | DC150: 1.893162686
D151: Size of Debt from P50 | E151: Euro 000's | G151: 1
D153: Opening Balance | H153: =G155 -> 0 | I153: =H155 -> 0 | J153: 0 | K153: 0 | L153: 0 | M153: 0 | N153: 0 | O153: 0 | P153: 0 | Q153: 0 | R153: 0 | S153: 0 | T153: 0 | U153: 0 | V153: 0 | W153: 0 | X153: 0 | Y153: 0 | Z153: 0 | AA153: 0 | AB153: 0 | AC153: 0 | AD153: 0 | AE153: 0 | AF153: 0 | AG153: 0 | AH153: 0 | AI153: 0 | AJ153: 0 | AK153: 0 | AL153: 0 | AM153: 0 | AN153: 0 | AO153: 0 | AP153: 0 | AQ153: 0 | AR153: 0 | AS153: 0 | AT153: 0 | AU153: 0 | AV153: 0 | AW153: 0 | AX153: 0 | AY153: 0 | AZ153: 0 | BA153: 0 | BB153: 0 | BC153: 0 | BD153: 0 | BE153: 0 | BF153: 0 | BG153: 0 | BH153: 0 | BI153: 0 | BJ153: 0 | BK153: 0 | BL153: 0 | BM153: 0 | BN153: 0 | BO153: 0 | BP153: 0 | BQ153: 0 | BR153: 0 | BS153: 0 | BT153: 0 | BU153: =BT155 -> 0 | BV153: 0 | BW153: 0 | BX153: 0 | BY153: 0 | BZ153: 0 | CA153: 0 | CB153: 0 | CC153: 0 | CD153: 0 | CE153: 0 | CF153: 0 | CG153: 0 | CH153: 0 | CI153: 0 | CJ153: 0 | CK153: 0 | CL153: 0 | CM153: 0 | CN153: 0 | CO153: 0 | CP153: 0 | CQ153: 0 | CR153: 0 | CS153: 0 | CT153: 0 | CU153: 0 | CV153: 0 | CW153: 0 | CX153: 0 | CY153: 0 | CZ153: 0 | DA153: 0 | DB153: 0 | DC153: 0
D154: Less Repayments | H154: =(H149-H156)*H$137 -> 0 | I154: =(I149-I156)*I137 -> 0 | J154: 0 | K154: 0 | L154: 0 | M154: 0 | N154: 0 | O154: 0 | P154: 0 | Q154: 0 | R154: 0 | S154: 0 | T154: 0 | U154: 0 | V154: 0 | W154: 0 | X154: 0 | Y154: 0 | Z154: 0 | AA154: 0 | AB154: 0 | AC154: 0 | AD154: 0 | AE154: 0 | AF154: 0 | AG154: 0 | AH154: 0 | AI154: 0 | AJ154: 0 | AK154: 0 | AL154: 0 | AM154: 0 | AN154: 0 | AO154: =(AO149-AO156)*AO137 -> 0 | AP154: 0 | AQ154: 0 | AR154: 0 | AS154: 0 | AT154: 0 | AU154: 0 | AV154: 0 | AW154: 0 | AX154: 0 | AY154: 0 | AZ154: 0 | BA154: 0 | BB154: 0 | BC154: 0 | BD154: 0 | BE154: 0 | BF154: 0 | BG154: 0 | BH154: 0 | BI154: 0 | BJ154: 0 | BK154: 0 | BL154: 0 | BM154: 0 | BN154: 0 | BO154: 0 | BP154: 0 | BQ154: 0 | BR154: 0 | BS154: 0 | BT154: 0 | BU154: =(BU149-BU156)*BU137 -> 0 | BV154: 0 | BW154: 0 | BX154: 0 | BY154: 0 | BZ154: 0 | CA154: 0 | CB154: 0 | CC154: 0 | CD154: 0 | CE154: 0 | CF154: 0 | CG154: 0 | CH154: 0 | CI154: 0 | CJ154: 0 | CK154: 0 | CL154: 0 | CM154: 0 | CN154: 0 | CO154: 0 | CP154: 0 | CQ154: 0 | CR154: 0 | CS154: 0 | CT154: 0 | CU154: 0 | CV154: 0 | CW154: 0 | CX154: 0 | CY154: 0 | CZ154: 0 | DA154: 0 | DB154: 0 | DC154: 0
D155: Closing Balance | G155: =F151 -> 0 | H155: =H153-H154 -> 0 | I155: =I153-I154 -> 0 | J155: 0 | K155: 0 | L155: 0 | M155: 0 | N155: 0 | O155: 0 | P155: 0 | Q155: 0 | R155: 0 | S155: 0 | T155: 0 | U155: 0 | V155: 0 | W155: 0 | X155: 0 | Y155: 0 | Z155: 0 | AA155: 0 | AB155: 0 | AC155: 0 | AD155: 0 | AE155: 0 | AF155: 0 | AG155: 0 | AH155: 0 | AI155: 0 | AJ155: 0 | AK155: 0 | AL155: 0 | AM155: 0 | AN155: 0 | AO155: 0 | AP155: 0 | AQ155: 0 | AR155: 0 | AS155: 0 | AT155: 0 | AU155: 0 | AV155: 0 | AW155: 0 | AX155: 0 | AY155: 0 | AZ155: 0 | BA155: 0 | BB155: 0 | BC155: 0 | BD155: 0 | BE155: 0 | BF155: 0 | BG155: 0 | BH155: 0 | BI155: 0 | BJ155: 0 | BK155: 0 | BL155: 0 | BM155: 0 | BN155: 0 | BO155: 0 | BP155: 0 | BQ155: 0 | BR155: 0 | BS155: 0 | BT155: 0 | BU155: =BU153-BU154 -> 0 | BV155: 0 | BW155: 0 | BX155: 0 | BY155: 0 | BZ155: 0 | CA155: 0 | CB155: 0 | CC155: 0 | CD155: 0 | CE155: 0 | CF155: 0 | CG155: 0 | CH155: 0 | CI155: 0 | CJ155: 0 | CK155: 0 | CL155: 0 | CM155: 0 | CN155: 0 | CO155: 0 | CP155: 0 | CQ155: 0 | CR155: 0 | CS155: 0 | CT155: 0 | CU155: 0 | CV155: 0 | CW155: 0 | CX155: 0 | CY155: 0 | CZ155: 0 | DA155: 0 | DB155: 0 | DC155: 0
D156: Interest | F156: =F150 -> 0.0165 | H156: =H153*$F$156*H$5 -> 0 | I156: =I153*$F$156*I5 -> 0 | J156: =J153*$F$156*J5 -> 0 | K156: =K153*$F$156*K5 -> 0 | L156: =L153*$F$156*L5 -> 0 | M156: =M153*$F$156*M5 -> 0 | N156: =N153*$F$156*N5 -> 0 | O156: =O153*$F$156*O5 -> 0 | P156: =P153*$F$156*P5 -> 0 | Q156: =Q153*$F$156*Q5 -> 0 | R156: =R153*$F$156*R5 -> 0 | S156: =S153*$F$156*S5 -> 0 | T156: =T153*$F$156*T5 -> 0 | U156: =U153*$F$156*U5 -> 0 | V156: =V153*$F$156*V5 -> 0 | W156: =W153*$F$156*W5 -> 0 | X156: =X153*$F$156*X5 -> 0 | Y156: =Y153*$F$156*Y5 -> 0 | Z156: =Z153*$F$156*Z5 -> 0 | AA156: =AA153*$F$156*AA5 -> 0 | AB156: =AB153*$F$156*AB5 -> 0 | AC156: =AC153*$F$156*AC5 -> 0 | AD156: =AD153*$F$156*AD5 -> 0 | AE156: =AE153*$F$156*AE5 -> 0 | AF156: =AF153*$F$156*AF5 -> 0 | AG156: =AG153*$F$156*AG5 -> 0 | AH156: =AH153*$F$156*AH5 -> 0 | AI156: =AI153*$F$156*AI5 -> 0 | AJ156: =AJ153*$F$156*AJ5 -> 0 | AK156: =AK153*$F$156*AK5 -> 0 | AL156: =AL153*$F$156*AL5 -> 0 | AM156: =AM153*$F$156*AM5 -> 0 | AN156: =AN153*$F$156*AN5 -> 0 | AO156: =AO153*$F$156*AO5 -> 0 | AP156: =AP153*$F$156*AP5 -> 0 | AQ156: =AQ153*$F$156*AQ5 -> 0 | AR156: =AR153*$F$156*AR5 -> 0 | AS156: =AS153*$F$156*AS5 -> 0 | AT156: =AT153*$F$156*AT5 -> 0 | AU156: =AU153*$F$156*AU5 -> 0 | AV156: =AV153*$F$156*AV5 -> 0 | AW156: =AW153*$F$156*AW5 -> 0 | AX156: =AX153*$F$156*AX5 -> 0 | AY156: =AY153*$F$156*AY5 -> 0 | AZ156: =AZ153*$F$156*AZ5 -> 0 | BA156: =BA153*$F$156*BA5 -> 0 | BB156: =BB153*$F$156*BB5 -> 0 | BC156: =BC153*$F$156*BC5 -> 0 | BD156: =BD153*$F$156*BD5 -> 0 | BE156: =BE153*$F$156*BE5 -> 0 | BF156: =BF153*$F$156*BF5 -> 0 | BG156: =BG153*$F$156*BG5 -> 0 | BH156: =BH153*$F$156*BH5 -> 0 | BI156: =BI153*$F$156*BI5 -> 0 | BJ156: =BJ153*$F$156*BJ5 -> 0 | BK156: =BK153*$F$156*BK5 -> 0 | BL156: =BL153*$F$156*BL5 -> 0 | BM156: =BM153*$F$156*BM5 -> 0 | BN156: =BN153*$F$156*BN5 -> 0 | BO156: =BO153*$F$156*BO5 -> 0 | BP156: =BP153*$F$156*BP5 -> 0 | BQ156: =BQ153*$F$156*BQ5 -> 0 | BR156: =BR153*$F$156*BR5 -> 0 | BS156: =BS153*$F$156*BS5 -> 0 | BT156: =BT153*$F$156*BT5 -> 0 | BU156: =BU153*$F$156*BU5 -> 0 | BV156: =BV153*$F$156*BV5 -> 0 | BW156: =BW153*$F$156*BW5 -> 0 | BX156: =BX153*$F$156*BX5 -> 0 | BY156: =BY153*$F$156*BY5 -> 0 | BZ156: =BZ153*$F$156*BZ5 -> 0 | CA156: =CA153*$F$156*CA5 -> 0 | CB156: =CB153*$F$156*CB5 -> 0 | CC156: =CC153*$F$156*CC5 -> 0 | CD156: =CD153*$F$156*CD5 -> 0 | CE156: =CE153*$F$156*CE5 -> 0 | CF156: =CF153*$F$156*CF5 -> 0 | CG156: =CG153*$F$156*CG5 -> 0 | CH156: =CH153*$F$156*CH5 -> 0 | CI156: =CI153*$F$156*CI5 -> 0 | CJ156: =CJ153*$F$156*CJ5 -> 0 | CK156: =CK153*$F$156*CK5 -> 0 | CL156: =CL153*$F$156*CL5 -> 0 | CM156: =CM153*$F$156*CM5 -> 0 | CN156: =CN153*$F$156*CN5 -> 0 | CO156: =CO153*$F$156*CO5 -> 0 | CP156: =CP153*$F$156*CP5 -> 0 | CQ156: =CQ153*$F$156*CQ5 -> 0 | CR156: =CR153*$F$156*CR5 -> 0 | CS156: =CS153*$F$156*CS5 -> 0 | CT156: =CT153*$F$156*CT5 -> 0 | CU156: =CU153*$F$156*CU5 -> 0 | CV156: =CV153*$F$156*CV5 -> 0 | CW156: =CW153*$F$156*CW5 -> 0 | CX156: =CX153*$F$156*CX5 -> 0 | CY156: =CY153*$F$156*CY5 -> 0 | CZ156: =CZ153*$F$156*CZ5 -> 0 | DA156: =DA153*$F$156*DA5 -> 0 | DB156: =DB153*$F$156*DB5 -> 0 | DC156: =DC153*$F$156*DC5 -> 0
B158: P90 DSCR
C159: Cash flow P90 case
D160: MWh P90 case | E160: MWh | H160: =H95 -> 0 | I160: =I95 -> 0 | J160: =J95 -> 0 | K160: =K95 -> 0 | L160: =L95 -> 0 | M160: =M95 -> 0 | N160: =N95 -> 0 | O160: =O95 -> 0 | P160: =P95 -> 0 | Q160: =Q95 -> 0 | R160: =R95 -> 0 | S160: =S95 -> 0 | T160: =T95 -> 0 | U160: =U95 -> 0 | V160: =V95 -> 0 | W160: =W95 -> 0 | X160: =X95 -> 0 | Y160: =Y95 -> 0 | Z160: =Z95 -> 0 | AA160: =AA95 -> 0 | AB160: =AB95 -> 0 | AC160: =AC95 -> 0 | AD160: =AD95 -> 0 | AE160: =AE95 -> 0 | AF160: =AF95 -> 0 | AG160: =AG95 -> 0 | AH160: =AH95 -> 0 | AI160: =AI95 -> 0 | AJ160: =AJ95 -> 0 | AK160: =AK95 -> 0 | AL160: =AL95 -> 0 | AM160: =AM95 -> 0 | AN160: =AN95 -> 0 | AO160: =AO95 -> 0 | AP160: =AP95 -> 0 | AQ160: =AQ95 -> 0 | AR160: =AR95 -> 0 | AS160: =AS95 -> 0 | AT160: =AT95 -> 0 | AU160: =AU95 -> 0 | AV160: =AV95 -> 0 | AW160: =AW95 -> 0 | AX160: =AX95 -> 0 | AY160: =AY95 -> 0 | AZ160: =AZ95 -> 0 | BA160: =BA95 -> 0 | BB160: =BB95 -> 0 | BC160: =BC95 -> 0 | BD160: =BD95 -> 0 | BE160: =BE95 -> 0 | BF160: =BF95 -> 0 | BG160: =BG95 -> 0 | BH160: =BH95 -> 0 | BI160: =BI95 -> 0 | BJ160: =BJ95 -> 0 | BK160: =BK95 -> 0 | BL160: =BL95 -> 0 | BM160: =BM95 -> 0 | BN160: =BN95 -> 0 | BO160: =BO95 -> 0 | BP160: =BP95 -> 0 | BQ160: =BQ95 -> 0 | BR160: =BR95 -> 0 | BS160: =BS95 -> 0 | BT160: =BT95 -> 0 | BU160: =BU95 -> 0 | BV160: =BV95 -> 0 | BW160: =BW95 -> 0 | BX160: =BX95 -> 0 | BY160: =BY95 -> 0 | BZ160: =BZ95 -> 0 | CA160: =CA95 -> 0 | CB160: =CB95 -> 0 | CC160: =CC95 -> 0 | CD160: =CD95 -> 0 | CE160: =CE95 -> 0 | CF160: =CF95 -> 0 | CG160: =CG95 -> 0 | CH160: =CH95 -> 0 | CI160: =CI95 -> 0 | CJ160: =CJ95 -> 0 | CK160: =CK95 -> 0 | CL160: =CL95 -> 0 | CM160: =CM95 -> 0 | CN160: =CN95 -> 0 | CO160: =CO95 -> 0 | CP160: =CP95 -> 0 | CQ160: =CQ95 -> 0 | CR160: =CR95 -> 0 | CS160: =CS95 -> 0 | CT160: =CT95 -> 0 | CU160: =CU95 -> 0 | CV160: =CV95 -> 0 | CW160: =CW95 -> 0 | CX160: =CX95 -> 0 | CY160: =CY95 -> 0 | CZ160: =CZ95 -> 0 | DA160: =DA95 -> 0 | DB160: =DB95 -> 0 | DC160: =DC95 -> 0
D161: Price - variable cost | E161: Euro/MWh | H161: =H142 -> 0 | I161: =I142 -> 0 | J161: =J142 -> 0 | K161: =K142 -> 0 | L161: =L142 -> 0 | M161: =M142 -> 0 | N161: =N142 -> 0 | O161: =O142 -> 0 | P161: =P142 -> 0 | Q161: =Q142 -> 0 | R161: =R142 -> 0 | S161: =S142 -> 0 | T161: =T142 -> 0 | U161: =U142 -> 0 | V161: =V142 -> 0 | W161: =W142 -> 0 | X161: =X142 -> 0 | Y161: =Y142 -> 0 | Z161: =Z142 -> 0 | AA161: =AA142 -> 0 | AB161: =AB142 -> 0 | AC161: =AC142 -> 0 | AD161: =AD142 -> 0 | AE161: =AE142 -> 0 | AF161: =AF142 -> 0 | AG161: =AG142 -> 0 | AH161: =AH142 -> 0 | AI161: =AI142 -> 0 | AJ161: =AJ142 -> 0 | AK161: =AK142 -> 0 | AL161: =AL142 -> 0 | AM161: =AM142 -> 0 | AN161: =AN142 -> 0 | AO161: =AO142 -> 0 | AP161: =AP142 -> 0 | AQ161: =AQ142 -> 0 | AR161: =AR142 -> 0 | AS161: =AS142 -> 0 | AT161: =AT142 -> 0 | AU161: =AU142 -> 0 | AV161: =AV142 -> 0 | AW161: =AW142 -> 0 | AX161: =AX142 -> 0 | AY161: =AY142 -> 0 | AZ161: =AZ142 -> 0 | BA161: =BA142 -> 0 | BB161: =BB142 -> 0 | BC161: =BC142 -> 0 | BD161: =BD142 -> 0 | BE161: =BE142 -> 0 | BF161: =BF142 -> 0 | BG161: =BG142 -> 0 | BH161: =BH142 -> 0 | BI161: =BI142 -> 0 | BJ161: =BJ142 -> 0 | BK161: =BK142 -> 0 | BL161: =BL142 -> 0 | BM161: =BM142 -> 0 | BN161: =BN142 -> 0 | BO161: =BO142 -> 0 | BP161: =BP142 -> 0 | BQ161: =BQ142 -> 0 | BR161: =BR142 -> 0 | BS161: =BS142 -> 0 | BT161: =BT142 -> 0 | BU161: =BU142 -> 0 | BV161: =BV142 -> 0 | BW161: =BW142 -> 0 | BX161: =BX142 -> 0 | BY161: =BY142 -> 0 | BZ161: =BZ142 -> 0 | CA161: =CA142 -> 0 | CB161: =CB142 -> 0 | CC161: =CC142 -> 0 | CD161: =CD142 -> 0 | CE161: =CE142 -> 0 | CF161: =CF142 -> 0 | CG161: =CG142 -> 0 | CH161: =CH142 -> 0 | CI161: =CI142 -> 0 | CJ161: =CJ142 -> 0 | CK161: =CK142 -> 0 | CL161: =CL142 -> 0 | CM161: =CM142 -> 0 | CN161: =CN142 -> 0 | CO161: =CO142 -> 0 | CP161: =CP142 -> 0 | CQ161: =CQ142 -> 0 | CR161: =CR142 -> 0 | CS161: =CS142 -> 0 | CT161: =CT142 -> 0 | CU161: =CU142 -> 0 | CV161: =CV142 -> 0 | CW161: =CW142 -> 0 | CX161: =CX142 -> 0 | CY161: =CY142 -> 0 | CZ161: =CZ142 -> 0 | DA161: =DA142 -> 0 | DB161: =DB142 -> 0 | DC161: =DC142 -> 0
D162: Margin P90 case | E162: Euro 000's | H162: =H160*H161/1000 -> 0 | I162: =I160*I161/1000 -> 0 | J162: 0 | K162: 0 | L162: 0 | M162: 0 | N162: 0 | O162: 0 | P162: 0 | Q162: 0 | R162: 0 | S162: 0 | T162: 0 | U162: 0 | V162: 0 | W162: 0 | X162: 0 | Y162: 0 | Z162: 0 | AA162: 0 | AB162: 0 | AC162: 0 | AD162: 0 | AE162: 0 | AF162: 0 | AG162: 0 | AH162: 0 | AI162: 0 | AJ162: 0 | AK162: 0 | AL162: 0 | AM162: 0 | AN162: 0 | AO162: 0 | AP162: 0 | AQ162: 0 | AR162: 0 | AS162: 0 | AT162: 0 | AU162: 0 | AV162: 0 | AW162: 0 | AX162: 0 | AY162: 0 | AZ162: 0 | BA162: 0 | BB162: 0 | BC162: 0 | BD162: 0 | BE162: 0 | BF162: 0 | BG162: 0 | BH162: 0 | BI162: 0 | BJ162: 0 | BK162: 0 | BL162: 0 | BM162: 0 | BN162: 0 | BO162: 0 | BP162: 0 | BQ162: 0 | BR162: 0 | BS162: 0 | BT162: 0 | BU162: =BU160*BU161/1000 -> 0 | BV162: 0 | BW162: 0 | BX162: 0 | BY162: 0 | BZ162: 0 | CA162: 0 | CB162: 0 | CC162: 0 | CD162: 0 | CE162: 0 | CF162: 0 | CG162: 0 | CH162: 0 | CI162: 0 | CJ162: 0 | CK162: 0 | CL162: 0 | CM162: 0 | CN162: 0 | CO162: 0 | CP162: 0 | CQ162: 0 | CR162: 0 | CS162: 0 | CT162: 0 | CU162: 0 | CV162: 0 | CW162: 0 | CX162: 0 | CY162: 0 | CZ162: 0 | DA162: 0 | DB162: 0 | DC162: 0
D163: Fixed Cost | E163: Euro 000's | H163: =H144 -> 0 | I163: =I144 -> 0 | J163: =J144 -> 0 | K163: =K144 -> 0 | L163: =L144 -> 0 | M163: =M144 -> 0 | N163: =N144 -> 0 | O163: =O144 -> 0 | P163: =P144 -> 0 | Q163: =Q144 -> 0 | R163: =R144 -> 0 | S163: =S144 -> 0 | T163: =T144 -> 0 | U163: =U144 -> 0 | V163: =V144 -> 0 | W163: =W144 -> 0 | X163: =X144 -> 0 | Y163: =Y144 -> 0 | Z163: =Z144 -> 0 | AA163: =AA144 -> 0 | AB163: =AB144 -> 0 | AC163: =AC144 -> 0 | AD163: =AD144 -> 0 | AE163: =AE144 -> 0 | AF163: =AF144 -> 0 | AG163: =AG144 -> 0 | AH163: =AH144 -> 0 | AI163: =AI144 -> 0 | AJ163: =AJ144 -> 0 | AK163: =AK144 -> 0 | AL163: =AL144 -> 0 | AM163: =AM144 -> 0 | AN163: =AN144 -> 0 | AO163: =AO144 -> 0 | AP163: =AP144 -> 0 | AQ163: =AQ144 -> 0 | AR163: =AR144 -> 0 | AS163: =AS144 -> 0 | AT163: =AT144 -> 0 | AU163: =AU144 -> 0 | AV163: =AV144 -> 0 | AW163: =AW144 -> 0 | AX163: =AX144 -> 0 | AY163: =AY144 -> 0 | AZ163: =AZ144 -> 0 | BA163: =BA144 -> 0 | BB163: =BB144 -> 0 | BC163: =BC144 -> 0 | BD163: =BD144 -> 0 | BE163: =BE144 -> 0 | BF163: =BF144 -> 0 | BG163: =BG144 -> 0 | BH163: =BH144 -> 0 | BI163: =BI144 -> 0 | BJ163: =BJ144 -> 0 | BK163: =BK144 -> 0 | BL163: =BL144 -> 0 | BM163: =BM144 -> 0 | BN163: =BN144 -> 0 | BO163: =BO144 -> 0 | BP163: =BP144 -> 0 | BQ163: =BQ144 -> 0 | BR163: =BR144 -> 0 | BS163: =BS144 -> 0 | BT163: =BT144 -> 0 | BU163: =BU144 -> 0 | BV163: =BV144 -> 0 | BW163: =BW144 -> 0 | BX163: =BX144 -> 0 | BY163: =BY144 -> 0 | BZ163: =BZ144 -> 0 | CA163: =CA144 -> 0 | CB163: =CB144 -> 0 | CC163: =CC144 -> 0 | CD163: =CD144 -> 0 | CE163: =CE144 -> 0 | CF163: =CF144 -> 0 | CG163: =CG144 -> 0 | CH163: =CH144 -> 0 | CI163: =CI144 -> 0 | CJ163: =CJ144 -> 0 | CK163: =CK144 -> 0 | CL163: =CL144 -> 0 | CM163: =CM144 -> 0 | CN163: =CN144 -> 0 | CO163: =CO144 -> 0 | CP163: =CP144 -> 0 | CQ163: =CQ144 -> 0 | CR163: =CR144 -> 0 | CS163: =CS144 -> 0 | CT163: =CT144 -> 0 | CU163: =CU144 -> 0 | CV163: =CV144 -> 0 | CW163: =CW144 -> 0 | CX163: =CX144 -> 0 | CY163: =CY144 -> 0 | CZ163: =CZ144 -> 0 | DA163: =DA144 -> 0 | DB163: =DB144 -> 0 | DC163: =DC144 -> 0
D164: EBITDA P90 | E164: Euro 000's | H164: =H162-H163 -> 0 | I164: =I162-I163 -> 0 | J164: 0 | K164: 0 | L164: 0 | M164: 0 | N164: 0 | O164: 0 | P164: 0 | Q164: 0 | R164: 0 | S164: 0 | T164: 0 | U164: 0 | V164: 0 | W164: 0 | X164: 0 | Y164: 0 | Z164: 0 | AA164: 0 | AB164: 0 | AC164: 0 | AD164: 0 | AE164: 0 | AF164: 0 | AG164: 0 | AH164: 0 | AI164: 0 | AJ164: 0 | AK164: 0 | AL164: 0 | AM164: 0 | AN164: 0 | AO164: 0 | AP164: 0 | AQ164: 0 | AR164: 0 | AS164: 0 | AT164: 0 | AU164: 0 | AV164: 0 | AW164: 0 | AX164: 0 | AY164: 0 | AZ164: 0 | BA164: 0 | BB164: 0 | BC164: 0 | BD164: 0 | BE164: 0 | BF164: 0 | BG164: 0 | BH164: 0 | BI164: 0 | BJ164: 0 | BK164: 0 | BL164: 0 | BM164: 0 | BN164: 0 | BO164: 0 | BP164: 0 | BQ164: 0 | BR164: 0 | BS164: 0 | BT164: 0 | BU164: =BU162-BU163 -> 0 | BV164: 0 | BW164: 0 | BX164: 0 | BY164: 0 | BZ164: 0 | CA164: 0 | CB164: 0 | CC164: 0 | CD164: 0 | CE164: 0 | CF164: 0 | CG164: 0 | CH164: 0 | CI164: 0 | CJ164: 0 | CK164: 0 | CL164: 0 | CM164: 0 | CN164: 0 | CO164: 0 | CP164: 0 | CQ164: 0 | CR164: 0 | CS164: 0 | CT164: 0 | CU164: 0 | CV164: 0 | CW164: 0 | CX164: 0 | CY164: 0 | CZ164: 0 | DA164: 0 | DB164: 0 | DC164: 0
D165: CFADS P90 case | E165: Euro 000's | H165: =H164 -> 0 | I165: =I164 -> 0 | J165: 0 | K165: 0 | L165: 0 | M165: 0 | N165: 0 | O165: 0 | P165: 0 | Q165: 0 | R165: 0 | S165: 0 | T165: 0 | U165: 0 | V165: 0 | W165: 0 | X165: 0 | Y165: 0 | Z165: 0 | AA165: 0 | AB165: 0 | AC165: 0 | AD165: 0 | AE165: 0 | AF165: 0 | AG165: 0 | AH165: 0 | AI165: 0 | AJ165: 0 | AK165: 0 | AL165: 0 | AM165: 0 | AN165: 0 | AO165: 0 | AP165: 0 | AQ165: 0 | AR165: 0 | AS165: 0 | AT165: 0 | AU165: 0 | AV165: 0 | AW165: 0 | AX165: 0 | AY165: 0 | AZ165: 0 | BA165: 0 | BB165: 0 | BC165: 0 | BD165: 0 | BE165: 0 | BF165: 0 | BG165: 0 | BH165: 0 | BI165: 0 | BJ165: 0 | BK165: 0 | BL165: 0 | BM165: 0 | BN165: 0 | BO165: 0 | BP165: 0 | BQ165: 0 | BR165: 0 | BS165: 0 | BT165: 0 | BU165: =BU164 -> 0 | BV165: 0 | BW165: 0 | BX165: 0 | BY165: 0 | BZ165: 0 | CA165: 0 | CB165: 0 | CC165: 0 | CD165: 0 | CE165: 0 | CF165: 0 | CG165: 0 | CH165: 0 | CI165: 0 | CJ165: 0 | CK165: 0 | CL165: 0 | CM165: 0 | CN165: 0 | CO165: 0 | CP165: 0 | CQ165: 0 | CR165: 0 | CS165: 0 | CT165: 0 | CU165: 0 | CV165: 0 | CW165: 0 | CX165: 0 | CY165: 0 | CZ165: 0 | DA165: 0 | DB165: 0 | DC165: 0
D166: Target Debt Service | E166: Times | F166: =F61 -> 1.15 | H166: =H165/$F$166 -> 0 | I166: =I165/$F$166 -> 0 | J166: 0 | K166: 0 | L166: 0 | M166: 0 | N166: 0 | O166: 0 | P166: 0 | Q166: 0 | R166: 0 | S166: 0 | T166: 0 | U166: 0 | V166: 0 | W166: 0 | X166: 0 | Y166: 0 | Z166: 0 | AA166: 0 | AB166: 0 | AC166: 0 | AD166: 0 | AE166: 0 | AF166: 0 | AG166: 0 | AH166: 0 | AI166: 0 | AJ166: 0 | AK166: 0 | AL166: 0 | AM166: 0 | AN166: 0 | AO166: 0 | AP166: 0 | AQ166: 0 | AR166: 0 | AS166: 0 | AT166: 0 | AU166: 0 | AV166: 0 | AW166: 0 | AX166: 0 | AY166: 0 | AZ166: 0 | BA166: 0 | BB166: 0 | BC166: 0 | BD166: 0 | BE166: 0 | BF166: 0 | BG166: 0 | BH166: 0 | BI166: 0 | BJ166: 0 | BK166: 0 | BL166: 0 | BM166: 0 | BN166: 0 | BO166: 0 | BP166: 0 | BQ166: 0 | BR166: 0 | BS166: 0 | BT166: 0 | BU166: =BU165/$F$166 -> 0 | BV166: 0 | BW166: 0 | BX166: 0 | BY166: 0 | BZ166: 0 | CA166: 0 | CB166: 0 | CC166: 0 | CD166: 0 | CE166: 0 | CF166: 0 | CG166: 0 | CH166: 0 | CI166: 0 | CJ166: 0 | CK166: 0 | CL166: 0 | CM166: 0 | CN166: 0 | CO166: 0 | CP166: 0 | CQ166: 0 | CR166: 0 | CS166: 0 | CT166: 0 | CU166: 0 | CV166: 0 | CW166: 0 | CX166: 0 | CY166: 0 | CZ166: 0 | DA166: 0 | DB166: 0 | DC166: 0
D168: Target Debt Service over debt maturity | E168: Euro 000's | H168: =H166*H$137 -> 0 | I168: =I166*I$137 -> 0 | J168: 0 | K168: 0 | L168: 0 | M168: 0 | N168: 0 | O168: 0 | P168: 0 | Q168: 0 | R168: 0 | S168: 0 | T168: 0 | U168: 0 | V168: 0 | W168: 0 | X168: 0 | Y168: 0 | Z168: 0 | AA168: 0 | AB168: 0 | AC168: 0 | AD168: 0 | AE168: 0 | AF168: 0 | AG168: 0 | AH168: 0 | AI168: 0 | AJ168: 0 | AK168: 0 | AL168: 0 | AM168: 0 | AN168: 0 | AO168: 0 | AP168: 0 | AQ168: 0 | AR168: 0 | AS168: 0 | AT168: 0 | AU168: 0 | AV168: 0 | AW168: 0 | AX168: 0 | AY168: 0 | AZ168: 0 | BA168: 0 | BB168: 0 | BC168: 0 | BD168: 0 | BE168: 0 | BF168: 0 | BG168: 0 | BH168: 0 | BI168: 0 | BJ168: 0 | BK168: 0 | BL168: 0 | BM168: 0 | BN168: 0 | BO168: 0 | BP168: 0 | BQ168: 0 | BR168: 0 | BS168: 0 | BT168: 0 | BU168: =BU166*BU$137 -> 0 | BV168: 0 | BW168: 0 | BX168: 0 | BY168: 0 | BZ168: 0 | CA168: 0 | CB168: 0 | CC168: 0 | CD168: 0 | CE168: 0 | CF168: 0 | CG168: 0 | CH168: 0 | CI168: 0 | CJ168: 0 | CK168: 0 | CL168: 0 | CM168: 0 | CN168: 0 | CO168: 0 | CP168: 0 | CQ168: 0 | CR168: 0 | CS168: 0 | CT168: 0 | CU168: 0 | CV168: 0 | CW168: 0 | CX168: 0 | CY168: 0 | CZ168: 0 | DA168: 0 | DB168: 0 | DC168: 0
D169: NPV of debt service =size of debt | E169: Euro 000's | F169: =F150 -> 0.0165 | G169: 1 | H169: =G169*(1+$F$169*H$137) -> 1 | I169: =H169*(1+$F$150*I$137) -> 1 | J169: 1.0165 | K169: 1.03327225 | L169: 1.050321242 | M169: 1.067651543 | N169: 1.085267793 | O169: 1.103174712 | P169: 1.121377094 | Q169: 1.139879816 | R169: 1.158687833 | S169: 1.177806183 | T169: 1.197239985 | U169: 1.216994444 | V169: 1.237074853 | W169: 1.257486588 | X169: 1.278235117 | Y169: 1.299325996 | Z169: 1.320764875 | AA169: 1.342557495 | AB169: 1.364709694 | AC169: 1.387227404 | AD169: 1.410116656 | AE169: 1.433383581 | AF169: 1.45703441 | AG169: 1.481075478 | AH169: 1.505513223 | AI169: 1.530354191 | AJ169: 1.555605036 | AK169: 1.581272519 | AL169: 1.607363515 | AM169: 1.633885013 | AN169: 1.660844116 | AO169: 1.688248044 | AP169: 1.716104137 | AQ169: 1.744419855 | AR169: 1.773202782 | AS169: 1.802460628 | AT169: 1.832201229 | AU169: 1.862432549 | AV169: 1.893162686 | AW169: 1.893162686 | AX169: 1.893162686 | AY169: 1.893162686 | AZ169: 1.893162686 | BA169: 1.893162686 | BB169: 1.893162686 | BC169: 1.893162686 | BD169: 1.893162686 | BE169: 1.893162686 | BF169: 1.893162686 | BG169: 1.893162686 | BH169: 1.893162686 | BI169: 1.893162686 | BJ169: 1.893162686 | BK169: 1.893162686 | BL169: 1.893162686 | BM169: 1.893162686 | BN169: 1.893162686 | BO169: 1.893162686 | BP169: 1.893162686 | BQ169: 1.893162686 | BR169: 1.893162686 | BS169: 1.893162686 | BT169: 1.893162686 | BU169: =BT169*(1+$F$150*BU$137) -> 1.893162686 | BV169: 1.893162686 | BW169: 1.893162686 | BX169: 1.893162686 | BY169: 1.893162686 | BZ169: 1.893162686 | CA169: 1.893162686 | CB169: 1.893162686 | CC169: 1.893162686 | CD169: 1.893162686 | CE169: 1.893162686 | CF169: 1.893162686 | CG169: 1.893162686 | CH169: 1.893162686 | CI169: 1.893162686 | CJ169: 1.893162686 | CK169: 1.893162686 | CL169: 1.893162686 | CM169: 1.893162686 | CN169: 1.893162686 | CO169: 1.893162686 | CP169: 1.893162686 | CQ169: 1.893162686 | CR169: 1.893162686 | CS169: 1.893162686 | CT169: 1.893162686 | CU169: 1.893162686 | CV169: 1.893162686 | CW169: 1.893162686 | CX169: 1.893162686 | CY169: 1.893162686 | CZ169: 1.893162686 | DA169: 1.893162686 | DB169: 1.893162686 | DC169: 1.893162686
D170: Size of Debt from P90 | E170: Euro 000's | F170: =SUMPRODUCT(H168:DC168/H169:DC169) -> 0 | G170: 2
D172: Opening Balance | H172: =G174 -> 0 | I172: =H174 -> 0 | J172: 0 | K172: 0 | L172: 0 | M172: 0 | N172: 0 | O172: 0 | P172: 0 | Q172: 0 | R172: 0 | S172: 0 | T172: 0 | U172: 0 | V172: 0 | W172: 0 | X172: 0 | Y172: 0 | Z172: 0 | AA172: 0 | AB172: 0 | AC172: 0 | AD172: 0 | AE172: 0 | AF172: 0 | AG172: 0 | AH172: 0 | AI172: 0 | AJ172: 0 | AK172: 0 | AL172: 0 | AM172: 0 | AN172: 0 | AO172: 0 | AP172: 0 | AQ172: 0 | AR172: 0 | AS172: 0 | AT172: 0 | AU172: 0 | AV172: 0 | AW172: 0 | AX172: 0 | AY172: 0 | AZ172: 0 | BA172: 0 | BB172: 0 | BC172: 0 | BD172: 0 | BE172: 0 | BF172: 0 | BG172: 0 | BH172: 0 | BI172: 0 | BJ172: 0 | BK172: 0 | BL172: 0 | BM172: 0 | BN172: 0 | BO172: 0 | BP172: 0 | BQ172: 0 | BR172: 0 | BS172: 0 | BT172: 0 | BU172: =BT174 -> 0 | BV172: 0 | BW172: 0 | BX172: 0 | BY172: 0 | BZ172: 0 | CA172: 0 | CB172: 0 | CC172: 0 | CD172: 0 | CE172: 0 | CF172: 0 | CG172: 0 | CH172: 0 | CI172: 0 | CJ172: 0 | CK172: 0 | CL172: 0 | CM172: 0 | CN172: 0 | CO172: 0 | CP172: 0 | CQ172: 0 | CR172: 0 | CS172: 0 | CT172: 0 | CU172: 0 | CV172: 0 | CW172: 0 | CX172: 0 | CY172: 0 | CZ172: 0 | DA172: 0 | DB172: 0 | DC172: 0
D173: Less Repayments | H173: =(H168-H175)*H$137 -> 0 | I173: =(I168-I175)*I$137 -> 0 | J173: 0 | K173: 0 | L173: 0 | M173: 0 | N173: 0 | O173: 0 | P173: 0 | Q173: 0 | R173: 0 | S173: 0 | T173: 0 | U173: 0 | V173: 0 | W173: 0 | X173: 0 | Y173: 0 | Z173: 0 | AA173: 0 | AB173: 0 | AC173: 0 | AD173: 0 | AE173: 0 | AF173: 0 | AG173: 0 | AH173: 0 | AI173: 0 | AJ173: 0 | AK173: 0 | AL173: 0 | AM173: 0 | AN173: 0 | AO173: 0 | AP173: 0 | AQ173: 0 | AR173: 0 | AS173: 0 | AT173: 0 | AU173: 0 | AV173: 0 | AW173: 0 | AX173: 0 | AY173: 0 | AZ173: 0 | BA173: 0 | BB173: 0 | BC173: 0 | BD173: 0 | BE173: 0 | BF173: 0 | BG173: 0 | BH173: 0 | BI173: 0 | BJ173: 0 | BK173: 0 | BL173: 0 | BM173: 0 | BN173: 0 | BO173: 0 | BP173: 0 | BQ173: 0 | BR173: 0 | BS173: 0 | BT173: 0 | BU173: =(BU168-BU175)*BU$137 -> 0 | BV173: 0 | BW173: 0 | BX173: 0 | BY173: 0 | BZ173: 0 | CA173: 0 | CB173: 0 | CC173: 0 | CD173: 0 | CE173: 0 | CF173: 0 | CG173: 0 | CH173: 0 | CI173: 0 | CJ173: 0 | CK173: 0 | CL173: 0 | CM173: 0 | CN173: 0 | CO173: 0 | CP173: 0 | CQ173: 0 | CR173: 0 | CS173: 0 | CT173: 0 | CU173: 0 | CV173: 0 | CW173: 0 | CX173: 0 | CY173: 0 | CZ173: 0 | DA173: 0 | DB173: 0 | DC173: 0
D174: Closing Balance | G174: =F170 -> 0 | H174: =H172-H173 -> 0 | I174: =I172-I173 -> 0 | J174: 0 | K174: 0 | L174: 0 | M174: 0 | N174: 0 | O174: 0 | P174: 0 | Q174: 0 | R174: 0 | S174: 0 | T174: 0 | U174: 0 | V174: 0 | W174: 0 | X174: 0 | Y174: 0 | Z174: 0 | AA174: 0 | AB174: 0 | AC174: 0 | AD174: 0 | AE174: 0 | AF174: 0 | AG174: 0 | AH174: 0 | AI174: 0 | AJ174: 0 | AK174: 0 | AL174: 0 | AM174: 0 | AN174: 0 | AO174: 0 | AP174: 0 | AQ174: 0 | AR174: 0 | AS174: 0 | AT174: 0 | AU174: 0 | AV174: 0 | AW174: 0 | AX174: 0 | AY174: 0 | AZ174: 0 | BA174: 0 | BB174: 0 | BC174: 0 | BD174: 0 | BE174: 0 | BF174: 0 | BG174: 0 | BH174: 0 | BI174: 0 | BJ174: 0 | BK174: 0 | BL174: 0 | BM174: 0 | BN174: 0 | BO174: 0 | BP174: 0 | BQ174: 0 | BR174: 0 | BS174: 0 | BT174: 0 | BU174: =BU172-BU173 -> 0 | BV174: 0 | BW174: 0 | BX174: 0 | BY174: 0 | BZ174: 0 | CA174: 0 | CB174: 0 | CC174: 0 | CD174: 0 | CE174: 0 | CF174: 0 | CG174: 0 | CH174: 0 | CI174: 0 | CJ174: 0 | CK174: 0 | CL174: 0 | CM174: 0 | CN174: 0 | CO174: 0 | CP174: 0 | CQ174: 0 | CR174: 0 | CS174: 0 | CT174: 0 | CU174: 0 | CV174: 0 | CW174: 0 | CX174: 0 | CY174: 0 | CZ174: 0 | DA174: 0 | DB174: 0 | DC174: 0
D175: Interest | F175: =F156 -> 0.0165 | H175: =H172*$F$156*H$5 -> 0 | I175: =I172*$F$175*I$5 -> 0 | J175: =J172*$F$156*J$5 -> 0 | K175: =K172*$F$156*K$5 -> 0 | L175: =L172*$F$156*L$5 -> 0 | M175: =M172*$F$156*M$5 -> 0 | N175: =N172*$F$156*N$5 -> 0 | O175: =O172*$F$156*O$5 -> 0 | P175: =P172*$F$156*P$5 -> 0 | Q175: =Q172*$F$156*Q$5 -> 0 | R175: =R172*$F$156*R$5 -> 0 | S175: =S172*$F$156*S$5 -> 0 | T175: =T172*$F$156*T$5 -> 0 | U175: =U172*$F$156*U$5 -> 0 | V175: =V172*$F$156*V$5 -> 0 | W175: =W172*$F$156*W$5 -> 0 | X175: =X172*$F$156*X$5 -> 0 | Y175: =Y172*$F$156*Y$5 -> 0 | Z175: =Z172*$F$156*Z$5 -> 0 | AA175: =AA172*$F$156*AA$5 -> 0 | AB175: =AB172*$F$156*AB$5 -> 0 | AC175: =AC172*$F$156*AC$5 -> 0 | AD175: =AD172*$F$156*AD$5 -> 0 | AE175: =AE172*$F$156*AE$5 -> 0 | AF175: =AF172*$F$156*AF$5 -> 0 | AG175: =AG172*$F$156*AG$5 -> 0 | AH175: =AH172*$F$156*AH$5 -> 0 | AI175: =AI172*$F$156*AI$5 -> 0 | AJ175: =AJ172*$F$156*AJ$5 -> 0 | AK175: =AK172*$F$156*AK$5 -> 0 | AL175: =AL172*$F$156*AL$5 -> 0 | AM175: =AM172*$F$156*AM$5 -> 0 | AN175: =AN172*$F$156*AN$5 -> 0 | AO175: =AO172*$F$156*AO$5 -> 0 | AP175: =AP172*$F$156*AP$5 -> 0 | AQ175: =AQ172*$F$156*AQ$5 -> 0 | AR175: =AR172*$F$156*AR$5 -> 0 | AS175: =AS172*$F$156*AS$5 -> 0 | AT175: =AT172*$F$156*AT$5 -> 0 | AU175: =AU172*$F$156*AU$5 -> 0 | AV175: =AV172*$F$156*AV$5 -> 0 | AW175: =AW172*$F$156*AW$5 -> 0 | AX175: =AX172*$F$156*AX$5 -> 0 | AY175: =AY172*$F$156*AY$5 -> 0 | AZ175: =AZ172*$F$156*AZ$5 -> 0 | BA175: =BA172*$F$156*BA$5 -> 0 | BB175: =BB172*$F$156*BB$5 -> 0 | BC175: =BC172*$F$156*BC$5 -> 0 | BD175: =BD172*$F$156*BD$5 -> 0 | BE175: =BE172*$F$156*BE$5 -> 0 | BF175: =BF172*$F$156*BF$5 -> 0 | BG175: =BG172*$F$156*BG$5 -> 0 | BH175: =BH172*$F$156*BH$5 -> 0 | BI175: =BI172*$F$156*BI$5 -> 0 | BJ175: =BJ172*$F$156*BJ$5 -> 0 | BK175: =BK172*$F$156*BK$5 -> 0 | BL175: =BL172*$F$156*BL$5 -> 0 | BM175: =BM172*$F$156*BM$5 -> 0 | BN175: =BN172*$F$156*BN$5 -> 0 | BO175: =BO172*$F$156*BO$5 -> 0 | BP175: =BP172*$F$156*BP$5 -> 0 | BQ175: =BQ172*$F$156*BQ$5 -> 0 | BR175: =BR172*$F$156*BR$5 -> 0 | BS175: =BS172*$F$156*BS$5 -> 0 | BT175: =BT172*$F$156*BT$5 -> 0 | BU175: =BU172*$F$156*BU$5 -> 0 | BV175: =BV172*$F$156*BV$5 -> 0 | BW175: =BW172*$F$156*BW$5 -> 0 | BX175: =BX172*$F$156*BX$5 -> 0 | BY175: =BY172*$F$156*BY$5 -> 0 | BZ175: =BZ172*$F$156*BZ$5 -> 0 | CA175: =CA172*$F$156*CA$5 -> 0 | CB175: =CB172*$F$156*CB$5 -> 0 | CC175: =CC172*$F$156*CC$5 -> 0 | CD175: =CD172*$F$156*CD$5 -> 0 | CE175: =CE172*$F$156*CE$5 -> 0 | CF175: =CF172*$F$156*CF$5 -> 0 | CG175: =CG172*$F$156*CG$5 -> 0 | CH175: =CH172*$F$156*CH$5 -> 0 | CI175: =CI172*$F$156*CI$5 -> 0 | CJ175: =CJ172*$F$156*CJ$5 -> 0 | CK175: =CK172*$F$156*CK$5 -> 0 | CL175: =CL172*$F$156*CL$5 -> 0 | CM175: =CM172*$F$156*CM$5 -> 0 | CN175: =CN172*$F$156*CN$5 -> 0 | CO175: =CO172*$F$156*CO$5 -> 0 | CP175: =CP172*$F$156*CP$5 -> 0 | CQ175: =CQ172*$F$156*CQ$5 -> 0 | CR175: =CR172*$F$156*CR$5 -> 0 | CS175: =CS172*$F$156*CS$5 -> 0 | CT175: =CT172*$F$156*CT$5 -> 0 | CU175: =CU172*$F$156*CU$5 -> 0 | CV175: =CV172*$F$156*CV$5 -> 0 | CW175: =CW172*$F$156*CW$5 -> 0 | CX175: =CX172*$F$156*CX$5 -> 0 | CY175: =CY172*$F$156*CY$5 -> 0 | CZ175: =CZ172*$F$156*CZ$5 -> 0 | DA175: =DA172*$F$156*DA$5 -> 0 | DB175: =DB172*$F$156*DB$5 -> 0 | DC175: =DC172*$F$156*DC$5 -> 0
D177: P50/P90 EBITDA | I177: =I146/I164 ->  | J177: =J146/J164 ->  | BV177: =BV146/BV164 -> 
B179: P99 DSCR
C180: Cash flow P99 case
D181: MWh P99 case | E181: MWh | H181: =H96 -> 0 | I181: =I96 -> 0 | J181: =J96 -> 0 | K181: =K96 -> 0 | L181: =L96 -> 0 | M181: =M96 -> 0 | N181: =N96 -> 0 | O181: =O96 -> 0 | P181: =P96 -> 0 | Q181: =Q96 -> 0 | R181: =R96 -> 0 | S181: =S96 -> 0 | T181: =T96 -> 0 | U181: =U96 -> 0 | V181: =V96 -> 0 | W181: =W96 -> 0 | X181: =X96 -> 0 | Y181: =Y96 -> 0 | Z181: =Z96 -> 0 | AA181: =AA96 -> 0 | AB181: =AB96 -> 0 | AC181: =AC96 -> 0 | AD181: =AD96 -> 0 | AE181: =AE96 -> 0 | AF181: =AF96 -> 0 | AG181: =AG96 -> 0 | AH181: =AH96 -> 0 | AI181: =AI96 -> 0 | AJ181: =AJ96 -> 0 | AK181: =AK96 -> 0 | AL181: =AL96 -> 0 | AM181: =AM96 -> 0 | AN181: =AN96 -> 0 | AO181: =AO96 -> 0 | AP181: =AP96 -> 0 | AQ181: =AQ96 -> 0 | AR181: =AR96 -> 0 | AS181: =AS96 -> 0 | AT181: =AT96 -> 0 | AU181: =AU96 -> 0 | AV181: =AV96 -> 0 | AW181: =AW96 -> 0 | AX181: =AX96 -> 0 | AY181: =AY96 -> 0 | AZ181: =AZ96 -> 0 | BA181: =BA96 -> 0 | BB181: =BB96 -> 0 | BC181: =BC96 -> 0 | BD181: =BD96 -> 0 | BE181: =BE96 -> 0 | BF181: =BF96 -> 0 | BG181: =BG96 -> 0 | BH181: =BH96 -> 0 | BI181: =BI96 -> 0 | BJ181: =BJ96 -> 0 | BK181: =BK96 -> 0 | BL181: =BL96 -> 0 | BM181: =BM96 -> 0 | BN181: =BN96 -> 0 | BO181: =BO96 -> 0 | BP181: =BP96 -> 0 | BQ181: =BQ96 -> 0 | BR181: =BR96 -> 0 | BS181: =BS96 -> 0 | BT181: =BT96 -> 0 | BU181: =BU96 -> 0 | BV181: =BV96 -> 0 | BW181: =BW96 -> 0 | BX181: =BX96 -> 0 | BY181: =BY96 -> 0 | BZ181: =BZ96 -> 0 | CA181: =CA96 -> 0 | CB181: =CB96 -> 0 | CC181: =CC96 -> 0 | CD181: =CD96 -> 0 | CE181: =CE96 -> 0 | CF181: =CF96 -> 0 | CG181: =CG96 -> 0 | CH181: =CH96 -> 0 | CI181: =CI96 -> 0 | CJ181: =CJ96 -> 0 | CK181: =CK96 -> 0 | CL181: =CL96 -> 0 | CM181: =CM96 -> 0 | CN181: =CN96 -> 0 | CO181: =CO96 -> 0 | CP181: =CP96 -> 0 | CQ181: =CQ96 -> 0 | CR181: =CR96 -> 0 | CS181: =CS96 -> 0 | CT181: =CT96 -> 0 | CU181: =CU96 -> 0 | CV181: =CV96 -> 0 | CW181: =CW96 -> 0 | CX181: =CX96 -> 0 | CY181: =CY96 -> 0 | CZ181: =CZ96 -> 0 | DA181: =DA96 -> 0 | DB181: =DB96 -> 0 | DC181: =DC96 -> 0
D182: Price - variable cost | E182: Euro/MWh | H182: =H142 -> 0 | I182: =I142 -> 0 | J182: =J142 -> 0 | K182: =K142 -> 0 | L182: =L142 -> 0 | M182: =M142 -> 0 | N182: =N142 -> 0 | O182: =O142 -> 0 | P182: =P142 -> 0 | Q182: =Q142 -> 0 | R182: =R142 -> 0 | S182: =S142 -> 0 | T182: =T142 -> 0 | U182: =U142 -> 0 | V182: =V142 -> 0 | W182: =W142 -> 0 | X182: =X142 -> 0 | Y182: =Y142 -> 0 | Z182: =Z142 -> 0 | AA182: =AA142 -> 0 | AB182: =AB142 -> 0 | AC182: =AC142 -> 0 | AD182: =AD142 -> 0 | AE182: =AE142 -> 0 | AF182: =AF142 -> 0 | AG182: =AG142 -> 0 | AH182: =AH142 -> 0 | AI182: =AI142 -> 0 | AJ182: =AJ142 -> 0 | AK182: =AK142 -> 0 | AL182: =AL142 -> 0 | AM182: =AM142 -> 0 | AN182: =AN142 -> 0 | AO182: =AO142 -> 0 | AP182: =AP142 -> 0 | AQ182: =AQ142 -> 0 | AR182: =AR142 -> 0 | AS182: =AS142 -> 0 | AT182: =AT142 -> 0 | AU182: =AU142 -> 0 | AV182: =AV142 -> 0 | AW182: =AW142 -> 0 | AX182: =AX142 -> 0 | AY182: =AY142 -> 0 | AZ182: =AZ142 -> 0 | BA182: =BA142 -> 0 | BB182: =BB142 -> 0 | BC182: =BC142 -> 0 | BD182: =BD142 -> 0 | BE182: =BE142 -> 0 | BF182: =BF142 -> 0 | BG182: =BG142 -> 0 | BH182: =BH142 -> 0 | BI182: =BI142 -> 0 | BJ182: =BJ142 -> 0 | BK182: =BK142 -> 0 | BL182: =BL142 -> 0 | BM182: =BM142 -> 0 | BN182: =BN142 -> 0 | BO182: =BO142 -> 0 | BP182: =BP142 -> 0 | BQ182: =BQ142 -> 0 | BR182: =BR142 -> 0 | BS182: =BS142 -> 0 | BT182: =BT142 -> 0 | BU182: =BU142 -> 0 | BV182: =BV142 -> 0 | BW182: =BW142 -> 0 | BX182: =BX142 -> 0 | BY182: =BY142 -> 0 | BZ182: =BZ142 -> 0 | CA182: =CA142 -> 0 | CB182: =CB142 -> 0 | CC182: =CC142 -> 0 | CD182: =CD142 -> 0 | CE182: =CE142 -> 0 | CF182: =CF142 -> 0 | CG182: =CG142 -> 0 | CH182: =CH142 -> 0 | CI182: =CI142 -> 0 | CJ182: =CJ142 -> 0 | CK182: =CK142 -> 0 | CL182: =CL142 -> 0 | CM182: =CM142 -> 0 | CN182: =CN142 -> 0 | CO182: =CO142 -> 0 | CP182: =CP142 -> 0 | CQ182: =CQ142 -> 0 | CR182: =CR142 -> 0 | CS182: =CS142 -> 0 | CT182: =CT142 -> 0 | CU182: =CU142 -> 0 | CV182: =CV142 -> 0 | CW182: =CW142 -> 0 | CX182: =CX142 -> 0 | CY182: =CY142 -> 0 | CZ182: =CZ142 -> 0 | DA182: =DA142 -> 0 | DB182: =DB142 -> 0 | DC182: =DC142 -> 0
D183: Margin P99 case | E183: Euro 000's | H183: =H181*H182/1000 -> 0 | I183: =I181*I182/1000 -> 0 | J183: 0 | K183: 0 | L183: 0 | M183: 0 | N183: 0 | O183: 0 | P183: 0 | Q183: 0 | R183: 0 | S183: 0 | T183: 0 | U183: 0 | V183: 0 | W183: 0 | X183: 0 | Y183: 0 | Z183: 0 | AA183: 0 | AB183: 0 | AC183: 0 | AD183: 0 | AE183: 0 | AF183: 0 | AG183: 0 | AH183: 0 | AI183: 0 | AJ183: 0 | AK183: 0 | AL183: 0 | AM183: 0 | AN183: 0 | AO183: 0 | AP183: 0 | AQ183: 0 | AR183: 0 | AS183: 0 | AT183: 0 | AU183: 0 | AV183: 0 | AW183: 0 | AX183: 0 | AY183: 0 | AZ183: 0 | BA183: 0 | BB183: 0 | BC183: 0 | BD183: 0 | BE183: 0 | BF183: 0 | BG183: 0 | BH183: 0 | BI183: 0 | BJ183: 0 | BK183: 0 | BL183: 0 | BM183: 0 | BN183: 0 | BO183: 0 | BP183: 0 | BQ183: 0 | BR183: 0 | BS183: 0 | BT183: 0 | BU183: =BU181*BU182/1000 -> 0 | BV183: 0 | BW183: 0 | BX183: 0 | BY183: 0 | BZ183: 0 | CA183: 0 | CB183: 0 | CC183: 0 | CD183: 0 | CE183: 0 | CF183: 0 | CG183: 0 | CH183: 0 | CI183: 0 | CJ183: 0 | CK183: 0 | CL183: 0 | CM183: 0 | CN183: 0 | CO183: 0 | CP183: 0 | CQ183: 0 | CR183: 0 | CS183: 0 | CT183: 0 | CU183: 0 | CV183: 0 | CW183: 0 | CX183: 0 | CY183: 0 | CZ183: 0 | DA183: 0 | DB183: 0 | DC183: 0
D184: Fixed Cost | E184: Euro 000's | H184: =H116 -> 0 | I184: =I116 -> 0 | J184: =J116 -> 0 | K184: =K116 -> 0 | L184: =L116 -> 0 | M184: =M116 -> 0 | N184: =N116 -> 0 | O184: =O116 -> 0 | P184: =P116 -> 0 | Q184: =Q116 -> 0 | R184: =R116 -> 0 | S184: =S116 -> 0 | T184: =T116 -> 0 | U184: =U116 -> 0 | V184: =V116 -> 0 | W184: =W116 -> 0 | X184: =X116 -> 0 | Y184: =Y116 -> 0 | Z184: =Z116 -> 0 | AA184: =AA116 -> 0 | AB184: =AB116 -> 0 | AC184: =AC116 -> 0 | AD184: =AD116 -> 0 | AE184: =AE116 -> 0 | AF184: =AF116 -> 0 | AG184: =AG116 -> 0 | AH184: =AH116 -> 0 | AI184: =AI116 -> 0 | AJ184: =AJ116 -> 0 | AK184: =AK116 -> 0 | AL184: =AL116 -> 0 | AM184: =AM116 -> 0 | AN184: =AN116 -> 0 | AO184: =AO116 -> 0 | AP184: =AP116 -> 0 | AQ184: =AQ116 -> 0 | AR184: =AR116 -> 0 | AS184: =AS116 -> 0 | AT184: =AT116 -> 0 | AU184: =AU116 -> 0 | AV184: =AV116 -> 0 | AW184: =AW116 -> 0 | AX184: =AX116 -> 0 | AY184: =AY116 -> 0 | AZ184: =AZ116 -> 0 | BA184: =BA116 -> 0 | BB184: =BB116 -> 0 | BC184: =BC116 -> 0 | BD184: =BD116 -> 0 | BE184: =BE116 -> 0 | BF184: =BF116 -> 0 | BG184: =BG116 -> 0 | BH184: =BH116 -> 0 | BI184: =BI116 -> 0 | BJ184: =BJ116 -> 0 | BK184: =BK116 -> 0 | BL184: =BL116 -> 0 | BM184: =BM116 -> 0 | BN184: =BN116 -> 0 | BO184: =BO116 -> 0 | BP184: =BP116 -> 0 | BQ184: =BQ116 -> 0 | BR184: =BR116 -> 0 | BS184: =BS116 -> 0 | BT184: =BT116 -> 0 | BU184: =BU116 -> 0 | BV184: =BV116 -> 0 | BW184: =BW116 -> 0 | BX184: =BX116 -> 0 | BY184: =BY116 -> 0 | BZ184: =BZ116 -> 0 | CA184: =CA116 -> 0 | CB184: =CB116 -> 0 | CC184: =CC116 -> 0 | CD184: =CD116 -> 0 | CE184: =CE116 -> 0 | CF184: =CF116 -> 0 | CG184: =CG116 -> 0 | CH184: =CH116 -> 0 | CI184: =CI116 -> 0 | CJ184: =CJ116 -> 0 | CK184: =CK116 -> 0 | CL184: =CL116 -> 0 | CM184: =CM116 -> 0 | CN184: =CN116 -> 0 | CO184: =CO116 -> 0 | CP184: =CP116 -> 0 | CQ184: =CQ116 -> 0 | CR184: =CR116 -> 0 | CS184: =CS116 -> 0 | CT184: =CT116 -> 0 | CU184: =CU116 -> 0 | CV184: =CV116 -> 0 | CW184: =CW116 -> 0 | CX184: =CX116 -> 0 | CY184: =CY116 -> 0 | CZ184: =CZ116 -> 0 | DA184: =DA116 -> 0 | DB184: =DB116 -> 0 | DC184: =DC116 -> 0
D185: EBITDA P99 | E185: Euro 000's | H185: =H183-H184 -> 0 | I185: =I183-I184 -> 0 | J185: 0 | K185: 0 | L185: 0 | M185: 0 | N185: 0 | O185: 0 | P185: 0 | Q185: 0 | R185: 0 | S185: 0 | T185: 0 | U185: 0 | V185: 0 | W185: 0 | X185: 0 | Y185: 0 | Z185: 0 | AA185: 0 | AB185: 0 | AC185: 0 | AD185: 0 | AE185: 0 | AF185: 0 | AG185: 0 | AH185: 0 | AI185: 0 | AJ185: 0 | AK185: 0 | AL185: 0 | AM185: 0 | AN185: 0 | AO185: 0 | AP185: 0 | AQ185: 0 | AR185: 0 | AS185: 0 | AT185: 0 | AU185: 0 | AV185: 0 | AW185: 0 | AX185: 0 | AY185: 0 | AZ185: 0 | BA185: 0 | BB185: 0 | BC185: 0 | BD185: 0 | BE185: 0 | BF185: 0 | BG185: 0 | BH185: 0 | BI185: 0 | BJ185: 0 | BK185: 0 | BL185: 0 | BM185: 0 | BN185: 0 | BO185: 0 | BP185: 0 | BQ185: 0 | BR185: 0 | BS185: 0 | BT185: 0 | BU185: =BU183-BU184 -> 0 | BV185: 0 | BW185: 0 | BX185: 0 | BY185: 0 | BZ185: 0 | CA185: 0 | CB185: 0 | CC185: 0 | CD185: 0 | CE185: 0 | CF185: 0 | CG185: 0 | CH185: 0 | CI185: 0 | CJ185: 0 | CK185: 0 | CL185: 0 | CM185: 0 | CN185: 0 | CO185: 0 | CP185: 0 | CQ185: 0 | CR185: 0 | CS185: 0 | CT185: 0 | CU185: 0 | CV185: 0 | CW185: 0 | CX185: 0 | CY185: 0 | CZ185: 0 | DA185: 0 | DB185: 0 | DC185: 0
D186: CFADS P99 case | E186: Euro 000's | H186: =H185 -> 0 | I186: =I185 -> 0 | J186: 0 | K186: 0 | L186: 0 | M186: 0 | N186: 0 | O186: 0 | P186: 0 | Q186: 0 | R186: 0 | S186: 0 | T186: 0 | U186: 0 | V186: 0 | W186: 0 | X186: 0 | Y186: 0 | Z186: 0 | AA186: 0 | AB186: 0 | AC186: 0 | AD186: 0 | AE186: 0 | AF186: 0 | AG186: 0 | AH186: 0 | AI186: 0 | AJ186: 0 | AK186: 0 | AL186: 0 | AM186: 0 | AN186: 0 | AO186: 0 | AP186: 0 | AQ186: 0 | AR186: 0 | AS186: 0 | AT186: 0 | AU186: 0 | AV186: 0 | AW186: 0 | AX186: 0 | AY186: 0 | AZ186: 0 | BA186: 0 | BB186: 0 | BC186: 0 | BD186: 0 | BE186: 0 | BF186: 0 | BG186: 0 | BH186: 0 | BI186: 0 | BJ186: 0 | BK186: 0 | BL186: 0 | BM186: 0 | BN186: 0 | BO186: 0 | BP186: 0 | BQ186: 0 | BR186: 0 | BS186: 0 | BT186: 0 | BU186: =BU185 -> 0 | BV186: 0 | BW186: 0 | BX186: 0 | BY186: 0 | BZ186: 0 | CA186: 0 | CB186: 0 | CC186: 0 | CD186: 0 | CE186: 0 | CF186: 0 | CG186: 0 | CH186: 0 | CI186: 0 | CJ186: 0 | CK186: 0 | CL186: 0 | CM186: 0 | CN186: 0 | CO186: 0 | CP186: 0 | CQ186: 0 | CR186: 0 | CS186: 0 | CT186: 0 | CU186: 0 | CV186: 0 | CW186: 0 | CX186: 0 | CY186: 0 | CZ186: 0 | DA186: 0 | DB186: 0 | DC186: 0
D187: Target Debt Service | E187: Times | F187: =F62 -> 1 | H187: =H186/$F$187 -> 0 | I187: =I186/$F$187 -> 0 | J187: 0 | K187: 0 | L187: 0 | M187: 0 | N187: 0 | O187: 0 | P187: 0 | Q187: 0 | R187: 0 | S187: 0 | T187: 0 | U187: 0 | V187: 0 | W187: 0 | X187: 0 | Y187: 0 | Z187: 0 | AA187: 0 | AB187: 0 | AC187: 0 | AD187: 0 | AE187: 0 | AF187: 0 | AG187: 0 | AH187: 0 | AI187: 0 | AJ187: 0 | AK187: 0 | AL187: 0 | AM187: 0 | AN187: 0 | AO187: 0 | AP187: 0 | AQ187: 0 | AR187: 0 | AS187: 0 | AT187: 0 | AU187: 0 | AV187: 0 | AW187: 0 | AX187: 0 | AY187: 0 | AZ187: 0 | BA187: 0 | BB187: 0 | BC187: 0 | BD187: 0 | BE187: 0 | BF187: 0 | BG187: 0 | BH187: 0 | BI187: 0 | BJ187: 0 | BK187: 0 | BL187: 0 | BM187: 0 | BN187: 0 | BO187: 0 | BP187: 0 | BQ187: 0 | BR187: 0 | BS187: 0 | BT187: 0 | BU187: =BU186/$F$187 -> 0 | BV187: 0 | BW187: 0 | BX187: 0 | BY187: 0 | BZ187: 0 | CA187: 0 | CB187: 0 | CC187: 0 | CD187: 0 | CE187: 0 | CF187: 0 | CG187: 0 | CH187: 0 | CI187: 0 | CJ187: 0 | CK187: 0 | CL187: 0 | CM187: 0 | CN187: 0 | CO187: 0 | CP187: 0 | CQ187: 0 | CR187: 0 | CS187: 0 | CT187: 0 | CU187: 0 | CV187: 0 | CW187: 0 | CX187: 0 | CY187: 0 | CZ187: 0 | DA187: 0 | DB187: 0 | DC187: 0
D189: Target Debt Service over debt maturity | E189: Euro 000's | H189: =H187*H$137 -> 0 | I189: =I187*I$137 -> 0 | J189: 0 | K189: 0 | L189: 0 | M189: 0 | N189: 0 | O189: 0 | P189: 0 | Q189: 0 | R189: 0 | S189: 0 | T189: 0 | U189: 0 | V189: 0 | W189: 0 | X189: 0 | Y189: 0 | Z189: 0 | AA189: 0 | AB189: 0 | AC189: 0 | AD189: 0 | AE189: 0 | AF189: 0 | AG189: 0 | AH189: 0 | AI189: 0 | AJ189: 0 | AK189: 0 | AL189: 0 | AM189: 0 | AN189: 0 | AO189: 0 | AP189: 0 | AQ189: 0 | AR189: 0 | AS189: 0 | AT189: 0 | AU189: 0 | AV189: 0 | AW189: 0 | AX189: 0 | AY189: 0 | AZ189: 0 | BA189: 0 | BB189: 0 | BC189: 0 | BD189: 0 | BE189: 0 | BF189: 0 | BG189: 0 | BH189: 0 | BI189: 0 | BJ189: 0 | BK189: 0 | BL189: 0 | BM189: 0 | BN189: 0 | BO189: 0 | BP189: 0 | BQ189: 0 | BR189: 0 | BS189: 0 | BT189: 0 | BU189: =BU187*BU$137 -> 0 | BV189: 0 | BW189: 0 | BX189: 0 | BY189: 0 | BZ189: 0 | CA189: 0 | CB189: 0 | CC189: 0 | CD189: 0 | CE189: 0 | CF189: 0 | CG189: 0 | CH189: 0 | CI189: 0 | CJ189: 0 | CK189: 0 | CL189: 0 | CM189: 0 | CN189: 0 | CO189: 0 | CP189: 0 | CQ189: 0 | CR189: 0 | CS189: 0 | CT189: 0 | CU189: 0 | CV189: 0 | CW189: 0 | CX189: 0 | CY189: 0 | CZ189: 0 | DA189: 0 | DB189: 0 | DC189: 0
D190: NPV of debt service =size of debt | E190: Euro 000's | F190: =F169 -> 0.0165 | G190: 1 | H190: =G190*(1+$F$190*H$137) -> 1 | I190: =H190*(1+$F$169*I$137) -> 1 | J190: =I190*(1+$F$169*J$137) -> 1.0165 | K190: =J190*(1+$F$169*K$137) -> 1.03327225 | L190: =K190*(1+$F$169*L$137) -> 1.050321242 | M190: =L190*(1+$F$169*M$137) -> 1.067651543 | N190: =M190*(1+$F$169*N$137) -> 1.085267793 | O190: =N190*(1+$F$169*O$137) -> 1.103174712 | P190: =O190*(1+$F$169*P$137) -> 1.121377094 | Q190: =P190*(1+$F$169*Q$137) -> 1.139879816 | R190: =Q190*(1+$F$169*R$137) -> 1.158687833 | S190: =R190*(1+$F$169*S$137) -> 1.177806183 | T190: =S190*(1+$F$169*T$137) -> 1.197239985 | U190: =T190*(1+$F$169*U$137) -> 1.216994444 | V190: =U190*(1+$F$169*V$137) -> 1.237074853 | W190: =V190*(1+$F$169*W$137) -> 1.257486588 | X190: =W190*(1+$F$169*X$137) -> 1.278235117 | Y190: =X190*(1+$F$169*Y$137) -> 1.299325996 | Z190: =Y190*(1+$F$169*Z$137) -> 1.320764875 | AA190: =Z190*(1+$F$169*AA$137) -> 1.342557495 | AB190: =AA190*(1+$F$169*AB$137) -> 1.364709694 | AC190: =AB190*(1+$F$169*AC$137) -> 1.387227404 | AD190: =AC190*(1+$F$169*AD$137) -> 1.410116656 | AE190: =AD190*(1+$F$169*AE$137) -> 1.433383581 | AF190: =AE190*(1+$F$169*AF$137) -> 1.45703441 | AG190: =AF190*(1+$F$169*AG$137) -> 1.481075478 | AH190: =AG190*(1+$F$169*AH$137) -> 1.505513223 | AI190: =AH190*(1+$F$169*AI$137) -> 1.530354191 | AJ190: =AI190*(1+$F$169*AJ$137) -> 1.555605036 | AK190: =AJ190*(1+$F$169*AK$137) -> 1.581272519 | AL190: =AK190*(1+$F$169*AL$137) -> 1.607363515 | AM190: =AL190*(1+$F$169*AM$137) -> 1.633885013 | AN190: =AM190*(1+$F$169*AN$137) -> 1.660844116 | AO190: =AN190*(1+$F$169*AO$137) -> 1.688248044 | AP190: =AO190*(1+$F$169*AP$137) -> 1.716104137 | AQ190: =AP190*(1+$F$169*AQ$137) -> 1.744419855 | AR190: =AQ190*(1+$F$169*AR$137) -> 1.773202782 | AS190: =AR190*(1+$F$169*AS$137) -> 1.802460628 | AT190: =AS190*(1+$F$169*AT$137) -> 1.832201229 | AU190: =AT190*(1+$F$169*AU$137) -> 1.862432549 | AV190: =AU190*(1+$F$169*AV$137) -> 1.893162686 | AW190: =AV190*(1+$F$169*AW$137) -> 1.893162686 | AX190: =AW190*(1+$F$169*AX$137) -> 1.893162686 | AY190: =AX190*(1+$F$169*AY$137) -> 1.893162686 | AZ190: =AY190*(1+$F$169*AZ$137) -> 1.893162686 | BA190: =AZ190*(1+$F$169*BA$137) -> 1.893162686 | BB190: =BA190*(1+$F$169*BB$137) -> 1.893162686 | BC190: =BB190*(1+$F$169*BC$137) -> 1.893162686 | BD190: =BC190*(1+$F$169*BD$137) -> 1.893162686 | BE190: =BD190*(1+$F$169*BE$137) -> 1.893162686 | BF190: =BE190*(1+$F$169*BF$137) -> 1.893162686 | BG190: =BF190*(1+$F$169*BG$137) -> 1.893162686 | BH190: =BG190*(1+$F$169*BH$137) -> 1.893162686 | BI190: =BH190*(1+$F$169*BI$137) -> 1.893162686 | BJ190: =BI190*(1+$F$169*BJ$137) -> 1.893162686 | BK190: =BJ190*(1+$F$169*BK$137) -> 1.893162686 | BL190: =BK190*(1+$F$169*BL$137) -> 1.893162686 | BM190: =BL190*(1+$F$169*BM$137) -> 1.893162686 | BN190: =BM190*(1+$F$169*BN$137) -> 1.893162686 | BO190: =BN190*(1+$F$169*BO$137) -> 1.893162686 | BP190: =BO190*(1+$F$169*BP$137) -> 1.893162686 | BQ190: =BP190*(1+$F$169*BQ$137) -> 1.893162686 | BR190: =BQ190*(1+$F$169*BR$137) -> 1.893162686 | BS190: =BR190*(1+$F$169*BS$137) -> 1.893162686 | BT190: =BS190*(1+$F$169*BT$137) -> 1.893162686 | BU190: =BT190*(1+$F$169*BU$137) -> 1.893162686 | BV190: =BU190*(1+$F$169*BV$137) -> 1.893162686 | BW190: =BV190*(1+$F$169*BW$137) -> 1.893162686 | BX190: =BW190*(1+$F$169*BX$137) -> 1.893162686 | BY190: =BX190*(1+$F$169*BY$137) -> 1.893162686 | BZ190: =BY190*(1+$F$169*BZ$137) -> 1.893162686 | CA190: =BZ190*(1+$F$169*CA$137) -> 1.893162686 | CB190: =CA190*(1+$F$169*CB$137) -> 1.893162686 | CC190: =CB190*(1+$F$169*CC$137) -> 1.893162686 | CD190: =CC190*(1+$F$169*CD$137) -> 1.893162686 | CE190: =CD190*(1+$F$169*CE$137) -> 1.893162686 | CF190: =CE190*(1+$F$169*CF$137) -> 1.893162686 | CG190: =CF190*(1+$F$169*CG$137) -> 1.893162686 | CH190: =CG190*(1+$F$169*CH$137) -> 1.893162686 | CI190: =CH190*(1+$F$169*CI$137) -> 1.893162686 | CJ190: =CI190*(1+$F$169*CJ$137) -> 1.893162686 | CK190: =CJ190*(1+$F$169*CK$137) -> 1.893162686 | CL190: =CK190*(1+$F$169*CL$137) -> 1.893162686 | CM190: =CL190*(1+$F$169*CM$137) -> 1.893162686 | CN190: =CM190*(1+$F$169*CN$137) -> 1.893162686 | CO190: =CN190*(1+$F$169*CO$137) -> 1.893162686 | CP190: =CO190*(1+$F$169*CP$137) -> 1.893162686 | CQ190: =CP190*(1+$F$169*CQ$137) -> 1.893162686 | CR190: =CQ190*(1+$F$169*CR$137) -> 1.893162686 | CS190: =CR190*(1+$F$169*CS$137) -> 1.893162686 | CT190: =CS190*(1+$F$169*CT$137) -> 1.893162686 | CU190: =CT190*(1+$F$169*CU$137) -> 1.893162686 | CV190: =CU190*(1+$F$169*CV$137) -> 1.893162686 | CW190: =CV190*(1+$F$169*CW$137) -> 1.893162686 | CX190: =CW190*(1+$F$169*CX$137) -> 1.893162686 | CY190: =CX190*(1+$F$169*CY$137) -> 1.893162686 | CZ190: =CY190*(1+$F$169*CZ$137) -> 1.893162686 | DA190: =CZ190*(1+$F$169*DA$137) -> 1.893162686 | DB190: =DA190*(1+$F$169*DB$137) -> 1.893162686 | DC190: =DB190*(1+$F$169*DC$137) -> 1.893162686
D191: Size of Debt from P99 | E191: Euro 000's | F191: =SUMPRODUCT(H189:DC189/H190:DC190) -> 0 | G191: 3
D193: Opening Balance | H193: =G195 -> 0 | I193: =H195 -> 0 | J193: 0 | K193: 0 | L193: 0 | M193: 0 | N193: 0 | O193: 0 | P193: 0 | Q193: 0 | R193: 0 | S193: 0 | T193: 0 | U193: 0 | V193: 0 | W193: 0 | X193: 0 | Y193: 0 | Z193: 0 | AA193: 0 | AB193: 0 | AC193: 0 | AD193: 0 | AE193: 0 | AF193: 0 | AG193: 0 | AH193: 0 | AI193: 0 | AJ193: 0 | AK193: 0 | AL193: 0 | AM193: 0 | AN193: 0 | AO193: 0 | AP193: 0 | AQ193: 0 | AR193: 0 | AS193: 0 | AT193: 0 | AU193: 0 | AV193: 0 | AW193: 0 | AX193: 0 | AY193: 0 | AZ193: 0 | BA193: 0 | BB193: 0 | BC193: 0 | BD193: 0 | BE193: 0 | BF193: 0 | BG193: 0 | BH193: 0 | BI193: 0 | BJ193: 0 | BK193: 0 | BL193: 0 | BM193: 0 | BN193: 0 | BO193: 0 | BP193: 0 | BQ193: 0 | BR193: 0 | BS193: 0 | BT193: 0 | BU193: =BT195 -> 0 | BV193: 0 | BW193: 0 | BX193: 0 | BY193: 0 | BZ193: 0 | CA193: 0 | CB193: 0 | CC193: 0 | CD193: 0 | CE193: 0 | CF193: 0 | CG193: 0 | CH193: 0 | CI193: 0 | CJ193: 0 | CK193: 0 | CL193: 0 | CM193: 0 | CN193: 0 | CO193: 0 | CP193: 0 | CQ193: 0 | CR193: 0 | CS193: 0 | CT193: 0 | CU193: 0 | CV193: 0 | CW193: 0 | CX193: 0 | CY193: 0 | CZ193: 0 | DA193: 0 | DB193: 0 | DC193: 0
D194: Less Repayments | H194: =(H189-H196)*H$137 -> 0 | I194: =(I189-I196)*I$137 -> 0 | J194: 0 | K194: 0 | L194: 0 | M194: 0 | N194: 0 | O194: 0 | P194: 0 | Q194: 0 | R194: 0 | S194: 0 | T194: 0 | U194: 0 | V194: 0 | W194: 0 | X194: 0 | Y194: 0 | Z194: 0 | AA194: 0 | AB194: 0 | AC194: 0 | AD194: 0 | AE194: 0 | AF194: 0 | AG194: 0 | AH194: 0 | AI194: 0 | AJ194: 0 | AK194: 0 | AL194: 0 | AM194: 0 | AN194: 0 | AO194: 0 | AP194: 0 | AQ194: 0 | AR194: 0 | AS194: 0 | AT194: 0 | AU194: 0 | AV194: 0 | AW194: 0 | AX194: 0 | AY194: 0 | AZ194: 0 | BA194: 0 | BB194: 0 | BC194: 0 | BD194: 0 | BE194: 0 | BF194: 0 | BG194: 0 | BH194: 0 | BI194: 0 | BJ194: 0 | BK194: 0 | BL194: 0 | BM194: 0 | BN194: 0 | BO194: 0 | BP194: 0 | BQ194: 0 | BR194: 0 | BS194: 0 | BT194: 0 | BU194: =(BU189-BU196)*BU$137 -> 0 | BV194: 0 | BW194: 0 | BX194: 0 | BY194: 0 | BZ194: 0 | CA194: 0 | CB194: 0 | CC194: 0 | CD194: 0 | CE194: 0 | CF194: 0 | CG194: 0 | CH194: 0 | CI194: 0 | CJ194: 0 | CK194: 0 | CL194: 0 | CM194: 0 | CN194: 0 | CO194: 0 | CP194: 0 | CQ194: 0 | CR194: 0 | CS194: 0 | CT194: 0 | CU194: 0 | CV194: 0 | CW194: 0 | CX194: 0 | CY194: 0 | CZ194: 0 | DA194: 0 | DB194: 0 | DC194: 0
D195: Closing Balance | G195: =F191 -> 0 | H195: =H193-H194 -> 0 | I195: =I193-I194 -> 0 | J195: 0 | K195: 0 | L195: 0 | M195: 0 | N195: 0 | O195: 0 | P195: 0 | Q195: 0 | R195: 0 | S195: 0 | T195: 0 | U195: 0 | V195: 0 | W195: 0 | X195: 0 | Y195: 0 | Z195: 0 | AA195: 0 | AB195: 0 | AC195: 0 | AD195: 0 | AE195: 0 | AF195: 0 | AG195: 0 | AH195: 0 | AI195: 0 | AJ195: 0 | AK195: 0 | AL195: 0 | AM195: 0 | AN195: 0 | AO195: 0 | AP195: 0 | AQ195: 0 | AR195: 0 | AS195: 0 | AT195: 0 | AU195: 0 | AV195: 0 | AW195: 0 | AX195: 0 | AY195: 0 | AZ195: 0 | BA195: 0 | BB195: 0 | BC195: 0 | BD195: 0 | BE195: 0 | BF195: 0 | BG195: 0 | BH195: 0 | BI195: 0 | BJ195: 0 | BK195: 0 | BL195: 0 | BM195: 0 | BN195: 0 | BO195: 0 | BP195: 0 | BQ195: 0 | BR195: 0 | BS195: 0 | BT195: 0 | BU195: =BU193-BU194 -> 0 | BV195: 0 | BW195: 0 | BX195: 0 | BY195: 0 | BZ195: 0 | CA195: 0 | CB195: 0 | CC195: 0 | CD195: 0 | CE195: 0 | CF195: 0 | CG195: 0 | CH195: 0 | CI195: 0 | CJ195: 0 | CK195: 0 | CL195: 0 | CM195: 0 | CN195: 0 | CO195: 0 | CP195: 0 | CQ195: 0 | CR195: 0 | CS195: 0 | CT195: 0 | CU195: 0 | CV195: 0 | CW195: 0 | CX195: 0 | CY195: 0 | CZ195: 0 | DA195: 0 | DB195: 0 | DC195: 0
D196: Interest | F196: =F190 -> 0.0165 | H196: =H193*$F$196*H$5 -> 0 | I196: =I193*$F$196*I$5 -> 0 | J196: =J193*$F$196*J$5 -> 0 | K196: =K193*$F$196*K$5 -> 0 | L196: =L193*$F$196*L$5 -> 0 | M196: =M193*$F$196*M$5 -> 0 | N196: =N193*$F$196*N$5 -> 0 | O196: =O193*$F$196*O$5 -> 0 | P196: =P193*$F$196*P$5 -> 0 | Q196: =Q193*$F$196*Q$5 -> 0 | R196: =R193*$F$196*R$5 -> 0 | S196: =S193*$F$196*S$5 -> 0 | T196: =T193*$F$196*T$5 -> 0 | U196: =U193*$F$196*U$5 -> 0 | V196: =V193*$F$196*V$5 -> 0 | W196: =W193*$F$196*W$5 -> 0 | X196: =X193*$F$196*X$5 -> 0 | Y196: =Y193*$F$196*Y$5 -> 0 | Z196: =Z193*$F$196*Z$5 -> 0 | AA196: =AA193*$F$196*AA$5 -> 0 | AB196: =AB193*$F$196*AB$5 -> 0 | AC196: =AC193*$F$196*AC$5 -> 0 | AD196: =AD193*$F$196*AD$5 -> 0 | AE196: =AE193*$F$196*AE$5 -> 0 | AF196: =AF193*$F$196*AF$5 -> 0 | AG196: =AG193*$F$196*AG$5 -> 0 | AH196: =AH193*$F$196*AH$5 -> 0 | AI196: =AI193*$F$196*AI$5 -> 0 | AJ196: =AJ193*$F$196*AJ$5 -> 0 | AK196: =AK193*$F$196*AK$5 -> 0 | AL196: =AL193*$F$196*AL$5 -> 0 | AM196: =AM193*$F$196*AM$5 -> 0 | AN196: =AN193*$F$196*AN$5 -> 0 | AO196: =AO193*$F$196*AO$5 -> 0 | AP196: =AP193*$F$196*AP$5 -> 0 | AQ196: =AQ193*$F$196*AQ$5 -> 0 | AR196: =AR193*$F$196*AR$5 -> 0 | AS196: =AS193*$F$196*AS$5 -> 0 | AT196: =AT193*$F$196*AT$5 -> 0 | AU196: =AU193*$F$196*AU$5 -> 0 | AV196: =AV193*$F$196*AV$5 -> 0 | AW196: =AW193*$F$196*AW$5 -> 0 | AX196: =AX193*$F$196*AX$5 -> 0 | AY196: =AY193*$F$196*AY$5 -> 0 | AZ196: =AZ193*$F$196*AZ$5 -> 0 | BA196: =BA193*$F$196*BA$5 -> 0 | BB196: =BB193*$F$196*BB$5 -> 0 | BC196: =BC193*$F$196*BC$5 -> 0 | BD196: =BD193*$F$196*BD$5 -> 0 | BE196: =BE193*$F$196*BE$5 -> 0 | BF196: =BF193*$F$196*BF$5 -> 0 | BG196: =BG193*$F$196*BG$5 -> 0 | BH196: =BH193*$F$196*BH$5 -> 0 | BI196: =BI193*$F$196*BI$5 -> 0 | BJ196: =BJ193*$F$196*BJ$5 -> 0 | BK196: =BK193*$F$196*BK$5 -> 0 | BL196: =BL193*$F$196*BL$5 -> 0 | BM196: =BM193*$F$196*BM$5 -> 0 | BN196: =BN193*$F$196*BN$5 -> 0 | BO196: =BO193*$F$196*BO$5 -> 0 | BP196: =BP193*$F$196*BP$5 -> 0 | BQ196: =BQ193*$F$196*BQ$5 -> 0 | BR196: =BR193*$F$196*BR$5 -> 0 | BS196: =BS193*$F$196*BS$5 -> 0 | BT196: =BT193*$F$196*BT$5 -> 0 | BU196: =BU193*$F$196*BU$5 -> 0 | BV196: =BV193*$F$196*BV$5 -> 0 | BW196: =BW193*$F$196*BW$5 -> 0 | BX196: =BX193*$F$196*BX$5 -> 0 | BY196: =BY193*$F$196*BY$5 -> 0 | BZ196: =BZ193*$F$196*BZ$5 -> 0 | CA196: =CA193*$F$196*CA$5 -> 0 | CB196: =CB193*$F$196*CB$5 -> 0 | CC196: =CC193*$F$196*CC$5 -> 0 | CD196: =CD193*$F$196*CD$5 -> 0 | CE196: =CE193*$F$196*CE$5 -> 0 | CF196: =CF193*$F$196*CF$5 -> 0 | CG196: =CG193*$F$196*CG$5 -> 0 | CH196: =CH193*$F$196*CH$5 -> 0 | CI196: =CI193*$F$196*CI$5 -> 0 | CJ196: =CJ193*$F$196*CJ$5 -> 0 | CK196: =CK193*$F$196*CK$5 -> 0 | CL196: =CL193*$F$196*CL$5 -> 0 | CM196: =CM193*$F$196*CM$5 -> 0 | CN196: =CN193*$F$196*CN$5 -> 0 | CO196: =CO193*$F$196*CO$5 -> 0 | CP196: =CP193*$F$196*CP$5 -> 0 | CQ196: =CQ193*$F$196*CQ$5 -> 0 | CR196: =CR193*$F$196*CR$5 -> 0 | CS196: =CS193*$F$196*CS$5 -> 0 | CT196: =CT193*$F$196*CT$5 -> 0 | CU196: =CU193*$F$196*CU$5 -> 0 | CV196: =CV193*$F$196*CV$5 -> 0 | CW196: =CW193*$F$196*CW$5 -> 0 | CX196: =CX193*$F$196*CX$5 -> 0 | CY196: =CY193*$F$196*CY$5 -> 0 | CZ196: =CZ193*$F$196*CZ$5 -> 0 | DA196: =DA193*$F$196*DA$5 -> 0 | DB196: =DB193*$F$196*DB$5 -> 0 | DC196: =DC193*$F$196*DC$5 -> 0
D198: Min Debt from DSCR | F198: =MIN(F191,F170,F151) -> 0 | G198: =MATCH(F198,F:F,0) -> 3 | H198: =INDEX(G:G,$G$198) -> 0 | I198: =INDEX(D:D,$G$198) -> 0
D200: P99/P50 | I200: =I146/I187 ->  | J200: =J146/J187 ->  | BV200: =BV146/BV187 -> 
A203: Project Finance
B204: Uses and Sources Summary
C205: Uses of Funds
D206: EPC Cost | H206: =F100 -> 112800
D207: Development Cost | H207: =F101 -> 3384
D208: Owners Cost | H208: =F102 -> 4324
D209: Fees | H209: =H213*F80 -> 0
D210: Total Cost | H210: =SUM(H206:H209) -> 120508
C212: Sources of Funds | K212: DSCR Min | L212: Debt/Cap | M212: Max Debt/Cap
D213: Debt | G213: =H213/H210 -> 0 | H213: =MIN(K213,M213) -> 0 | K213: =F198 -> 0 | L213: =F64 -> 0.74 | M213: =SUM(H206:H208)/(1/L213-F80) -> 90447.61345 | O213: =MATCH(H213,K213:M213,0) -> 1 | P213: =CHOOSE(O213,K212&" "&I198,,M212) -> DSCR Min 0
D214: Equity | G214: =H214/H210 -> 1 | H214: =H210-H213 -> 120508
D215: Total Sources | H215: =SUM(H213:H214) -> 120508
A217: Debt Repayment, Interest and Schedule
B218: PV of CFADS over Loan Life
D219: Debt Repayment Switch | H219: =H137 -> FALSE | I219: =I137 -> FALSE | J219: =J137 -> TRUE | K219: =K137 -> TRUE | L219: =L137 -> TRUE | M219: =M137 -> TRUE | N219: =N137 -> TRUE | O219: =O137 -> TRUE | P219: =P137 -> TRUE | Q219: =Q137 -> TRUE | R219: =R137 -> TRUE | S219: =S137 -> TRUE | T219: =T137 -> TRUE | U219: =U137 -> TRUE | V219: =V137 -> TRUE | W219: =W137 -> TRUE | X219: =X137 -> TRUE | Y219: =Y137 -> TRUE | Z219: =Z137 -> TRUE | AA219: =AA137 -> TRUE | AB219: =AB137 -> TRUE | AC219: =AC137 -> TRUE | AD219: =AD137 -> TRUE | AE219: =AE137 -> TRUE | AF219: =AF137 -> TRUE | AG219: =AG137 -> TRUE | AH219: =AH137 -> TRUE | AI219: =AI137 -> TRUE | AJ219: =AJ137 -> TRUE | AK219: =AK137 -> TRUE | AL219: =AL137 -> TRUE | AM219: =AM137 -> TRUE | AN219: =AN137 -> TRUE | AO219: =AO137 -> TRUE | AP219: =AP137 -> TRUE | AQ219: =AQ137 -> TRUE | AR219: =AR137 -> TRUE | AS219: =AS137 -> TRUE | AT219: =AT137 -> TRUE | AU219: =AU137 -> TRUE | AV219: =AV137 -> TRUE | AW219: =AW137 -> FALSE | AX219: =AX137 -> FALSE | AY219: =AY137 -> FALSE | AZ219: =AZ137 -> FALSE | BA219: =BA137 -> FALSE | BB219: =BB137 -> FALSE | BC219: =BC137 -> FALSE | BD219: =BD137 -> FALSE | BE219: =BE137 -> FALSE | BF219: =BF137 -> FALSE | BG219: =BG137 -> FALSE | BH219: =BH137 -> FALSE | BI219: =BI137 -> FALSE | BJ219: =BJ137 -> FALSE | BK219: =BK137 -> FALSE | BL219: =BL137 -> FALSE | BM219: =BM137 -> FALSE | BN219: =BN137 -> FALSE | BO219: =BO137 -> FALSE | BP219: =BP137 -> FALSE | BQ219: =BQ137 -> FALSE | BR219: =BR137 -> FALSE | BS219: =BS137 -> FALSE | BT219: =BT137 -> FALSE | BU219: =BU137 -> FALSE | BV219: =BV137 -> FALSE | BW219: =BW137 -> FALSE | BX219: =BX137 -> FALSE | BY219: =BY137 -> FALSE | BZ219: =BZ137 -> FALSE | CA219: =CA137 -> FALSE | CB219: =CB137 -> FALSE | CC219: =CC137 -> FALSE | CD219: =CD137 -> FALSE | CE219: =CE137 -> FALSE | CF219: =CF137 -> FALSE | CG219: =CG137 -> FALSE | CH219: =CH137 -> FALSE | CI219: =CI137 -> FALSE | CJ219: =CJ137 -> FALSE | CK219: =CK137 -> FALSE | CL219: =CL137 -> FALSE | CM219: =CM137 -> FALSE | CN219: =CN137 -> FALSE | CO219: =CO137 -> FALSE | CP219: =CP137 -> FALSE | CQ219: =CQ137 -> FALSE | CR219: =CR137 -> FALSE | CS219: =CS137 -> FALSE | CT219: =CT137 -> FALSE | CU219: =CU137 -> FALSE | CV219: =CV137 -> FALSE | CW219: =CW137 -> FALSE | CX219: =CX137 -> FALSE | CY219: =CY137 -> FALSE | CZ219: =CZ137 -> FALSE | DA219: =DA137 -> FALSE | DB219: =DB137 -> FALSE | DC219: =DC137 -> FALSE
D221: P50 CFADS over Loan Life | H221: =H146*H219 -> 0 | I221: =I146*I219 -> 0 | J221: =J146*J219 -> 0 | K221: =K146*K219 -> 0 | L221: =L146*L219 -> 0 | M221: =M146*M219 -> 0 | N221: =N146*N219 -> 0 | O221: =O146*O219 -> 0 | P221: =P146*P219 -> 0 | Q221: =Q146*Q219 -> 0 | R221: =R146*R219 -> 0 | S221: =S146*S219 -> 0 | T221: =T146*T219 -> 0 | U221: =U146*U219 -> 0 | V221: =V146*V219 -> 0 | W221: =W146*W219 -> 0 | X221: =X146*X219 -> 0 | Y221: =Y146*Y219 -> 0 | Z221: =Z146*Z219 -> 0 | AA221: =AA146*AA219 -> 0 | AB221: =AB146*AB219 -> 0 | AC221: =AC146*AC219 -> 0 | AD221: =AD146*AD219 -> 0 | AE221: =AE146*AE219 -> 0 | AF221: =AF146*AF219 -> 0 | AG221: =AG146*AG219 -> 0 | AH221: =AH146*AH219 -> 0 | AI221: =AI146*AI219 -> 0 | AJ221: =AJ146*AJ219 -> 0 | AK221: =AK146*AK219 -> 0 | AL221: =AL146*AL219 -> 0 | AM221: =AM146*AM219 -> 0 | AN221: =AN146*AN219 -> 0 | AO221: =AO146*AO219 -> 0 | AP221: =AP146*AP219 -> 0 | AQ221: =AQ146*AQ219 -> 0 | AR221: =AR146*AR219 -> 0 | AS221: =AS146*AS219 -> 0 | AT221: =AT146*AT219 -> 0 | AU221: =AU146*AU219 -> 0 | AV221: =AV146*AV219 -> 0 | AW221: =AW146*AW219 -> 0 | AX221: =AX146*AX219 -> 0 | AY221: =AY146*AY219 -> 0 | AZ221: =AZ146*AZ219 -> 0 | BA221: =BA146*BA219 -> 0 | BB221: =BB146*BB219 -> 0 | BC221: =BC146*BC219 -> 0 | BD221: =BD146*BD219 -> 0 | BE221: =BE146*BE219 -> 0 | BF221: =BF146*BF219 -> 0 | BG221: =BG146*BG219 -> 0 | BH221: =BH146*BH219 -> 0 | BI221: =BI146*BI219 -> 0 | BJ221: =BJ146*BJ219 -> 0 | BK221: =BK146*BK219 -> 0 | BL221: =BL146*BL219 -> 0 | BM221: =BM146*BM219 -> 0 | BN221: =BN146*BN219 -> 0 | BO221: =BO146*BO219 -> 0 | BP221: =BP146*BP219 -> 0 | BQ221: =BQ146*BQ219 -> 0 | BR221: =BR146*BR219 -> 0 | BS221: =BS146*BS219 -> 0 | BT221: =BT146*BT219 -> 0 | BU221: =BU146*BU219 -> 0 | BV221: =BV146*BV219 -> 0 | BW221: =BW146*BW219 -> 0 | BX221: =BX146*BX219 -> 0 | BY221: =BY146*BY219 -> 0 | BZ221: =BZ146*BZ219 -> 0 | CA221: =CA146*CA219 -> 0 | CB221: =CB146*CB219 -> 0 | CC221: =CC146*CC219 -> 0 | CD221: =CD146*CD219 -> 0 | CE221: =CE146*CE219 -> 0 | CF221: =CF146*CF219 -> 0 | CG221: =CG146*CG219 -> 0 | CH221: =CH146*CH219 -> 0 | CI221: =CI146*CI219 -> 0 | CJ221: =CJ146*CJ219 -> 0 | CK221: =CK146*CK219 -> 0 | CL221: =CL146*CL219 -> 0 | CM221: =CM146*CM219 -> 0 | CN221: =CN146*CN219 -> 0 | CO221: =CO146*CO219 -> 0 | CP221: =CP146*CP219 -> 0 | CQ221: =CQ146*CQ219 -> 0 | CR221: =CR146*CR219 -> 0 | CS221: =CS146*CS219 -> 0 | CT221: =CT146*CT219 -> 0 | CU221: =CU146*CU219 -> 0 | CV221: =CV146*CV219 -> 0 | CW221: =CW146*CW219 -> 0 | CX221: =CX146*CX219 -> 0 | CY221: =CY146*CY219 -> 0 | CZ221: =CZ146*CZ219 -> 0 | DA221: =DA146*DA219 -> 0 | DB221: =DB146*DB219 -> 0 | DC221: =DC146*DC219 -> 0
D222: P90 CFADS over Loan Life | H222: =H186*H219 -> 0 | I222: =I186*I219 -> 0 | J222: 0 | K222: 0 | L222: 0 | M222: 0 | N222: 0 | O222: 0 | P222: 0 | Q222: 0 | R222: 0 | S222: 0 | T222: 0 | U222: 0 | V222: 0 | W222: 0 | X222: 0 | Y222: 0 | Z222: 0 | AA222: 0 | AB222: 0 | AC222: 0 | AD222: 0 | AE222: 0 | AF222: 0 | AG222: 0 | AH222: 0 | AI222: 0 | AJ222: 0 | AK222: 0 | AL222: 0 | AM222: 0 | AN222: 0 | AO222: 0 | AP222: 0 | AQ222: 0 | AR222: 0 | AS222: 0 | AT222: 0 | AU222: 0 | AV222: 0 | AW222: 0 | AX222: 0 | AY222: 0 | AZ222: 0 | BA222: 0 | BB222: 0 | BC222: 0 | BD222: 0 | BE222: 0 | BF222: 0 | BG222: 0 | BH222: 0 | BI222: 0 | BJ222: 0 | BK222: 0 | BL222: 0 | BM222: 0 | BN222: 0 | BO222: 0 | BP222: 0 | BQ222: 0 | BR222: 0 | BS222: 0 | BT222: 0 | BU222: =BU186*BU219 -> 0 | BV222: 0 | BW222: 0 | BX222: 0 | BY222: 0 | BZ222: 0 | CA222: 0 | CB222: 0 | CC222: 0 | CD222: 0 | CE222: 0 | CF222: 0 | CG222: 0 | CH222: 0 | CI222: 0 | CJ222: 0 | CK222: 0 | CL222: 0 | CM222: 0 | CN222: 0 | CO222: 0 | CP222: 0 | CQ222: 0 | CR222: 0 | CS222: 0 | CT222: 0 | CU222: 0 | CV222: 0 | CW222: 0 | CX222: 0 | CY222: 0 | CZ222: 0 | DA222: 0 | DB222: 0 | DC222: 0
D223: P99 CFADS over Loan Life | H223: =H186*H219 -> 0 | I223: =I186*I219 -> 0 | J223: 0 | K223: 0 | L223: 0 | M223: 0 | N223: 0 | O223: 0 | P223: 0 | Q223: 0 | R223: 0 | S223: 0 | T223: 0 | U223: 0 | V223: 0 | W223: 0 | X223: 0 | Y223: 0 | Z223: 0 | AA223: 0 | AB223: 0 | AC223: 0 | AD223: 0 | AE223: 0 | AF223: 0 | AG223: 0 | AH223: 0 | AI223: 0 | AJ223: 0 | AK223: 0 | AL223: 0 | AM223: 0 | AN223: 0 | AO223: 0 | AP223: 0 | AQ223: 0 | AR223: 0 | AS223: 0 | AT223: 0 | AU223: 0 | AV223: 0 | AW223: 0 | AX223: 0 | AY223: 0 | AZ223: 0 | BA223: 0 | BB223: 0 | BC223: 0 | BD223: 0 | BE223: 0 | BF223: 0 | BG223: 0 | BH223: 0 | BI223: 0 | BJ223: 0 | BK223: 0 | BL223: 0 | BM223: 0 | BN223: 0 | BO223: 0 | BP223: 0 | BQ223: 0 | BR223: 0 | BS223: 0 | BT223: 0 | BU223: =BU186*BU219 -> 0 | BV223: 0 | BW223: 0 | BX223: 0 | BY223: 0 | BZ223: 0 | CA223: 0 | CB223: 0 | CC223: 0 | CD223: 0 | CE223: 0 | CF223: 0 | CG223: 0 | CH223: 0 | CI223: 0 | CJ223: 0 | CK223: 0 | CL223: 0 | CM223: 0 | CN223: 0 | CO223: 0 | CP223: 0 | CQ223: 0 | CR223: 0 | CS223: 0 | CT223: 0 | CU223: 0 | CV223: 0 | CW223: 0 | CX223: 0 | CY223: 0 | CZ223: 0 | DA223: 0 | DB223: 0 | DC223: 0
D224: Applied CFADS | F224: =F23 -> 1 | H224: =INDEX(H221:H223,$F$224) -> 0 | I224: =INDEX(I221:I223,$F$224) -> 0 | J224: 0 | K224: 0 | L224: 0 | M224: 0 | N224: 0 | O224: 0 | P224: 0 | Q224: 0 | R224: 0 | S224: 0 | T224: 0 | U224: 0 | V224: 0 | W224: 0 | X224: 0 | Y224: 0 | Z224: 0 | AA224: 0 | AB224: 0 | AC224: 0 | AD224: 0 | AE224: 0 | AF224: 0 | AG224: 0 | AH224: 0 | AI224: 0 | AJ224: 0 | AK224: 0 | AL224: 0 | AM224: 0 | AN224: 0 | AO224: 0 | AP224: 0 | AQ224: 0 | AR224: 0 | AS224: 0 | AT224: 0 | AU224: 0 | AV224: 0 | AW224: 0 | AX224: 0 | AY224: 0 | AZ224: 0 | BA224: 0 | BB224: 0 | BC224: 0 | BD224: 0 | BE224: 0 | BF224: 0 | BG224: 0 | BH224: 0 | BI224: 0 | BJ224: 0 | BK224: 0 | BL224: 0 | BM224: 0 | BN224: 0 | BO224: 0 | BP224: 0 | BQ224: 0 | BR224: 0 | BS224: 0 | BT224: 0 | BU224: =INDEX(BU221:BU223,$F$224) -> 0 | BV224: 0 | BW224: 0 | BX224: 0 | BY224: 0 | BZ224: 0 | CA224: 0 | CB224: 0 | CC224: 0 | CD224: 0 | CE224: 0 | CF224: 0 | CG224: 0 | CH224: 0 | CI224: 0 | CJ224: 0 | CK224: 0 | CL224: 0 | CM224: 0 | CN224: 0 | CO224: 0 | CP224: 0 | CQ224: 0 | CR224: 0 | CS224: 0 | CT224: 0 | CU224: 0 | CV224: 0 | CW224: 0 | CX224: 0 | CY224: 0 | CZ224: 0 | DA224: 0 | DB224: 0 | DC224: 0
D226: Compound Factor | H226: =H190 -> 1 | I226: 1 | J226: 1.0165 | K226: 1.03327225 | L226: 1.050321242 | M226: 1.067651543 | N226: 1.085267793 | O226: 1.103174712 | P226: 1.121377094 | Q226: 1.139879816 | R226: 1.158687833 | S226: 1.177806183 | T226: 1.197239985 | U226: 1.216994444 | V226: 1.237074853 | W226: 1.257486588 | X226: 1.278235117 | Y226: 1.299325996 | Z226: 1.320764875 | AA226: 1.342557495 | AB226: 1.364709694 | AC226: 1.387227404 | AD226: 1.410116656 | AE226: 1.433383581 | AF226: 1.45703441 | AG226: 1.481075478 | AH226: 1.505513223 | AI226: 1.530354191 | AJ226: 1.555605036 | AK226: 1.581272519 | AL226: 1.607363515 | AM226: 1.633885013 | AN226: =AN190 -> 1.660844116 | AO226: 1.688248044 | AP226: 1.716104137 | AQ226: 1.744419855 | AR226: 1.773202782 | AS226: 1.802460628 | AT226: 1.832201229 | AU226: 1.862432549 | AV226: 1.893162686 | AW226: 1.893162686 | AX226: 1.893162686 | AY226: 1.893162686 | AZ226: 1.893162686 | BA226: 1.893162686 | BB226: 1.893162686 | BC226: 1.893162686 | BD226: 1.893162686 | BE226: 1.893162686 | BF226: 1.893162686 | BG226: 1.893162686 | BH226: 1.893162686 | BI226: 1.893162686 | BJ226: 1.893162686 | BK226: 1.893162686 | BL226: 1.893162686 | BM226: 1.893162686 | BN226: 1.893162686 | BO226: 1.893162686 | BP226: 1.893162686 | BQ226: 1.893162686 | BR226: 1.893162686 | BS226: 1.893162686 | BT226: =BT190 -> 1.893162686 | BU226: 1.893162686 | BV226: 1.893162686 | BW226: 1.893162686 | BX226: 1.893162686 | BY226: 1.893162686 | BZ226: 1.893162686 | CA226: 1.893162686 | CB226: 1.893162686 | CC226: 1.893162686 | CD226: 1.893162686 | CE226: 1.893162686 | CF226: 1.893162686 | CG226: 1.893162686 | CH226: 1.893162686 | CI226: 1.893162686 | CJ226: 1.893162686 | CK226: 1.893162686 | CL226: 1.893162686 | CM226: 1.893162686 | CN226: 1.893162686 | CO226: 1.893162686 | CP226: 1.893162686 | CQ226: 1.893162686 | CR226: 1.893162686 | CS226: 1.893162686 | CT226: 1.893162686 | CU226: 1.893162686 | CV226: 1.893162686 | CW226: 1.893162686 | CX226: 1.893162686 | CY226: 1.893162686 | CZ226: 1.893162686 | DA226: 1.893162686 | DB226: 1.893162686 | DC226: 1.893162686
D227: PV of CFADS from Applied Cash Flow
D228: Debt Applied in Sources and Uses
D229: LLCR for Sculpting
D231: Tailored Repayment in Max Debt to Capital Case
D232: Minimum DSCR | F232: =F224 -> 1 | G232: =CHOOSE(F232,F60,F61,F62) -> 1.35
D233: Debt Life Target
D234: Non-Constant Curved DSCR
D236: Total Debt Service | F236: =F229 -> 0 | H236: =H224/$F$236 ->  | I236: =I224/$F$236 ->  | J236: =J224/$F$236 ->  | K236: =K224/$F$236 ->  | L236: =L224/$F$236 ->  | M236: =M224/$F$236 ->  | N236: =N224/$F$236 ->  | O236: =O224/$F$236 ->  | P236: =P224/$F$236 ->  | Q236: =Q224/$F$236 ->  | R236: =R224/$F$236 ->  | S236: =S224/$F$236 ->  | T236: =T224/$F$236 ->  | U236: =U224/$F$236 ->  | V236: =V224/$F$236 ->  | W236: =W224/$F$236 ->  | X236: =X224/$F$236 ->  | Y236: =Y224/$F$236 ->  | Z236: =Z224/$F$236 ->  | AA236: =AA224/$F$236 ->  | AB236: =AB224/$F$236 ->  | AC236: =AC224/$F$236 ->  | AD236: =AD224/$F$236 ->  | AE236: =AE224/$F$236 ->  | AF236: =AF224/$F$236 ->  | AG236: =AG224/$F$236 ->  | AH236: =AH224/$F$236 ->  | AI236: =AI224/$F$236 ->  | AJ236: =AJ224/$F$236 ->  | AK236: =AK224/$F$236 ->  | AL236: =AL224/$F$236 ->  | AM236: =AM224/$F$236 ->  | AN236: =AN224/$F$236 ->  | AO236: =AO224/$F$236 ->  | AP236: =AP224/$F$236 ->  | AQ236: =AQ224/$F$236 ->  | AR236: =AR224/$F$236 ->  | AS236: =AS224/$F$236 ->  | AT236: =AT224/$F$236 ->  | AU236: =AU224/$F$236 ->  | AV236: =AV224/$F$236 ->  | AW236: =AW224/$F$236 ->  | AX236: =AX224/$F$236 ->  | AY236: =AY224/$F$236 ->  | AZ236: =AZ224/$F$236 ->  | BA236: =BA224/$F$236 ->  | BB236: =BB224/$F$236 ->  | BC236: =BC224/$F$236 ->  | BD236: =BD224/$F$236 ->  | BE236: =BE224/$F$236 ->  | BF236: =BF224/$F$236 ->  | BG236: =BG224/$F$236 ->  | BH236: =BH224/$F$236 ->  | BI236: =BI224/$F$236 ->  | BJ236: =BJ224/$F$236 ->  | BK236: =BK224/$F$236 ->  | BL236: =BL224/$F$236 ->  | BM236: =BM224/$F$236 ->  | BN236: =BN224/$F$236 ->  | BO236: =BO224/$F$236 ->  | BP236: =BP224/$F$236 ->  | BQ236: =BQ224/$F$236 ->  | BR236: =BR224/$F$236 ->  | BS236: =BS224/$F$236 ->  | BT236: =BT224/$F$236 ->  | BU236: =BU224/$F$236 ->  | BV236: =BV224/$F$236 ->  | BW236: =BW224/$F$236 ->  | BX236: =BX224/$F$236 ->  | BY236: =BY224/$F$236 ->  | BZ236: =BZ224/$F$236 ->  | CA236: =CA224/$F$236 ->  | CB236: =CB224/$F$236 ->  | CC236: =CC224/$F$236 ->  | CD236: =CD224/$F$236 ->  | CE236: =CE224/$F$236 ->  | CF236: =CF224/$F$236 ->  | CG236: =CG224/$F$236 ->  | CH236: =CH224/$F$236 ->  | CI236: =CI224/$F$236 ->  | CJ236: =CJ224/$F$236 ->  | CK236: =CK224/$F$236 ->  | CL236: =CL224/$F$236 ->  | CM236: =CM224/$F$236 ->  | CN236: =CN224/$F$236 ->  | CO236: =CO224/$F$236 ->  | CP236: =CP224/$F$236 ->  | CQ236: =CQ224/$F$236 ->  | CR236: =CR224/$F$236 ->  | CS236: =CS224/$F$236 ->  | CT236: =CT224/$F$236 ->  | CU236: =CU224/$F$236 ->  | CV236: =CV224/$F$236 ->  | CW236: =CW224/$F$236 ->  | CX236: =CX224/$F$236 ->  | CY236: =CY224/$F$236 ->  | CZ236: =CZ224/$F$236 ->  | DA236: =DA224/$F$236 ->  | DB236: =DB224/$F$236 ->  | DC236: =DC224/$F$236 -> 
C238: Debt Schedule
D239: Opening Balance | H239: =G242 -> 0 | I239: =H242 ->  | BU239: =BT242 -> 
D240: Add: Debt Issue | F240: =H213 -> 0 | H240: =$F$240*H4 -> 0 | I240: =$F$240*I4 -> 0 | J240: =$F$240*J4 -> 0 | K240: =$F$240*K4 -> 0 | L240: =$F$240*L4 -> 0 | M240: =$F$240*M4 -> 0 | N240: =$F$240*N4 -> 0 | O240: =$F$240*O4 -> 0 | P240: =$F$240*P4 -> 0 | Q240: =$F$240*Q4 -> 0 | R240: =$F$240*R4 -> 0 | S240: =$F$240*S4 -> 0 | T240: =$F$240*T4 -> 0 | U240: =$F$240*U4 -> 0 | V240: =$F$240*V4 -> 0 | W240: =$F$240*W4 -> 0 | X240: =$F$240*X4 -> 0 | Y240: =$F$240*Y4 -> 0 | Z240: =$F$240*Z4 -> 0 | AA240: =$F$240*AA4 -> 0 | AB240: =$F$240*AB4 -> 0 | AC240: =$F$240*AC4 -> 0 | AD240: =$F$240*AD4 -> 0 | AE240: =$F$240*AE4 -> 0 | AF240: =$F$240*AF4 -> 0 | AG240: =$F$240*AG4 -> 0 | AH240: =$F$240*AH4 -> 0 | AI240: =$F$240*AI4 -> 0 | AJ240: =$F$240*AJ4 -> 0 | AK240: =$F$240*AK4 -> 0 | AL240: =$F$240*AL4 -> 0 | AM240: =$F$240*AM4 -> 0 | AN240: =$F$240*AN4 -> 0 | AO240: =$F$240*AO4 -> 0 | AP240: =$F$240*AP4 -> 0 | AQ240: =$F$240*AQ4 -> 0 | AR240: =$F$240*AR4 -> 0 | AS240: =$F$240*AS4 -> 0 | AT240: =$F$240*AT4 -> 0 | AU240: =$F$240*AU4 -> 0 | AV240: =$F$240*AV4 -> 0 | AW240: =$F$240*AW4 -> 0 | AX240: =$F$240*AX4 -> 0 | AY240: =$F$240*AY4 -> 0 | AZ240: =$F$240*AZ4 -> 0 | BA240: =$F$240*BA4 -> 0 | BB240: =$F$240*BB4 -> 0 | BC240: =$F$240*BC4 -> 0 | BD240: =$F$240*BD4 -> 0 | BE240: =$F$240*BE4 -> 0 | BF240: =$F$240*BF4 -> 0 | BG240: =$F$240*BG4 -> 0 | BH240: =$F$240*BH4 -> 0 | BI240: =$F$240*BI4 -> 0 | BJ240: =$F$240*BJ4 -> 0 | BK240: =$F$240*BK4 -> 0 | BL240: =$F$240*BL4 -> 0 | BM240: =$F$240*BM4 -> 0 | BN240: =$F$240*BN4 -> 0 | BO240: =$F$240*BO4 -> 0 | BP240: =$F$240*BP4 -> 0 | BQ240: =$F$240*BQ4 -> 0 | BR240: =$F$240*BR4 -> 0 | BS240: =$F$240*BS4 -> 0 | BT240: =$F$240*BT4 -> 0 | BU240: =$F$240*BU4 -> 0 | BV240: =$F$240*BV4 -> 0 | BW240: =$F$240*BW4 -> 0 | BX240: =$F$240*BX4 -> 0 | BY240: =$F$240*BY4 -> 0 | BZ240: =$F$240*BZ4 -> 0 | CA240: =$F$240*CA4 -> 0 | CB240: =$F$240*CB4 -> 0 | CC240: =$F$240*CC4 -> 0 | CD240: =$F$240*CD4 -> 0 | CE240: =$F$240*CE4 -> 0 | CF240: =$F$240*CF4 -> 0 | CG240: =$F$240*CG4 -> 0 | CH240: =$F$240*CH4 -> 0 | CI240: =$F$240*CI4 -> 0 | CJ240: =$F$240*CJ4 -> 0 | CK240: =$F$240*CK4 -> 0 | CL240: =$F$240*CL4 -> 0 | CM240: =$F$240*CM4 -> 0 | CN240: =$F$240*CN4 -> 0 | CO240: =$F$240*CO4 -> 0 | CP240: =$F$240*CP4 -> 0 | CQ240: =$F$240*CQ4 -> 0 | CR240: =$F$240*CR4 -> 0 | CS240: =$F$240*CS4 -> 0 | CT240: =$F$240*CT4 -> 0 | CU240: =$F$240*CU4 -> 0 | CV240: =$F$240*CV4 -> 0 | CW240: =$F$240*CW4 -> 0 | CX240: =$F$240*CX4 -> 0 | CY240: =$F$240*CY4 -> 0 | CZ240: =$F$240*CZ4 -> 0 | DA240: =$F$240*DA4 -> 0 | DB240: =$F$240*DB4 -> 0 | DC240: =$F$240*DC4 -> 0
D241: Less: Debt Repayment | H241: =(H236-H243)*H219 ->  | I241: =(I236-I243)*I219 ->  | J241: =(J236-J243)*J219 ->  | K241: =(K236-K243)*K219 ->  | L241: =(L236-L243)*L219 ->  | M241: =(M236-M243)*M219 ->  | N241: =(N236-N243)*N219 ->  | O241: =(O236-O243)*O219 ->  | P241: =(P236-P243)*P219 ->  | Q241: =(Q236-Q243)*Q219 ->  | R241: =(R236-R243)*R219 ->  | S241: =(S236-S243)*S219 ->  | T241: =(T236-T243)*T219 ->  | U241: =(U236-U243)*U219 ->  | V241: =(V236-V243)*V219 ->  | W241: =(W236-W243)*W219 ->  | X241: =(X236-X243)*X219 ->  | Y241: =(Y236-Y243)*Y219 ->  | Z241: =(Z236-Z243)*Z219 ->  | AA241: =(AA236-AA243)*AA219 ->  | AB241: =(AB236-AB243)*AB219 ->  | AC241: =(AC236-AC243)*AC219 ->  | AD241: =(AD236-AD243)*AD219 ->  | AE241: =(AE236-AE243)*AE219 ->  | AF241: =(AF236-AF243)*AF219 ->  | AG241: =(AG236-AG243)*AG219 ->  | AH241: =(AH236-AH243)*AH219 ->  | AI241: =(AI236-AI243)*AI219 ->  | AJ241: =(AJ236-AJ243)*AJ219 ->  | AK241: =(AK236-AK243)*AK219 ->  | AL241: =(AL236-AL243)*AL219 ->  | AM241: =(AM236-AM243)*AM219 ->  | AN241: =(AN236-AN243)*AN219 ->  | AO241: =(AO236-AO243)*AO219 ->  | AP241: =(AP236-AP243)*AP219 ->  | AQ241: =(AQ236-AQ243)*AQ219 ->  | AR241: =(AR236-AR243)*AR219 ->  | AS241: =(AS236-AS243)*AS219 ->  | AT241: =(AT236-AT243)*AT219 ->  | AU241: =(AU236-AU243)*AU219 ->  | AV241: =(AV236-AV243)*AV219 ->  | AW241: =(AW236-AW243)*AW219 ->  | AX241: =(AX236-AX243)*AX219 ->  | AY241: =(AY236-AY243)*AY219 ->  | AZ241: =(AZ236-AZ243)*AZ219 ->  | BA241: =(BA236-BA243)*BA219 ->  | BB241: =(BB236-BB243)*BB219 ->  | BC241: =(BC236-BC243)*BC219 ->  | BD241: =(BD236-BD243)*BD219 ->  | BE241: =(BE236-BE243)*BE219 ->  | BF241: =(BF236-BF243)*BF219 ->  | BG241: =(BG236-BG243)*BG219 ->  | BH241: =(BH236-BH243)*BH219 ->  | BI241: =(BI236-BI243)*BI219 ->  | BJ241: =(BJ236-BJ243)*BJ219 ->  | BK241: =(BK236-BK243)*BK219 ->  | BL241: =(BL236-BL243)*BL219 ->  | BM241: =(BM236-BM243)*BM219 ->  | BN241: =(BN236-BN243)*BN219 ->  | BO241: =(BO236-BO243)*BO219 ->  | BP241: =(BP236-BP243)*BP219 ->  | BQ241: =(BQ236-BQ243)*BQ219 ->  | BR241: =(BR236-BR243)*BR219 ->  | BS241: =(BS236-BS243)*BS219 ->  | BT241: =(BT236-BT243)*BT219 ->  | BU241: =(BU236-BU243)*BU219 ->  | BV241: =(BV236-BV243)*BV219 ->  | BW241: =(BW236-BW243)*BW219 ->  | BX241: =(BX236-BX243)*BX219 ->  | BY241: =(BY236-BY243)*BY219 ->  | BZ241: =(BZ236-BZ243)*BZ219 ->  | CA241: =(CA236-CA243)*CA219 ->  | CB241: =(CB236-CB243)*CB219 ->  | CC241: =(CC236-CC243)*CC219 ->  | CD241: =(CD236-CD243)*CD219 ->  | CE241: =(CE236-CE243)*CE219 ->  | CF241: =(CF236-CF243)*CF219 ->  | CG241: =(CG236-CG243)*CG219 ->  | CH241: =(CH236-CH243)*CH219 ->  | CI241: =(CI236-CI243)*CI219 ->  | CJ241: =(CJ236-CJ243)*CJ219 ->  | CK241: =(CK236-CK243)*CK219 ->  | CL241: =(CL236-CL243)*CL219 ->  | CM241: =(CM236-CM243)*CM219 ->  | CN241: =(CN236-CN243)*CN219 ->  | CO241: =(CO236-CO243)*CO219 ->  | CP241: =(CP236-CP243)*CP219 ->  | CQ241: =(CQ236-CQ243)*CQ219 ->  | CR241: =(CR236-CR243)*CR219 ->  | CS241: =(CS236-CS243)*CS219 ->  | CT241: =(CT236-CT243)*CT219 ->  | CU241: =(CU236-CU243)*CU219 ->  | CV241: =(CV236-CV243)*CV219 ->  | CW241: =(CW236-CW243)*CW219 ->  | CX241: =(CX236-CX243)*CX219 ->  | CY241: =(CY236-CY243)*CY219 ->  | CZ241: =(CZ236-CZ243)*CZ219 ->  | DA241: =(DA236-DA243)*DA219 ->  | DB241: =(DB236-DB243)*DB219 ->  | DC241: =(DC236-DC243)*DC219 -> 
D242: Closing Balance | H242: =H239+H240-H241 ->  | I242: =I239+I240-I241 ->  | BU242: =BU239+BU240-BU241 -> 
D243: Intrest Expense | F243: =F196 -> 0.0165 | H243: =H239*$F$243 -> 0 | AN243: =AN239*$F$243 ->  | BT243: =BT239*$F$243 -> 
C245: Cash Trap Schedule
D246: Opening Balance | H246: =G249 -> 0 | I246: =H249 ->  | BU246: =BT249 -> 
D247: Add: Cash Trapped | H247: =H262 ->  | I247: =I262 ->  | BU247: =BU262 -> 
... 31 more rows

Sheet Summary
C2: Tariff (Euro/MWH) | E2: ='Intermediate Financial Model'!F2 -> 32.91300051
C3: Inflated Tariff | E3: ='Intermediate Financial Model'!F54 -> TRUE | P3: DSCR (Min) | Q3: =MIN('Intermediate Financial Model'!278:278) -> 
C4: Project IRR | E4: ='Intermediate Financial Model'!E133 ->  | P4: PLCR | Q4: ='Intermediate Financial Model'!G288 -> 
C5: Equity IRR | E5: ='Intermediate Financial Model'!E268 -> 0 | P5: LLCR | Q5: ='Intermediate Financial Model'!G284 -> 
C6: Target IRR | E6: ='Intermediate Financial Model'!F55 -> 0.075
C8: O&M Expense | E8: Total
C9: In Fixed Terms (USD/kW-yr) | E9: ='Intermediate Financial Model'!F50 -> 54.1089489
C10: In Variable Terms (USD/kW-yr) | E10: ='Intermediate Financial Model'!I50 -> 
C12: 1-Year Uncertainty | E12: ='Intermediate Financial Model'!F20 -> 0
E14: Cap Fac | F14: vs P50 | G14: Debt | H14: EBITDA/P50
C15: P50 DSCR/Amount | D15: ='Intermediate Financial Model'!F60 -> 1.35 | E15: ='Intermediate Financial Model'!F88 -> 0 | F15: =E15/$E$15 ->  | G15: ='Intermediate Financial Model'!F151 -> 0 | H15: 1 | J15: Uses of Funds | L15: Euro | M15: Cost/kW
C16: P90 DSCR/Amount | D16: ='Intermediate Financial Model'!F61 -> 1.15 | E16: ='Intermediate Financial Model'!F90 -> 0 | F16: =E16/$E$15 ->  | G16: ='Intermediate Financial Model'!F170 -> 0 | H16: ='Intermediate Financial Model'!I177 ->  | K16: EPC Cost | L16: ='Intermediate Financial Model'!H206 -> 112800 | M16: =L16/$Q$16 -> 1200 | O16: Capacity (MW) | Q16: ='Intermediate Financial Model'!F16 -> 94
C17: P99 DSCR/Amount | D17: ='Intermediate Financial Model'!F62 -> 1 | E17: ='Intermediate Financial Model'!F91 -> 0 | F17: =E17/$E$15 ->  | G17: ='Intermediate Financial Model'!F191 -> 0 | H17: ='Intermediate Financial Model'!I200 ->  | K17: Development Cost | L17: ='Intermediate Financial Model'!H207 -> 3384 | M17: =L17/$Q$16 -> 36 | O17: Capacity Factor (P50) | Q17: ='Intermediate Financial Model'!F88 -> 0
K18: Owners Cost | L18: ='Intermediate Financial Model'!H208 -> 4324 | M18: 46 | O18: Capacity Factor (P90) | Q18: ='Intermediate Financial Model'!F90 -> 0
C19: Max Debt to Capital | D19: ='Intermediate Financial Model'!$F$64 -> 0.74 | G19: ='Intermediate Financial Model'!M213 -> 90447.61345 | K19: Fees | L19: ='Intermediate Financial Model'!H209 -> 0 | M19: 0 | O19: Capacity Factor (P99) | Q19: ='Intermediate Financial Model'!F91 -> 0
K20: Total Cost | L20: ='Intermediate Financial Model'!H210 -> 120508 | M20: 1282
C21: Final Criteria: | E21: ='Intermediate Financial Model'!P213 -> DSCR Min 0 | J21: Sources of Funds | M21: Percent | O21: Levelised O&M (Euro/MWH) | Q21: ='Intermediate Financial Model'!I50 -> 
C22: Debt Tenure | D22: ='Intermediate Financial Model'!$F$70 -> 20 | K22: Debt | L22: ='Intermediate Financial Model'!H213 -> 0 | M22: =L22/$L$20 -> 0
K23: Equity | L23: =L20-L22 -> 120508 | M23: =L23/$L$20 -> 1 | O23: Owners Cost | Q23: ='Intermediate Financial Model'!F29 -> 46
K24: Total Sources | L24: =SUM(L22:L23) -> 120508 | M24: 1 | O24: Equity IRR Adj Owners Cost | Q24: ='Intermediate Financial Model'!E272 -> 

Sheet Wind Study Back-up (2)
B2: Wind Farm Rated Power1 MW | C2: 94
B3: Gross Energy Output GWh/annum | C3: 416.5
B4: Wake effect | C4: 94.8
B5: Availability | C5: 95.3
B6: Electrical efficiency | C6: 97.7
B7: Turbine performance | C7: 95.3
B8: Environmental | C8: 97.6
B9: Curtailment | C9: 99.5
B10: Net Energy Output GWh/annum | C10: 340.3
B11: Net Capacity Factor1 | C11: 41.3
B13: Production
H14: 1-year Probability Case
B15: Probability of Exceeding | C15: 1 yr | D15: 10 yr | E15: 20 yr | F15: 1-p | G15: Check | H15: Cap Fac | I15: vs P50 | J15: DSCR
B16: 99 | C16: 256.1 | D16: 281.5 | E16: 283.2 | F16: =1-B16/100 -> 0.01 | G16: =_xlfn.NORM.INV(F16,$C$20,$C$23) -> 256.086207 | H16: =G16/8760/$C$2*1000 -> 0.310995588 | I16: =H16/$H$20 -> 0.7525307287 | J16: =1/I16 -> 1.32884939
B17: 95 | C17: 280.8 | D17: 298.7 | E17: 299.9 | F17: =1-B17/100 -> 0.05 | G17: =_xlfn.NORM.INV(F17,$C$20,$C$23) -> 280.7562987 | H17: =G17/8760/$C$2*1000 -> 0.3409553807 | I17: =H17/$H$20 -> 0.8250258557 | J17: =1/I17 -> 1.212083225
B18: 90 | C18: 293.9 | D18: 307.9 | E18: 308.9 | F18: 0.1 | G18: 293.9078333 | H18: 0.3569268354 | I18: 0.8636727397 | J18: 1.157845969
B19: 75 | C19: 315.9 | D19: 323.3 | E19: 323.8 | F19: 0.25 | G19: 315.883471 | H19: 0.3836144358 | I19: 0.9282499884 | J19: 1.077296001
B20: 50 | C20: 340.3 | D20: 340.3 | E20: 340.3 | F20: 0.5 | G20: 340.3 | H20: 0.4132662975 | I20: 1 | J20: 1
B22: Standard Deviation
B23: In any one year period GWh/annum | C23: 36.2 | D23: =F23/10000 -> 0.1074 | F23: 1074 | G23: 10.64
B24: In any ten year period GWh/annum | C24: 25.3 | D24: =C24/$C$20 -> 0.07434616515
B25: In any twenty year period GWh/annum | C25: 24.6 | D25: 0.07228915663
B28: Diameter m | D28: 100
B29: Hub height m | D29: 80
B30: Rotor speed to rpm | C30: 6 | D30: 16
B31: Air Density kg/m | D31: 1.18
B32: Turbulence intensity to | C32: 10 | D32: 15
B33: Peak Cp | D33: 0.51
B34: Operational temperature range °C to °C | C34: -30 | D34: 40
B35: Cut out ten minute
B36: mean wind speed m/s | D36: 25
B37: Restart five minute
B38: mean wind speed m/s | D38: 22
C42: Energy uncertainty
C43: % | D43: GWH
B44: Anemometer accuracy | C44: 0.031 | D44: 10.6
B45: Variability of the year period | C45: 0.019 | D45: 6.5
B46: Synthesis from Mast at m | C46: 0.009 | D46: 3
B47: Correlation to long term reference stations | C47: 0.007 | D47: 2.4
B48: Extrapolation to m | C48: 0.013 | D48: 4.3
B49: Overall historical wind speed | C49: 0.04 | D49: 13.7
B50: Substation metering | C50: 0.003 | D50: 1
B51: Wake and topographic calculation | C51: 0.055 | D51: 18.7
B52: Wind rose representative of long term | C52: 0.004 | D52: 1.3
B53: Energy loss factor assumptions | C53: 0.015 | D53: 5.1
B54: Future energy variability year 1 | C54: 0.08 | D54: 27.3
B55: Future energy variability year 10 | C55: 0.025 | D55: 8.6
B56: Future energy variability year 20 | C56: 0.018 | D56: 6.1
B57: Overall energy uncertainty year | C57: 0.106 | D57: 36.2
B58: Overall energy uncertainty year | C58: 0.074 | D58: 25.3
B59: Overall energy uncertainty year | C59: 0.072 | D59: 24.6
D64: kW
C65: 3 | D65: 4
C66: 4 | D66: 93
C67: 5 | D67: 271
C68: 6 | D68: 509
C69: 7 | D69: 810
C70: 8 | D70: 1189
C71: 9 | D71: 1472
C72: 10 | D72: 1596
C73: 11 | D73: 1620
C74: 12 | D74: 1620
C75: 13 | D75: 1620
C76: 14 | D76: 1620
C77: 15 | D77: 1620
C78: 16 | D78: 1620

Sheet Cost Back-up
D34: BOP Fee | E34: Operation | F34: Maintenance | G34: Community | H34: 3rd Party | I34: Insurance
C35: 2 | D35: 313652 | E35: 337527 | F35: 322343 | G35: 10225 | H35: 168713 | I35: 365033
C36: 35 | D36: 653638 | E36: 703393 | F36: 686864 | G36: 21308 | H36: 351590 | I36: 760713
D37: =D36/D35 -> 2.083959292 | E37: =E36/E35 -> 2.083960691 | F37: 2.130848196 | G37: 2.08391198 | H37: 2.083953222 | I37: 2.083956793
D38: =D37^(1/33)-1 -> 0.02249998437 | E38: =E37^(1/33)-1 -> 0.02250000515 | F38: 0.02318964596 | G38: 0.02249928091 | H38: 0.02249989412 | I38: 0.0224999472
D39: =D35/249.9/1000 -> 1.255110044 | E39: =E35/249.9/1000 -> 1.350648259 | F39: 1.289887955 | G39: 0.04091636655 | H39: 0.6751220488 | I39: 1.460716287

Sheet O&M Cost
B3: SWECO Contracted Turbine O&M ($/MWh) | D3: =SUM(O3:Z3) -> 4616.065033 | E3: =D3/249 -> 18.53841379 | F3: 360.8650597 | G3: 396.6468806 | H3: 362.9655623 | I3: 360.8595637 | J3: 360.6825281 | K3: 396.4461484 | L3: 362.7818752 | M3: 360.6769425 | N3: 360.4999964 | O3: 396.6468806 | P3: 362.9655623 | Q3: 360.8595637 | R3: 373.8191693 | S3: 417.6821305 | T3: 382.2146014 | U3: 379.9969161 | V3: 379.8104917 | W3: 418.3156221 | X3: 382.7943 | Y3: 380.5732511 | Z3: 380.386544
B4: BOP O&M | D4: =SUM(O4:Z4) -> 1048.650689 | E4: =D4/249 -> 4.211448549 | F4: 92.37976809 | G4: 81.73122001 | H4: 81.73122001 | I4: 81.73122001 | J4: 81.73122001 | K4: 83.57017246 | L4: 83.57017246 | M4: 83.57017246 | N4: 83.57017246 | O4: 85.45050134 | P4: 85.45050134 | Q4: 85.45050134 | R4: 85.45050134 | S4: 87.37313762 | T4: 87.37313762 | U4: 87.37313762 | V4: 87.37313762 | W4: 89.33903322 | X4: 89.33903322 | Y4: 89.33903322 | Z4: 89.33903322
B5: BOP O&M Fee | D5: 335.3586454 | E5: 1.346821869 | F5: 25.5625 | G5: 26.13765625 | H5: 26.13765625 | I5: 26.13765625 | J5: 26.13765625 | K5: 26.72575352 | L5: 26.72575352 | M5: 26.72575352 | N5: 26.72575352 | O5: 27.32708297 | P5: 27.32708297 | Q5: 27.32708297 | R5: 27.32708297 | S5: 27.94194234 | T5: 27.94194234 | U5: 27.94194234 | V5: 27.94194234 | W5: 28.57063604 | X5: 28.57063604 | Y5: 28.57063604 | Z5: 28.57063604
B6: Operation Expenses | D6: 360.8861455 | E6: 1.44934195 | F6: 27.5083175 | G6: 28.12725464 | H6: 28.12725464 | I6: 28.12725464 | J6: 28.12725464 | K6: 28.76011787 | L6: 28.76011787 | M6: 28.76011787 | N6: 28.76011787 | O6: 29.40722053 | P6: 29.40722053 | Q6: 29.40722053 | R6: 29.40722053 | S6: 30.06888299 | T6: 30.06888299 | U6: 30.06888299 | V6: 30.06888299 | W6: 30.74543285 | X6: 30.74543285 | Y6: 30.74543285 | Z6: 30.74543285
B7: Maintenance Expenses | D7: 352.4058979 | E7: 1.41528473 | F7: 39.30895059 | G7: 27.46630912 | H7: 27.46630912 | I7: 27.46630912 | J7: 27.46630912 | K7: 28.08430107 | L7: 28.08430107 | M7: 28.08430107 | N7: 28.08430107 | O7: 28.71619785 | P7: 28.71619785 | Q7: 28.71619785 | R7: 28.71619785 | S7: 29.3623123 | T7: 29.3623123 | U7: 29.3623123 | V7: 29.3623123 | W7: 30.02296432 | X7: 30.02296432 | Y7: 30.02296432 | Z7: 30.02296432
B8: G&A | D8: 191.3211506 | E8: 0.7683580345 | F8: 14.58333333 | G8: 14.91145833 | H8: 14.91145833 | I8: 14.91145833 | J8: 14.91145833 | K8: 15.24696615 | L8: 15.24696615 | M8: 15.24696615 | N8: 15.24696615 | O8: 15.59002288 | P8: 15.59002288 | Q8: 15.59002288 | R8: 15.59002288 | S8: 15.9407984 | T8: 15.9407984 | U8: 15.9407984 | V8: 15.9407984 | W8: 16.29946636 | X8: 16.29946636 | Y8: 16.29946636 | Z8: 16.29946636
B9: Asset Management | D9: 0 | E9: 0 | F9: 0 | G9: 0 | H9: 0 | I9: 0 | J9: 0 | K9: 0 | L9: 0 | M9: 0 | N9: 0 | O9: 0 | P9: 0 | Q9: 0 | R9: 0 | S9: 0 | T9: 0 | U9: 0 | V9: 0 | W9: 0 | X9: 0 | Y9: 0 | Z9: 0
B10: Community Support | D10: 10.93263718 | E10: 0.0439061734 | F10: 0.8333333333 | G10: 0.8520833333 | H10: 0.8520833333 | I10: 0.8520833333 | J10: 0.8520833333 | K10: 0.8712552083 | L10: 0.8712552083 | M10: 0.8712552083 | N10: 0.8712552083 | O10: 0.8908584505 | P10: 0.8908584505 | Q10: 0.8908584505 | R10: 0.8908584505 | S10: 0.9109027657 | T10: 0.9109027657 | U10: 0.9109027657 | V10: 0.9109027657 | W10: 0.9313980779 | X10: 0.9313980779 | Y10: 0.9313980779 | Z10: 0.9313980779
B11: 3rd Party Professional Services | D11: 180.3885134 | E11: 0.7244518611 | F11: 13.75 | G11: 14.059375 | H11: 14.059375 | I11: 14.059375 | J11: 14.059375 | K11: 14.37571094 | L11: 14.37571094 | M11: 14.37571094 | N11: 14.37571094 | O11: 14.69916443 | P11: 14.69916443 | Q11: 14.69916443 | R11: 14.69916443 | S11: 15.02989563 | T11: 15.02989563 | U11: 15.02989563 | V11: 15.02989563 | W11: 15.36806829 | X11: 15.36806829 | Y11: 15.36806829 | Z11: 15.36806829
B12: Landowner and Easement Royalties | D12: 874.65 | E12: 3.512650602 | F12: 72.8875 | G12: 72.8875 | H12: 72.8875 | I12: 72.8875 | J12: 72.8875 | K12: 72.8875 | L12: 72.8875 | M12: 72.8875 | N12: 72.8875 | O12: 72.8875 | P12: 72.8875 | Q12: 72.8875 | R12: 72.8875 | S12: 72.8875 | T12: 72.8875 | U12: 72.8875 | V12: 72.8875 | W12: 72.8875 | X12: 72.8875 | Y12: 72.8875 | Z12: 72.8875
B13: Royalties - based on % Revenues | D13: 590.9232479 | E13: 2.373185734 | F13: 55.58955646 | G13: 60.10779975 | H13: 57.06753149 | I13: 61.05678227 | J13: 55.49808628 | K13: 50.22249138 | L13: 52.63194198 | M13: 57.97546307 | N13: 51.05831866 | O13: 40.58286068 | P13: 48.76992478 | Q13: 54.91783895 | R13: 48.71243091 | S13: 33.23609446 | T13: 48.15735729 | U13: 54.84468408 | V13: 43.90417467 | W13: 49.30121972 | X13: 55.68960311 | Y13: 60.8263364 | Z13: 51.98072284
B14: Property Taxes | D14: 2662.828438 | E14: 10.69409011 | F14: 0 | G14: 240.8042586 | H14: 240.8042586 | I14: 240.8042586 | J14: 240.8042586 | K14: 511.503629 | L14: 511.503629 | M14: 511.503629 | N14: 511.503629 | O14: 228.2029994 | P14: 228.2029994 | Q14: 228.2029994 | R14: 228.2029994 | S14: 221.9023698 | T14: 221.9023698 | U14: 221.9023698 | V14: 221.9023698 | W14: 215.6017402 | X14: 215.6017402 | Y14: 215.6017402 | Z14: 215.6017402
B15: Environmental Monitoring | D15: 0 | E15: 0 | F15: 12.75 | G15: 13.036875 | H15: 13.036875 | I15: 13.036875 | J15: 13.036875 | K15: 13.33020469 | L15: 13.33020469 | M15: 13.33020469 | N15: 0 | O15: 0 | P15: 0 | Q15: 0 | R15: 0 | S15: 0 | T15: 0 | U15: 0 | V15: 0 | W15: 0 | X15: 0 | Y15: 0 | Z15: 0
B16: Insurance | D16: 390.2951472 | E16: 1.56745039 | F16: 29.75 | G16: 30.419375 | H16: 30.419375 | I16: 30.419375 | J16: 30.419375 | K16: 31.10381094 | L16: 31.10381094 | M16: 31.10381094 | N16: 31.10381094 | O16: 31.80364668 | P16: 31.80364668 | Q16: 31.80364668 | R16: 31.80364668 | S16: 32.51922873 | T16: 32.51922873 | U16: 32.51922873 | V16: 32.51922873 | W16: 33.25091138 | X16: 33.25091138 | Y16: 33.25091138 | Z16: 33.25091138
B17: Annual Insurance Cash Premium & Origination Fee | D17: 1858.422731 | E17: 7.463545105 | F17: 154.8685609 | G17: 154.8685609 | H17: 154.8685609 | I17: 154.8685609 | J17: 154.8685609 | K17: 154.8685609 | L17: 154.8685609 | M17: 154.8685609 | N17: 154.8685609 | O17: 154.8685609 | P17: 154.8685609 | Q17: 154.8685609 | R17: 154.8685609 | S17: 154.8685609 | T17: 154.8685609 | U17: 154.8685609 | V17: 154.8685609 | W17: 154.8685609 | X17: 154.8685609 | Y17: 154.8685609 | Z17: 154.8685609
B18: Total Operating Expenses | D18: =SUM(D3:D17) -> 13473.12828 | E18: 54.1089489 | F18: 790.081612 | G18: 1057.303518 | H18: 1023.6222 | I18: 1021.516202 | J18: 969.3417759 | K18: 1278.956993 | L18: 1245.292719 | M18: 1243.187787 | N18: 1229.680636 | O18: 985.4501118 | P18: 951.7687935 | Q18: 949.662795 | R18: 962.6224005 | S18: 1003.173726 | T18: 967.7061968 | U18: 965.4885115 | V18: 965.3020872 | W18: 1000.562834 | X18: 965.041512 | Y18: 962.8204632 | Z18: 962.6337561
D20: 249
D22: =D18/D20 -> 54.1089489

Sheet Example Terms
B2: Summary Terms
C4: CIBC | D4: TD Securities | E4: TD Securities | F4: RBC Capital Markets | G4: RBC Capital Markets | H4: Rabobank | I4: Manulife | J4: Bayern LB | K4: ABN AMRO | L4: National Bank | M4: National Bank | N4: National Bank | O4: Scotiabank
B5: Summary | C5: 7-Year Mini-Perm | D5: Unrated PP Bond | E5: Rated PP Bond | F5: Short Mini-Perm | G5: Short Mini-Perm | H5: 7-Year Mini-Perm | I5: 19.5 Year Mini-Perm | J5: 10-Year Term Loan | K5: 7-Year Mini-Perm | L5: Mini-Perm | M5: Bank + Unrated PP | N5: Unrated PP | O5: Bank + Bond
B6: DSCR | C6: P50: 1.40x 1-Year P99: 1.00x | D6: 10-year P90: 1.33x, semiannual, with 0.005x annual step-ups Long-term P99: 1.00x | F6: 1-Year P99: 1.00x with 12 month cash flow tail, 80% max leverage | H6: 1-Year P99: 1.00x 1-Year P50: 1.40x | I6: P50: 1.50x for year 1 and increasing by 0.01x until 1.60x 1-Year P90: 1.37x 1-Year P99: 1.00x | J6: P50: 1.40x, PPA minus 1 year 1-Year P99: 1.00x, PPA minus 1 year | K6: P50: 1.40x 1-Year P99: 1.00x | L6: 1-Year P50: 1.40x 1-Year P99: 1.00x | M6: 1-Year P90: 1.30x 1-Year P99: 1.00x | N6: 1-Year P50: 1.30x 1-Year P90: 1.25x 1-Year P99: 1.00x | O6: 1-Year P90: 1.40x P50: 1.40x
B7: Term | C7: COD + 7 Years | D7: 21 years / 6 months before PPA end | F7: 5 to 7 Years (C + 3-5 Yrs) | H7: COD + 7 Years Sized to 18 Years (2-year tail to RESA) | I7: COD + 19.5 Years | J7: COD + 10 Years Sized to PPA minus 1 year | K7: COD + 7 Years Sized to 18 Years (2-year tail to RESA) | L7: COD + 7 to 19.5 years (6 to 12 month tail to PPA) | M7: Floating: COD + 7 to 9 Years Fixed: COD + 7 to 19.5 years (6 mo. tail to PPA) | N7: TBD with 6 mo. tail to PPA | O7: 3 Year Mini-Perm
B8: Benchmark | C8: CDOR | D8: GOC: 1.958% | F8: BA | I8: Mid-market, semi-annual YTM of the 10 and 15 year GoC Bonds | J8: CDOR | L8: Swapped CDOR | M8: Floating: Swapped CDOR Fixed: Interpolated GoC | N8: Interpolated GoC | O8: GoC
B9: Other Comments | C9: Bond and Hybrid Solutions also Available Max 85% Debt | D9: Potential for Delayed Draw Potential for Structured Deposit Note to avoid negative carry | H9: Swap Margin: 0.15% Admin Agent Fee: C$ 75,000 Annually | I9: Max 80% Debt | J9: Max 85% Debt | K9: Max 75% Debt | L9: Also include DSR/MMR and GST Bridge Facilities Max 85% to 90% Debt | O9: Two-year Mini-Perm also available
B10: Spread | C10: 1.45% to 1.50% | D10: 2.150% to 2.200% | E10: 3 to 5 bps premium for execution | F10: 1.625% | H10: Construction: 1.625% Term Loan: 1.625%, 0.25% step-ups in Year 4 and Year 7 | J10: Constr. & Years 1 to 4: 150 to 162.5 Years 5 to 8: 175 to 187.5 Years 9 and 10: 200 to 212.5 | K10: Construction: 1.875% Term Loan: 2.000%; 0.125% step-ups every 3 years | L10: C + 7 Years: 150 bps C + 19.5 Years: 187.5 bps | M10: Floating: 150 to 162.5 bps Fixed: 200 to 220 bps | N10: Fixed Facility: 210 to 220 bps | O10: Years 1 to 3: 137.5 to 150 bps Bond: 195
B11: Indicative All-in Rate | D11: 4.108% to 4.158% | E11: 4.138% to 4.208% | F11: 4.155% | O11: 3.95% Area
B12: Upfront Fees | C12: 1.45% to 1.50% | D12: Sole: 0.35% Joint: 0.45% | F12: Undrawn: 35% of Margin Upfront: 150 bps (area) Structuring Fees: 50 bps (area) | H12: 1.50% for TL and LCs | I12: 1.00% of Construction | J12: 150 to 162.5 bps | K12: Undrawn: 0.50% Upfront: 1.75% Agency: C$ 75k | L12: 150 bps best effort, or underwritten for a premium | M12: Floating: 150 Fixed: 50 arranged or 150 underwritten | N12: 50 bps arranged 150 underwritten | O12: 100 to 125 bps150k to 200k Arrangement
B13: Commitment Fees | C13: 30% of Applicable Margin | F13: Undrawn: 35% of Margin | H13: 0.005 | I13: 0.015 | J13: 50 bps | L13: 30% of drawn spread | M13: Floating: 30% of drawn spread Fixed: TBD | N13: Fixed: TBD | O13: 34.4 to 37.5 bps (25%)
B14: Agency / Admin Fees | I14: Construction: 7k/mo Term Loan: 40k/yr + 2%/yr | J14: $100k per year + inflation | L14: Construction: 60k Operation 40k (indexed) | O14: 55k per lender
H15: Half size
H16: What is benchmark rate
B17: Option | C17: Single issuance for both projects | D17: Separate issuances for each project | E17: Single issuance for both projects | F17: Separate issuances for each project | G17: Single issuance for both projects | H17: Single issuance for both projects | I17: Single issuance for both projects | J17: Single issuance for both projects | K17: Single issuance for both projects | L17: Single issuance for both projects | M17: Three facilities, not tied to specific project | N17: Single issuance for both projects | O17: Single issuance for both projects
B18: WR1 Size (C$M) | D18: 220 to 245 | E18: N/A | F18: 273 | K18: 240
B19: WR 2 Size (C$M) | D19: 180 to 200 | E19: N/A | F19: 229 | K19: 205
B20: Combined Size | E20: 400 to 445 | G20: 502 | H20: 304 | L20: 595 | M20: Floating 170 Fixed Rate: to 300 Total: 770 | N20: Fixed Rate: Up to 300 per project | O20: 422 to 431

Sheet Summary with Construction
B3: Debt IRR with Fees
B4: Equity IRR
B6: Up-front Fee %
B7: Commitment Fee %
